Workbook

Sheet 附件1人民医院报名表
A1: 附件1
A2: 律师所律师参加市人民医院体检报名表
A4: 填报单位（盖章）： _____________________________
A5: 序号 | B5: 姓 名 | C5: 性别 | D5: 身份证号 | E5: 女婚否 | F5: 手机号码 | G5: 选择的体检套餐 | H5: 体检地点 （总院万江区请打“√”） | I5: 体检地点 （普济院区请打“√”） | J5: 备 注
A6: 1
A7: 2
A8: 3
A9: 4
A10: 5
A11: 6
A12: 7
A13: 8
A14: 9
A15: 10
A16: 11
A17: 12
A18: 13
A19: 14
A20: 15
A21: 16
A22: 17
A23: 18
A24: 19
A25: 20
A26: 注：供选择的3种体检套餐：男律师、女律师（未婚）、女律师（已婚）。
A27: 参加体检共____人，其中男律师____人、女律师____人。
A28: 填表人： 联系电话：
A36: —7—

Sheet 附件2东华报名表
A1: 附件2
A2: 律师所律师参加东华医院体检报名表
A4: 填报单位（盖章）： _____________________________
A5: 序号 | B5: 姓 名 | C5: 性别 | D5: 出生年月日 | E5: 婚否 | F5: 选择的体检套餐 | G5: 备 注
A6: 1
A7: 2
A8: 3
A9: 4
A10: 5
A11: 6
A12: 7
A13: 8
A14: 9
A15: 10
A16: 11
A17: 12
A18: 13
A19: 14
A20: 15
A21: 16
A22: 17
A23: 18
A24: 19
A25: 20
A26: 注：供选择的6种体检套餐：男性A、男性B，未婚女性A、未婚女性B，已婚女性A、已婚女性B。
A27: 参加体检共____人，其中男律师____人、女律师____人。
A28: 填表人： 联系电话：
A29: 律师所地址：
A31: —8—

Sheet 附件3美年报名表
A1: 附件3
A2: 律师所律师参加美年健康体检中心体检报名表
A4: 填报单位（盖章）： _____________________________
A5: 序号 | B5: 姓 名 | C5: 性别 | D5: 出生年月日 | E5: 身份证号 | F5: 婚否 | G5: 选择的体检套餐 | H5: 体检地点 （南城分院请打“√”） | I5: 体检地点 （松山湖分院请打“√”） | J5: 备 注
A6: 1
A7: 2
A8: 3
A9: 4
A10: 5
A11: 6
A12: 7
A13: 8
A14: 9
A15: 10
A16: 11
A17: 12
A18: 13
A19: 14
A20: 15
A21: 16
A22: 17
A23: 18
A24: 19
A25: 20
A26: 供选择的3种体检套餐：男仕、未婚女仕、已婚女仕。
A27: 参加体检共____人，其中男律师____人、女律师____人。
A28: 填表人： 联系电话：
A35: —9—

Sheet 附件4福华报名表
A1: 附件4
A2: 律师所律师参加福华健康管理中心体检报名表
A4: 填报单位（盖章）： _____________________________
A5: 序号 | B5: 姓 名 | C5: 性别 | D5: 出生年月日 | E5: 婚否 | F5: 选择的体检套餐 | G5: 体检地点 （东城卡布斯店请打“√”） | H5: 体检地点 （南城丰泰店请打“√”） | I5: 体检地点 （东城新世界店请打“√”） | J5: 备 注
A6: 1
A7: 2
A8: 3
A9: 4
A10: 5
A11: 6
A12: 7
A13: 8
A14: 9
A15: 10
A16: 11
A17: 12
A18: 13
A19: 14
A20: 15
A21: 16
A22: 17
A23: 18
A24: 19
A25: 20
A26: 供选择的3种体检套餐：男性、未婚女性、已婚女性。
A27: 参加体检共____人，其中男律师____人、女律师____人。
A28: 填表人： 联系电话：
A37: —10—

Sheet 附件5宏元报名表
A1: 附件5
A2: 律师所律师参加宏元中医医院体检报名表
A4: 填报单位（盖章）： _____________________________
A5: 序号 | B5: 姓 名 | C5: 性别 | D5: 出生年月日 | E5: 手机号码 | F5: 婚否 | G5: 选择的体检套餐 | H5: 备 注
A6: 1
A7: 2
A8: 3
A9: 4
A10: 5
A11: 6
A12: 7
A13: 8
A14: 9
A15: 10
A16: 11
A17: 12
A18: 13
A19: 14
A20: 15
A21: 16
A22: 17
A23: 18
A24: 19
A25: 20
A26: 供选择的3种体检套餐：女性（已婚）、女性（未婚）、男性。
A27: 参加体检共____人，其中男律师____人、女律师____人。
A28: 填表人： 联系电话：
A33: —11—

Sheet 附件6人民医院套餐
A1: 附件6
A3: 2018年东莞市人民医院男律师体检套餐
A4: 项目类型 | B4: 项目编号 | C4: 项目名称 | D4: 临床意义及目的 | E4: 优惠价
A5: 专科检查 | B5: 0201 | C5: 内科 | D5: 对心、肺、腹部脏器、体重、淋巴结、五官进行初步了解，便于作健康状况总体评估 | E5: 0
B6: ZH8433 | C6: 血压 | D6: 对心、肺、腹部脏器、体重、淋巴结、五官进行初步了解，便于作健康状况总体评估 | E6: 0
B7: ZH100409 | C7: 身高体重(男) | D7: 对心、肺、腹部脏器、体重、淋巴结、五官进行初步了解，便于作健康状况总体评估 | E7: 0
B8: ZH7691 | C8: 男外科 | D8: 对心、肺、腹部脏器、体重、淋巴结、五官进行初步了解，便于作健康状况总体评估 | E8: 0
B9: ZH7693 | C9: 耳鼻喉科(合并专科) | D9: 对心、肺、腹部脏器、体重、淋巴结、五官进行初步了解，便于作健康状况总体评估 | E9: 0
B10: ZH8605 | C10: 眼科检查(合并专科) | D10: 对心、肺、腹部脏器、体重、淋巴结、五官进行初步了解，便于作健康状况总体评估 | E10: 0
A11: 血液检查 | B11: 06PA | C11: 肝功四项 | D11: 协助了解肝脏功能及心脏功能等 | E11: 22
B12: 06QA | C12: 肾功三项 | D12: 可提示：嘌呤代谢有无异常如高尿酸血症、痛风及肾脏功能损害 | E12: 16
B13: 06AS | C13: 血清总胆固醇测定 | D13: 脂肪肝，胆管炎，胆囊炎，药物中毒性肝炎，酒精性肝炎和黄疸等 | E13: 5
B14: 06AR | C14: 血清甘油三酯测定 | D14: 与近期饮食关系密切，对冠心病、高脂血症、动脉粥样硬化症，甲状腺功能异常、肾病综合征等疾病具有参考意义。 | E14: 5
B15: 1377 | C15: EB病毒抗体测定 | D15: 早期筛查鼻咽癌的相关因素 | E15: 20
B16: 1931 | C16: 全血细胞分析(22项) | D16: 可提示：小细胞性贫血，巨幼细胞贫血，恶性贫血，再生障碍性贫血，溶血性贫血，白血病，粒细胞减少，血小板减少，淋巴细胞减少，感染等 | E16: 20
B17: 4916 | C17: AFP定量(化学发光法) | D17: 通过检测的甲胎蛋白数值，来用于原发性肝细胞癌筛查早期诊断疗效评价和复发判断。 | E17: 62
A18: 尿液检查 | B18: 1958 | C18: 尿常规 | D18: 了解泌尿系疾病、以及一些内分泌、代谢性、出血性、中毒性疾病的信息 | E18: 10
A19: B超检查 | B19: 2313 | C19: 肝、胆、脾、胰彩超（不含图文报告） | D19: 检查腹部器官肝、胆、脾、胰、系统协助诊断相应器官疾病 | E19: 110
A20: 心脏及心血管检查 | B20: 1101 | C20: 心电图 | D20: 用于心律失常（如早搏、传导障碍等）、心肌缺血、心肌梗塞、心房、心室肥大等诊断 | E20: 26
A21: X光检查 | B21: 6210 | C21: DR胸部正位 | D21: 辅助诊断肺结核、肺炎、肺癌等方面的疾病 | E21: 58
A22: 工本材料 | B22: ZH7728 | C22: 抽血费 | E22: 4
B23: ZH7729 | C23: 抽血针头 | E23: 0.31
B24: ZH7730 | C24: 试管1 | E24: 3.3
B25: ZH7745 | C25: 健康咨询 | E25: 5
B26: ZH7746 | C26: 建立健康档案 | E26: 5
B27: ZH7747 | C27: 一般健康体检 | E27: 25
A28: 合计： | E28: 396.61
A30: —12—
A31: 2018年东莞市人民医院女律师体检套餐（已婚女性）
A32: 项目类型 | B32: 项目编号 | C32: 项目名称 | D32: 临床意义及目的 | E32: 优惠价
A33: 专科检查 | B33: 0201 | C33: 内科 | D33: 对心、肺、腹部脏器、体重、淋巴结、五官进行初步了解，便于作健康状况总体评估 | E33: 0
B34: ZH8433 | C34: 血压 | D34: 对心、肺、腹部脏器、体重、淋巴结、五官进行初步了解，便于作健康状况总体评估 | E34: 0
B35: ZH100411 | C35: 身高体重(女) | D35: 对心、肺、腹部脏器、体重、淋巴结、五官进行初步了解，便于作健康状况总体评估 | E35: 0
B36: ZH7692 | C36: 女外科 | D36: 对心、肺、腹部脏器、体重、淋巴结、五官进行初步了解，便于作健康状况总体评估 | E36: 0
B37: 0911 | C37: 妇检(合并专科) | D37: 对心、肺、腹部脏器、体重、淋巴结、五官进行初步了解，便于作健康状况总体评估 | E37: 0
B38: ZH7693 | C38: 耳鼻喉科(合并专科) | D38: 对心、肺、腹部脏器、体重、淋巴结、五官进行初步了解，便于作健康状况总体评估 | E38: 0
B39: ZH8605 | C39: 眼科检查(合并专科) | D39: 对心、肺、腹部脏器、体重、淋巴结、五官进行初步了解，便于作健康状况总体评估 | E39: 0
A40: 血液检查 | B40: 0634 | C40: 血清谷丙氨酸氨基转移酶测定 | D40: 为评判肝功能的一项指标，对急慢性肝炎、肝硬化、酒精性肝病、脂肪肝等疾病具有参考意义。 | E40: 5
B41: 06AP | C41: 血清天门冬氨酸氨基转移酶测定 | D41: 为评判肝功能的一项指标，对急慢性肝炎、酒精性肝病、脂肪肝、肝硬化、急性心肌梗死等疾病具有参考意义。 | E41: 5
B42: 0679 | C42: 血清γ-谷氨酰基转移酶测定 | E42: 5
B43: 06QA | C43: 肾功三项 | D43: 可提示：嘌呤代谢有无异常如高尿酸血症、痛风及肾脏功能损害 | E43: 16
B44: 06AS | C44: 血清总胆固醇测定 | D44: 脂肪肝，胆管炎，胆囊炎，药物中毒性肝炎，酒精性肝炎和黄疸等 | E44: 5
B45: 06AR | C45: 血清甘油三酯测定 | D45: 与近期饮食关系密切，对冠心病、高脂血症、动脉粥样硬化症，甲状腺功能异常、肾病综合征等疾病具有参考意义。 | E45: 5
B46: 1377 | C46: EB病毒抗体测定 | D46: 早期筛查鼻咽癌的相关因素 | E46: 20
B47: 1931 | C47: 全血细胞分析(22项) | D47: 可提示：小细胞性贫血，巨幼细胞贫血，恶性贫血，再生障碍性贫血，溶血性贫血，白血病，粒细胞减少，血小板减少，淋巴细胞减少，感染等 | E47: 20
B48: 4917 | C48: CEA定量(化学发光法) | D48: 增高常见于结肠癌、直肠癌等。 | E48: 62
A49: 尿液检查 | B49: 1958 | C49: 尿常规 | D49: 了解泌尿系疾病、以及一些内分泌、代谢性、出血性、中毒性疾病的信息 | E49: 10
A50: B超检查 | B50: 2313 | C50: 肝、胆、脾、胰彩超（不含图文报告） | D50: 检查腹部器官肝、胆、脾、胰、系统协助诊断相应器官疾病 | E50: 110
A51: 心脏及心血管检查 | B51: 1101 | C51: 心电图 | D51: 用于心律失常（如早搏、传导障碍等）、心肌缺血、心肌梗塞、心房、心室肥大等诊断 | E51: 26
A52: X光检查 | B52: 6210 | C52: DR胸部正位 | D52: 辅助诊断肺结核、肺炎、肺癌等方面的疾病 | E52: 58
A53: 妇科检查 | B53: 1929 | C53: 阴道分泌物常规 | D53: 用于检查阴道内有无滴虫、念珠菌，同时还可确定阴道清洁度 | E53: 9
A54: 工本材料 | B54: ZH7728 | C54: 抽血费 | E54: 4
B55: ZH7729 | C55: 抽血针头 | E55: 0.31
B56: ZH7730 | C56: 试管1 | E56: 4.4
B57: ZH7745 | C57: 健康咨询 | E57: 5
B58: ZH7746 | C58: 建立健康档案 | E58: 5
B59: ZH7747 | C59: 一般健康体检 | E59: 25
A60: 合计： | E60: 399.71
A61: —13—
A63: 2018年东莞市人民医院女律师体检套餐（未婚女性）
A64: 项目类型 | B64: 项目编号 | C64: 项目名称 | D64: 临床意义及目的 | E64: 优惠价
A65: 专科检查 | B65: 0201 | C65: 内科 | D65: 对心、肺、腹部脏器、体重、淋巴结、五官进行初步了解，便于作健康状况总体评估 | E65: 0
B66: ZH8433 | C66: 血压 | D66: 对心、肺、腹部脏器、体重、淋巴结、五官进行初步了解，便于作健康状况总体评估 | E66: 0
B67: ZH100411 | C67: 身高体重(女) | D67: 对心、肺、腹部脏器、体重、淋巴结、五官进行初步了解，便于作健康状况总体评估 | E67: 0
B68: ZH7692 | C68: 女外科 | D68: 对心、肺、腹部脏器、体重、淋巴结、五官进行初步了解，便于作健康状况总体评估 | E68: 0
B69: ZH7693 | C69: 耳鼻喉科(合并专科) | D69: 对心、肺、腹部脏器、体重、淋巴结、五官进行初步了解，便于作健康状况总体评估 | E69: 0
B70: ZH8605 | C70: 眼科检查(合并专科) | D70: 对心、肺、腹部脏器、体重、淋巴结、五官进行初步了解，便于作健康状况总体评估 | E70: 0
A71: 血液检查 | B71: 06PA | C71: 肝功四项 | D71: 协助了解肝脏功能及心脏功能等 | E71: 22
B72: 06QA | C72: 肾功三项 | D72: 可提示：嘌呤代谢有无异常如高尿酸血症、痛风及肾脏功能损害 | E72: 16
B73: 06AS | C73: 血清总胆固醇测定 | D73: 脂肪肝，胆管炎，胆囊炎，药物中毒性肝炎，酒精性肝炎和黄疸等 | E73: 5
B74: 06AR | C74: 血清甘油三酯测定 | D74: 与近期饮食关系密切，对冠心病、高脂血症、动脉粥样硬化症，甲状腺功能异常、肾病综合征等疾病具有参考意义。 | E74: 5
B75: 1377 | C75: EB病毒抗体测定 | D75: 早期筛查鼻咽癌的相关因素 | E75: 20
B76: 1931 | C76: 全血细胞分析(22项) | D76: 可提示：小细胞性贫血，巨幼细胞贫血，恶性贫血，再生障碍性贫血，溶血性贫血，白血病，粒细胞减少，血小板减少，淋巴细胞减少，感染等 | E76: 20
B77: 4917 | C77: CEA定量(化学发光法) | D77: 增高常见于结肠癌、直肠癌等。 | E77: 62
A78: 尿液检查 | B78: 1958 | C78: 尿常规 | D78: 了解泌尿系疾病、以及一些内分泌、代谢性、出血性、中毒性疾病的信息 | E78: 10
A79: B超检查 | B79: 2313 | C79: 肝、胆、脾、胰彩超（不含图文报告） | D79: 检查腹部器官肝、胆、脾、胰、系统协助诊断相应器官疾病 | E79: 110
A80: 心脏及心血管检查 | B80: 1101 | C80: 心电图 | D80: 用于心律失常（如早搏、传导障碍等）、心肌缺血、心肌梗塞、心房、心室肥大等诊断 | E80: 26
A81: X光检查 | B81: 6210 | C81: DR胸部正位 | D81: 辅助诊断肺结核、肺炎、肺癌等方面的疾病 | E81: 58
A82: 工本材料 | B82: ZH7728 | C82: 抽血费 | E82: 4
B83: ZH7729 | C83: 抽血针头 | E83: 0.31
B84: ZH7730 | C84: 试管1 | E84: 4.4
B85: ZH7745 | C85: 健康咨询 | E85: 5
B86: ZH7746 | C86: 建立健康档案 | E86: 5
B87: ZH7747 | C87: 一般健康体检 | E87: 25
A88: 合计： | E88: 397.71
A92: —14—
A93: 注意事项
A94: 1.请按预约的体检日期进行体检。
A95: 2.体检前三天请您尽量保持正常清淡饮食和充足的睡眠，不要饮酒、避免剧烈运动。
A96: 3.抽血、早上空腹进行检查，抽血后，需按压穿刺点3至5分钟。
A97: 4.消化道（肝胆脾胰）B超需空腹进行检查，下午消化道（肝胆脾胰）B超请按照我院提供中餐食谱进行饮食 ，泌尿系统、生殖系统B超需膀胱充盈后才能检查。
A99: 5.拟在半年内怀孕的夫妇，怀孕或可能已经怀孕者请勿做X线检查，需查环查孕者需带好身份证前来体检。
A100: 6.体检完成后请在体检指引单上填写好联系方式交给体检医务人员。
A102: 体检中心联系电话：28636262、13509202630（叶小姐）、E-mail：tjzx22119893@163.com
A103: 体检预约电话：22119912、28636199、28636253；微信预约：微信关注“东莞市人民医院”或“就医160”
A104: 地址：东莞市万江区新谷涌万道路南3号体检中心大楼
A105: 东莞市人民医院健康管理中心2018年6月21日
A129: —15—

Sheet 附件6人民医院自选项目
A1: 2018年东莞市人民医院体检自选项目
A2: 项目类型 | B2: 项目编号 | C2: 项目名称 | D2: 临床意义及目的 | E2: 价格
A3: 专科检查 | B3: 0201 | C3: 内科 | D3: 对心、肺、腹部脏器、体重、淋巴结、五官进行初步了解，便于作健康状况总体评估 | E3: 0
B4: ZH8433 | C4: 血压 | D4: 对心、肺、腹部脏器、体重、淋巴结、五官进行初步了解，便于作健康状况总体评估 | E4: 0
B5: ZH100411 | C5: 身高体重(女) | D5: 对心、肺、腹部脏器、体重、淋巴结、五官进行初步了解，便于作健康状况总体评估 | E5: 0
B6: ZH7692 | C6: 女外科 | D6: 对心、肺、腹部脏器、体重、淋巴结、五官进行初步了解，便于作健康状况总体评估 | E6: 0
B7: 0911 | C7: 妇检(合并专科) | D7: 对心、肺、腹部脏器、体重、淋巴结、五官进行初步了解，便于作健康状况总体评估 | E7: 0
B8: ZH7693 | C8: 耳鼻喉科(合并专科) | D8: 对心、肺、腹部脏器、体重、淋巴结、五官进行初步了解，便于作健康状况总体评估 | E8: 0
B9: ZH101873 | C9: 电耳镜检查 | D9: 对心、肺、腹部脏器、体重、淋巴结、五官进行初步了解，便于作健康状况总体评估 | E9: 7
B10: ZH8605 | C10: 眼科检查(合并专科) | D10: 对心、肺、腹部脏器、体重、淋巴结、五官进行初步了解，便于作健康状况总体评估 | E10: 0
B11: 0405 | C11: 裂隙灯检查 | D11: 对心、肺、腹部脏器、体重、淋巴结、五官进行初步了解，便于作健康状况总体评估 | E11: 12
A12: 血液检查 | B12: 0607 | C12: 肝功能十三项 | D12: 协助了解肝脏功能及心脏功能、胆红素等 | E12: 81.6
B13: 0606 | C13: 肝功能八项 | D13: 协助了解肝脏功能及心脏功能、胆红素等 | E13: 52
B14: 06PA | C14: 肝功四项 | D14: 协助了解肝脏功能及心脏功能等 | E14: 22
B15: 06AY | C15: 肾功能检查 | D15: 了解肾脏功能、糖尿病及痛风，可及时指导饮食 | E15: 80
B16: 06AZ | C16: 电解质检查 | D16: 了解内环境的稳定性，为许多疾病的诊断依据。 | E16: 30
B17: 06AA | C17: 肾功九项 | D17: 了解肾脏功能、糖尿病、痛风及体内电解质是否平衡。 | E17: 55
B18: 0698 | C18: 肾功四项 | D18: 了解肾脏功能、糖尿病及痛风，可及时指导饮食 | E18: 25
B19: 06QA | C19: 肾功三项 | D19: 了解肾脏功能、糖尿病及痛风，可及时指导饮食 | E19: 16
B20: 06DA | C20: 空腹血糖检查 | D20: 初步筛查糖尿病，低血糖。 | E20: 6
B21: ZH101748 | C21: 血脂7项 | D21: 了解血脂水平与载脂蛋白含量，帮助诊断高脂血症，并对动脉粥样硬化、心脑血管疾病风险估计有一定参考意义 | E21: 70
B22: 06BA | C22: 血脂系列检查 | D22: 了解血脂水平与载脂蛋白含量，帮助诊断高脂血症，并对动脉粥样硬化、心脑血管疾病风险估计有一定参考意义 | E22: 125
B23: 0612 | C23: 血脂检查(六项) | D23: 帮助诊断高脂血症，并对动脉粥样硬化、心脑血管疾病风险估计有一定参考意义 | E23: 50
B24: 0697 | C24: 血脂四项 | D24: 帮助诊断高脂血症，并对动脉粥样硬化、心脑血管疾病风险估计有一定参考意义 | E24: 30
B25: 06EA | C25: 糖化血红蛋白检查 | D25: 了解最近3个月血糖的水平，辅助诊断糖尿病及判断疗效 | E25: 80
B26: 06CA | C26: 心肌酶类检查 | D26: 协助诊断心肌梗死的最佳血清酶，也可对心肌梗死患者的预后估计。 | E26: 29
B27: 06AD | C27: 风湿三项 | D27: 包括C-反应蛋白、抗“O”、类风湿因子，C-反应蛋白反映体内炎症程度，判断组织损伤情况，类风湿因子是协助诊断类风湿关节炎和红斑狼疮等疾病，抗“O”判断有无A族溶血性链球菌感染亦对检测风湿病是否活动较有意义。 | E27: 143
B28: 1379 | C28: 类风湿因子测定 | E28: 23
B29: ZH723 | C29: 血清胱抑素C测定 | D29: 胱抑素C是反映肾脏功能的重要指标，年龄、性别、疾病的病情变化对它影响较小 | E29: 45
A30: —16—
A31: 血液检查 | B31: ZH2245 | C31: 同型半胱氨酸测定(Hcy) | D31: 血Hcy增高与多种疾病相关，如动脉硬化相关疾病（冠心病、中风、糖尿病等）、静脉栓塞、肾脏疾病等。 | E31: 55
B32: ZH100103 | C32: 胃蛋白酶原测定 | D32: 用于萎缩性胃炎诊断，胃癌高风险性筛查。 | E32: 76
B33: 06AK | C33: 乙肝两对半定量 | D33: 了解是否感染乙肝病毒及病毒存在状态及是乙肝抗体滴度 | E33: 135
B34: 1367 | C34: 乙肝两对半(自选) | D34: 了解是否感染乙肝病毒及病毒存在状态 | E34: 37.5
B35: 1369 | C35: 甲型肝炎抗体测定 | D35: 检测是否感染甲型肝炎病毒 | E35: 8
B36: 1370 | C36: 丙型肝炎抗体检查 | D36: 检测是否感染丙型 | E36: 25
B37: 1377 | C37: EB病毒抗体测定 | D37: 早期筛查鼻咽癌的相关因素 | E37: 20
B38: 13FA | C38: 幽门螺旋杆菌抗体 | D38: 幽门螺旋杆菌是慢性胃炎，消化溃疡的主要病因，也是非贲门胃癌的一个明确致病因子，在普通人中的感染率为35％－87％，在胃炎和胃溃疡患者中的感染率超过90％。 | E38: 100
B39: 13AA | C39: 肝炎病毒系列检查 | D39: 了解各种肝炎病毒（甲、乙、丙、丁、戊、庚）感染情况 | E39: 149
B40: 13AU | C40: 感染性疾病检查 | D40: 检测丙型肝炎病毒、艾滋病病毒、梅毒螺旋体的感染情况 | E40: 99
B41: ZH8407 | C41: 梅毒二项(TPPA+TRUST) | E41: 50
B42: ZH1000243 | C42: 梅毒抗体测定(化学发光法) | E42: 55
B43: 1373 | C43: 人免疫缺陷病毒抗体测定(HIV) | D43: 初步筛查艾滋病 | E43: 39
B44: 13AZ | C44: 贫血三项检查 | D44: 通过检查红细胞生成的三要素，了解贫血原因分类。 | E44: 144
B45: 13OA | C45: 鳞状细胞癌抗原(SCC) | D45: 对肺鳞癌、子宫颈癌、食道癌及肛门、皮肤、口腔癌等鳞状上皮细胞癌提供实验室依据 | E45: 100
B46: ZH100418 | C46: 神经元烯醇化酶(NSE)（化学发光法） | D46: 用于小细胞肺癌,神经母细胞瘤等诊断 | E46: 70
B47: ZH1000192 | C47: 25羟维生素D测定(色谱法) | D47: 辅助检测骨质疏松 | E47: 92
B48: ZH2247 | C48: 前列腺特异性抗原套餐 | D48: 协助诊断前列腺疾病，包括前列腺炎症及前列腺癌的诊断 | E48: 180
B49: ZH1000261 | C49: 糖类抗原测定CA72－4(化学发光法) | D49: 用于胃癌及胃肠疾病鉴别。 | E49: 130
B50: ZH1000343 | C50: 细胞角蛋白18-3A9片段测定(CYFRA21-1)(化学发光法) | D50: 用于非小细胞肺癌筛查 | E50: 90
B51: 1931 | C51: 全血细胞分析(22项) | D51: 对诊断各种原因引起的血液病、急性感染或炎症、急性中毒等有参考意义 | E51: 20
B52: 1948 | C52: 血型(ABO+RH) | E52: 13
B53: ZH1000825 | C53: 凝血四项 | E53: 84
B54: 1930 | C54: 地贫四项 | D54: 初期筛查地中海贫血的有效手段，为指导夫妻孕育下一代提供实验室依据 | E54: 67
B55: 1932 | C55: G-6-PD+MHb | D55: 初期筛查蚕豆病的有效手段，为指导夫妻孕育下一代提供实验室依据。 | E55: 19
B56: 2701 | C56: 乙肝DNA | D56: 了解病毒复制及传染性，协助临床治疗。 | E56: 100
B57: 4922 | C57: 男肿瘤标志物系列(化学发光法) | D57: 为早期筛查肝癌、前列腺癌、胆囊、胆管癌、胰腺癌、前列腺癌、结肠癌、直肠癌等各种癌症提供诊断依据以及对癌症的治疗及预后评估有较高的价值 | E57: 344
A58: —17—
A59: 血液检查 | B59: 4923 | C59: 女肿瘤标志物系列(化学发光法) | D59: 为早期筛查肝癌、前列腺癌、胆囊、胆管癌、胰腺癌各种消化道癌癌症提供诊断依据以及对癌症的治疗及预后评估有较高的价值 | E59: 514
B60: 4916 | C60: AFP定量(化学发光法) | D60: 通过检测的甲胎蛋白数值，来用于原发性肝细胞癌筛查早期诊断疗效评价和复发判断。 | E60: 62
B61: 4917 | C61: CEA定量(化学发光法) | D61: 增高常见于结肠癌、直肠癌等。 | E61: 62
B62: 4918 | C62: CA199(化学发光法) | D62: 为诊断胆囊、胆管癌、胰腺癌等消化道肿瘤提供实验室依据。 | E62: 130
B63: 4919 | C63: CA125(化学发光法) | D63: 用于辅助判断卵巢癌、胰腺癌、乳腺癌、肝癌、肺癌、胃肠道来源肿瘤、子宫癌均可增高。 | E63: 130
B64: 4920 | C64: CA153(化学发光法) | D64: 乳腺癌、肺癌、卵巢癌、胰腺癌、结直肠癌均可升高，与CEA联合判断可提高诊断符合率。 | E64: 130
B65: 4921 | C65: 前列腺抗原测定(PSA) | D65: 用于前列腺癌的鉴别诊断，用于监测前列腺癌的进展与疗效。 | E65: 90
B66: ZH100372 | C66: 甲状腺功能组合A | D66: 筛查甲亢、甲低、桥本甲状腺炎等甲状腺疾病。 | E66: 284
B67: ZH7707 | C67: 甲状腺系列检查 | E67: 220
B68: 4905 | C68: 高血压心血管系列检查 | D68: 检查与血压相关的内分泌因素，来协助诊断心血管方面疾病。 | E68: 186
B69: 4913 | C69: 糖尿病系列检查(化学发光法) | D69: 协助诊断糖尿病以及观察糖尿病治疗效果和衡量糖尿病病人长期的血糖控制情况。 | E69: 100
B70: 4909 | C70: 性激素系列检查 | D70: 通过雌二醇、睾酮等性激素，了解雌激素、雄激素水平，对部分内分泌疾病及部分妇科、男科疾病提供参考。 | E70: 302
B71: 4801 | C71: 微量元素(全套) | D71: 了解体内微量元素的水平，指导科学饮食，均衡营养，减少各种相关疾病的发生。 | E71: 73
B72: ZH1000364 | C72: 皮肤科变应原筛查(全项)IgE | E72: 430
B73: ZH2225 | C73: 皮肤科食入物变应原筛查(食物A组)IgG | D73: 经常吃身体不耐受的食物会引起慢性疾病，但不耐受的食物不易被发现，此检查目的是筛查出我们经常吃但却不耐受的食物 | E73: 210
B74: ZH1000365 | C74: 皮肤科食入物变应原筛查(食物B组)IgG | E74: 210
A75: 尿液检查 | B75: 4907 | C75: 尿液肾功能系列检查 | D75: 尿蛋白阳性或有肾脏病者 | E75: 188
B76: 1958 | C76: 尿常规 | D76: 了解泌尿系疾病、以及一些内分泌、代谢性、出血性、中毒性疾病的信息 | E76: 10
A77: B超检查 | B77: 2321 | C77: 腹部彩超(女)×3（不含图文报告） | D77: 检查腹部器官肝、胆、脾、胰、肾、泌尿系统协助诊断相应器官疾病，如：脂肪肝、肝硬化、肝囊肿等，协助医生诊断相应器官疾病；检查子宫附件（女），协助诊断卵巢、子宫等相关妇科疾病了解脏器血流情况 | E77: 330
B78: ZH8738 | C78: 肝、胆、脾、胰、泌尿系统彩超(男)（不含图文报告） | D78: 检查腹部器官肝、胆、脾、胰、肾、泌尿系统协助诊断相应器官疾病，如：脂肪肝、肝硬化、肝囊肿、前列腺相关病变，协助医生诊断相应器官疾病；了解脏器血流情况 | E78: 220
B79: 2313 | C79: 肝、胆、脾、胰彩超（不含图文报告） | D79: 检查腹部器官肝、胆、脾、胰、系统协助诊断相应器官疾病 | E79: 110
B80: 2324 | C80: 泌尿彩超(男)（不含图文报告） | D80: 检查腹部器官肾、泌尿、前列腺系统协助诊断相应器官疾病 | E80: 110
B81: ZH7782 | C81: 泌尿彩超(女)（不含图文报告） | D81: 检查腹部器官肾、泌尿、系统协助诊断相应器官疾病 | E81: 110
B82: 2315 | C82: 双肾及肾血管常规彩超 | E82: 175
B83: 2333 | C83: 子宫、附件彩超（不含图文报告） | D83: 检查妇科系统子宫、附件等协助诊断相关器官疾病 | E83: 110
B84: 2322 | C84: 肝、胆、门静脉彩超套餐（不含图文报告） | E84: 165
B85: 2335 | C85: 甲状腺及周边淋巴结（彩超）（不含图文报告） | D85: 了解甲状腺结构有无异常及占位性病变 | E85: 110
A86: —18—
A87: B超检查 | B87: ZH1000564 | C87: 乳腺彩色B超检查(（不含图文报告） | D87: 诊断乳腺增生、肿物、结节、囊肿、腺瘤，主要针对血管及液性包块 | E87: 110
B88: ZH1001140 | C88: 彩色超声心动图（不含图文报告） | E88: 252
B89: ZH1001141 | C89: 颈部动脉血管彩超（不含图文报告） | E89: 245
B90: ZH1001142 | C90: 颈部血管彩超（不含图文报告） | E90: 325
A91: 心脏及心血管检查 | B91: 2330 | C91: 双下肢血管检查 | D91: 了解双下肢动、静脉的血管的疾病，如双下肢动脉硬化、血栓形成、静脉瓣功能等 | E91: 575
B92: 1101 | C92: 心电图 | D92: 检测心脏电生理变化，诊断各种心肌疾病 | E92: 26
B93: ZH2282 | C93: 无创性动脉硬化检测 | D93: 了解下肢血管阻塞情况及全身血管硬化情况 | E93: 75
A94: X光检查 | B94: 6210 | C94: DR胸部正位 | D94: 辅助诊断肺结核、肺炎、肺癌等方面的疾病 | E94: 58
B95: 6212 | C95: DR胸部正侧位 | D95: 诊断肺部疾病（如肺结核、肺炎、肺癌等），同时也协助诊断食管、心脏方面的疾病 | E95: 108
B96: 6243 | C96: DR颈椎正侧位 | D96: 辅助诊断颈椎方面的疾病。 | E96: 108
B97: ZH622 | C97: DR腰椎正侧位 | D97: 辅助诊断腰椎方面的疾病。 | E97: 108
B98: ZH100891 | C98: DR乳腺钼靶CC+MLO（两侧） | D98: 40岁以上妇女，有乳腺包块性质未明者或发现早期微腺癌。 | E98: 289.26
A99: 妇科检查 | B99: 2613 | C99: 液基细胞学检查 | D99: 筛查早期宫颈癌，阳性率高，是目前用于诊断宫颈癌的方法。 | E99: 185
B100: 2614 | C100: HPV-DNA | D100: 已婚女性，HC2方法检测宫颈癌高危型HPV病毒感染(13个亚型),精确度高 | E100: 310
B101: 1929 | C101: 阴道分泌物常规 | D101: 用于检查阴道内有无滴虫、念珠菌，同时还可确定阴道清洁度 | E101: 9
A102: CT、MRI检查 | B102: ZH9028 | C102: 1.5T MRI颅脑平扫+MRA | D102: 发现脑梗死、颅内占位及脑动脉瘤、动静脉畸形等脑血管病变，以及时发现脑出血与蛛网膜下腔出血危险因素。 | E102: 1000
B103: 1846 | C103: 鼻咽、鼻窦MRI平扫 | D103: 协助诊断鼻咽癌、鼻窦炎等 | E103: 700
B104: 1804 | C104: 颈椎MRI平扫 | D104: 查颈椎间盘突出、脊髓病变、颈椎椎体结核、椎管内肿瘤等 | E104: 875
B105: ZH100158 | C105: 3.0T MRI颈椎平扫 | E105: 875
B106: 1802 | C106: 腰椎MRI平扫 | D106: 查腰椎间盘突出、脊髓病变、腰椎椎体结核、椎管内肿瘤等 | E106: 875
B107: ZH100094 | C107: 3.0T MRI腰椎平扫 | E107: 875
B108: ZH100345 | C108: 3.0T MRI盆腔平扫 | E108: 875
B109: ZH100212 | C109: 3.0T MRI膝关节平扫（左侧） | E109: 875
B110: ZH100215 | C110: 3.0T MRI膝关节平扫（右侧） | E110: 875
B111: 1502 | C111: 胸部CT平扫 | D111: 查肺炎、肺结核、气胸、支气管扩张、胸水、肺癌等胸部疾病 | E111: 581
B112: 1542 | C112: 盆腔CT平扫 | E112: 581
B113: ZH100080 | C113: CT上腹部平扫+增强+四维重建（肝动脉、门静脉等上腹部血管成像） | E113: 1031.5
B114: ZH100375 | C114: CT心脏平扫+增强+冠状动脉CTA | E114: 1531.5
B115: ZH1000121 | C115: CT颈椎平扫 + 四维重建 | E115: 861
B116: ZH1000169 | C116: CT腰椎平扫 + 四维重建 | E116: 861
B117: ZH1000329 | C117: CT胸部平扫 | E117: 581
A118: —19—
A119: CT、MRI检查 | B119: 2101 | C119: 纤维胃十二指肠镜检查(电子镜) | D119: 诊断胃及十二指肠疾病，如胃及十二指肠溃疡、胃炎、胃部肿瘤等 | E119: 250
B120: ZH101280 | C120: 胶囊内镜检查 | D120: 胶囊胃镜为透明球状，里面是一个微型数码摄像机，主要筛查食道、胃、小肠、大肠疾病情况，排除肿瘤、息肉、炎症等情况。 | E120: 3850
B121: ZH1000823 | C121: 纤维结肠镜检查(电子镜) | E121: 340
B122: ZH624 | C122: 甲状腺ECT | E122: 317.7
B123: ZH100319 | C123: PET/CT全身或二个部位以上 | D123: 是一种灵敏度高、准确性好的高科技检查手段，对肿瘤、心、脑系统疾病，具有早期发现、早期诊断的价值，全身扫描可以发现休内微小病灶，早期诊断可以使受检者能真正得到早期治疗，达到有病早治，无病预防目的。 | E123: 8600
A124: 其他检查 | B124: 4705 | C124: 鼻咽镜 | D124: 诊断有无急慢性咽炎及急慢性鼻炎有价值，检查扁桃体有无充血，肿大，溃疡等 | E124: 14.5
B125: ZH1000590 | C125: 口腔专科检查 | D125: 初步了解有无牙周炎、龋齿，口腔黏膜异常等相关疾病。 | E125: 15
B126: 0402 | C126: 眼底检查(直接眼底法)双眼 | D126: 了解眼底视网膜血管情况，特别评估高血血压，糖尿病引起的视网膜出血渗出等病变。 | E126: 10
B127: ZH101794 | C127: 眼压检查(非接触眼压计法或压平眼压计法) | D127: 筛查青光眼，适用于经常眼胀、眼痛，用眼过度的人群。 | E127: 30
B128: ZH1000866 | C128: 肛门指检+肛门镜检查 | D128: 直肠癌筛查 | E128: 57
B129: ZH1000843 | C129: 直乙状结肠镜检查(电子镜) | D129: 直乙状结肠癌筛查 | E129: 260
B130: 5906 | C130: 衣原体检查(免疫学法) | D130: 衣原体是一种比细菌和病毒的体积都要小的病原微生物，它主要在细胞的体内增生、繁殖。感染人体后，可引起泌尿、生殖器的慢性增生性炎性病变 | E130: 35
B131: ZH101143 | C131: 解脲+人型支原体培养及药敏 | D131: 检测是否感染支原体及对药物敏感性 | E131: 210
B132: ZH9161 | C132: 细菌性阴道病唾液酸酶测定（BV） | D132: 用于检测细菌性阴道病（阴道内正常菌群失调所致一种混合感染） | E132: 55
B133: ZH101709 | C133: 14碳呼气试验 | E133: 92
B134: ZH942 | C134: 心率变异性分析 | D134: 了解身体压力、精神压力及抗压能力 | E134: 115
B135: ZH101151 | C135: 红外热象检查（全身15个部位） | D135: 能精确给出人体温布分布，对很多疾病都会引起温度改变，针对软组织疼痛，炎症，血管病变，肿瘤，乳腺，健康体检，疗效评定，追踪观察，科研探索等。 | E135: 300
B136: ZH629 | C136: 简易肺功能测定 | D136: 早期诊断COPD(慢性阻塞性肺病)，建议长期吸烟、咳嗽及接触有机粉尘、无机粉尘、有害气体的人员检查 | E136: 50
B137: ZH101120 | C137: 骨密度测定 | D137: 了解骨质变化情况。 | E137: 60
B138: ZH1000851 | C138: 肝脏纤维化及脂肪肝检查 | E138: 156
B139: ZH7744 | C139: 5ML注射器 | E139: 0.22
B140: ZH1000849 | C140: 塑料注射器60ML | E140: 1.23
B141: ZH1000850 | C141: 一次性吸痰管(国产)14号 | E141: 1.54
B142: ZH1000972 | C142: 灌肠(一般灌肠) | E142: 25
A143: 工本材料 | B143: ZH7728 | C143: 抽血费 | E143: 4
B144: ZH7729 | C144: 抽血针头 | E144: 0.31
B145: ZH7745 | C145: 健康咨询 | E145: 5
B146: ZH7746 | C146: 建立健康档案 | E146: 5
B147: ZH7747 | C147: 体检费 | E147: 25
A148: —20—
A150: 上述是检查费用，（CT及MRI增强、胃镜、肠镜检查用到的药物费用及麻醉费用要另外收费，不在检查费内）
A152: 注意事项
A153: 1.请按预约的体检日期进行体检。
A154: 2.体检前三天请您尽量保持正常清淡饮食和充足的睡眠，不要饮酒、避免剧烈运动。
A155: 3.抽血、早上空腹进行检查，抽血后，需按压穿刺点3至5分钟。
A156: 4.消化道（肝胆脾胰）B超需空腹进行检查，下午消化道（肝胆脾胰）B超请按照我院提供中餐食谱进行饮食 ，泌尿系统、生殖系统B超需膀胱充盈后才能检查。
A158: 5.拟在半年内怀孕的夫妇，怀孕或可能已经怀孕者请勿做X线检查，需查环查孕者需带好身份证前来体检。
A159: 6.体检完成后请在体检指引单上填写好联系方式交给体检医务人员。
A161: 体检中心联系电话：28636262\13509202630(叶小姐)、28636279(黄先生)、E-mail：tjzx22119893@163.com
A162: 体检预约电话：22119912、28636199、28636253；微信预约：微信关注“东莞市人民医院”或“就医160”
A163: 地址：东莞市万江区新谷涌万道路南3号体检中心大楼
A164: 东莞市人民医院健康管理中心2017年8月30日
A197: —21—

Sheet 附件7东华套餐
A1: 附件7
A2: 2018年东莞东华医院男律师体检套餐A（男性）
A3: 类别 | B3: 项目 | C3: 临床意义 | E3: 数量 | F3: 折前价 | G3: 折扣 | H3: 折后价
A4: 常规检查 | B4: 常规检查（身高、体重、血压） | C4: 了解是否高血压病、体重是否超标。 | E4: 1 | F4: 0
A5: 检验科 | B5: 血液常规（五分类RT） | C5: 了解是否贫血、感染等，用于对病人身体状况，疾病初步诊断及对治疗疗效的观察。 | E5: 1 | F5: 20
A6: 检验科 | B6: 肝功四项 | C6: 临床上主要用于诊断肝脏和胆道疾病。 | E6: 1 | F6: 20
A7: 检验科 | B7: 肾功四项 | C7: 是肾脏功能的重要指标，指标升高意味着肾功能的损害。 | E7: 1 | F7: 27
A8: 检验科 | B8: 血脂三项 | C8: 了解血脂成分血脂异常是心脑血管疾病的重要危险因素。 | E8: 1 | F8: 22
A9: 检验科 | B9: EB病毒 | C9: EB病毒持续感染是鼻咽癌的危险因素。 | E9: 1 | F9: 21
A10: 检验科 | B10: AFP（定性） | C10: 早期发现肝癌的重要指标，而且还是评估和判断肝炎患者修复状况的重要标志。 | E10: 1 | F10: 12
A11: 检验科 | B11: 尿常规分析+镜检 | C11: 了解尿液成分，协助诊断泌尿系统疾病及疗效观察。 | E11: 1 | F11: 10
A12: 检验科 | B12: 幽门螺杆菌抗体测定（HP） | C12: 了解消化道是否感染幽门螺旋杆菌。 | E12: 1 | F12: 53
A13: 心电图室 | B13: 心电图检查（十二导联） | C13: 了解心律是否正常，是否存在心肌缺血、损伤等。 | E13: 1 | F13: 27
A14: 彩超 | B14: 肝胆脾胰双肾前列腺彩超 | C14: 了解内脏器官是否存在结石、息肉、肿瘤等病变。 | E14: 1 | F14: 270
A15: 放射科 | B15: 胸部透视 | C15: 了解肺部情况，排除结核、炎症、肿瘤等。 | E15: 1 | F15: 10
A16: 体格检查及耗材费用 | B16: 静脉采血 | C16: 静脉抽血人工费用。 | E16: 1 | F16: 4
A17: 体格检查及耗材费用 | B17: *真空采血管* | C17: 各项标本一次性容器。 | E17: 3 | F17: 5.01
A18: 体格检查及耗材费用 | B18: 建立健康档案费 | C18: 将体检资料收集装订成册，给出总检结论，以便保存。 | E18: 1 | F18: 5
D19: 合计： | F19: 506.01 | H19: 400
A21: 2018年东莞东华医院男律师体检套餐B（男性）
A22: 类别 | B22: 项目 | C22: 临床意义 | E22: 数量 | F22: 折前价 | G22: 折扣 | H22: 折后价
A23: 常规检查 | B23: 常规检查（身高、体重、血压） | C23: 了解是否高血压病、体重是否超标。 | E23: 1 | F23: 0
A24: 检验科 | B24: 血液常规（五分类RT） | C24: 了解是否贫血、感染等，用于对病人身体状况，疾病初步诊断及对治疗疗效的观察。 | E24: 1 | F24: 20
A25: —22—
A26: 检验科 | B26: 肝功九项 | C26: 临床上主要用于诊断肝脏和胆道疾病。 | E26: 1 | F26: 44
A27: 检验科 | B27: 肾功四项 | C27: 是肾脏功能的重要指标，指标升高意味着肾功能的损害。 | E27: 1 | F27: 27
A28: 检验科 | B28: 血脂四项 | C28: 了解血脂成分，血脂异常是心脑血管疾病的重要危险因素。 | E28: 1 | F28: 34
A29: 检验科 | B29: AFP（定性） | C29: 早期发现肝癌的重要指标，而且还是评估和判断肝炎患者修复状况的重要标志。 | F29: 12
A30: 检验科 | B30: EB病毒 | C30: EB病毒持续感染是鼻咽癌的危险因素。 | E30: 1 | F30: 21
A31: 检验科 | B31: 尿常规分析+镜检 | C31: 了解尿液成分，协助诊断泌尿系统疾病及疗效观察。 | E31: 1 | F31: 10
A32: 心电图室 | B32: 心电图检查（十二导联） | C32: 了解心律是否正常，是否存在心肌缺血、损伤等。 | E32: 1 | F32: 27
A33: B超 | B33: 肝胆脾双肾前列腺B超 | C33: 了解内脏器官是否存在结石、息肉、肿瘤等病变。 | E33: 1 | F33: 88
B34: 甲状腺彩超 | C34: 了解甲状腺情况。 | E34: 1 | F34: 135
A35: 放射科 | B35: 胸部正位片 | C35: 了解肺部情况，排除结核、炎症、肿瘤等。 | E35: 1 | F35: 60
A36: 体格检查及耗材费用 | B36: 静脉采血 | C36: 静脉抽血人工费用。 | E36: 1 | F36: 4
A37: 体格检查及耗材费用 | B37: *真空采血管* | C37: 各项标本一次性容器。 | E37: 3 | F37: 5.01
A38: 体格检查及耗材费用 | B38: 超声计算机图文报告 | C38: 超声检查图文报告。 | E38: 1 | F38: 15
A39: 体格检查及耗材费用 | B39: 建立健康档案费 | C39: 将体检资料收集装订成册，给出总检结论，以便保存。 | E39: 1 | F39: 5
D40: 合计： | F40: =SUM(F23:F39) -> 507.01 | H40: 400
A42: 2018年东莞东华医院女律师体检套餐A（未婚女性）
A43: 类别 | B43: 项目 | C43: 临床意义 | E43: 数量 | F43: 折前价 | G43: 折扣 | H43: 折后价
A44: 常规检查 | B44: 常规检查（身高、体重、血压） | C44: 了解是否高血压病、体重是否超标。 | E44: 1 | F44: 0
A45: 检验科 | B45: 血液常规（五分类RT） | C45: 了解是否贫血、感染等，用于对病人身体状况，疾病初步诊断及对治疗疗效的观察。 | E45: 1 | F45: 20
A46: 检验科 | B46: 肝功四项 | C46: 临床上主要用于诊断肝脏和胆道疾病。 | E46: 1 | F46: 20
A47: 检验科 | B47: 血糖测定（GLU） | C47: 了解血糖情况，为诊断糖尿病提高依据。 | E47: 1 | F47: 6
A48: 检验科 | B48: URCA | C48: 了解尿酸情况，尿酸增高与痛风、肾结石等密切相关。 | E48: 1 | F48: 5
A49: —23—
A50: 检验科 | B50: 血脂三项 | C50: 了解血脂成分血脂异常是心脑血管疾病的重要危险因素。 | E50: 1 | F50: 22
A51: 检验科 | B51: EB病毒 | C51: EB病毒持续感染是鼻咽癌的危险因素。 | E51: 1 | F51: 21
A52: 检验科 | B52: CEA定性 | C52: 联合检测可提高为消化系统肿瘤的筛查提供线索. | E52: 1 | F52: 12
A53: 检验科 | B53: AFP（定性） | C53: 早期发现肝癌的重要指标，而且还是评估和判断肝炎患者修复状况的重要标志。 | E53: 1 | F53: 12
A54: 检验科 | B54: 尿常规分析+镜检 | C54: 了解尿液成分，协助诊断泌尿系统疾病及疗效观察。 | E54: 1 | F54: 10
A55: 检验科 | B55: 幽门螺杆菌抗体测定（HP） | C55: 了解消化道是否感染幽门螺旋杆菌。 | E55: 1 | F55: 53
A56: 心电图室 | B56: 心电图检查（十二导联） | C56: 了解心律是否正常，是否存在心肌缺血、损伤等。 | E56: 1 | F56: 27
A57: 彩超 | B57: 肝胆脾胰彩超（肝胆脾，双肾，子宫附件任选一各部位） | C57: 了解内脏器官是否存在结石、息肉、肿瘤等病变。 | E57: 1 | F57: 135
A58: 彩超 | B58: 乳腺彩超 | C58: 了解乳腺是否存在增生、肿瘤等病变。 | E58: 1 | F58: 135
A59: 放射科 | B59: 胸部透视 | C59: 了解肺部情况，排除结核、炎症、肿瘤等。 | E59: 1 | F59: 10
A60: 体格检查及耗材费用 | B60: 静脉采血 | C60: 静脉抽血人工费用。 | E60: 1 | F60: 3
A61: 体格检查及耗材费用 | B61: *真空采血管* | C61: 各项标本一次性容器。 | E61: 3 | F61: 5.01
A62: 体格检查及耗材费用 | B62: 建立健康档案费 | C62: 将体检资料收集装订成册，给出总检结论，以便保存。 | E62: 1 | F62: 5
D63: 合计： | F63: 501.01 | H63: 400
A65: 2018年东莞东华医院女律师体检套餐B（未婚女性）
A66: 类别 | B66: 项目 | C66: 临床意义 | E66: 数量 | F66: 折前价 | G66: 折扣 | H66: 折后价
A67: 常规检查 | B67: 常规检查（身高、体重、血压） | C67: 了解是否高血压病、体重是否超标。 | E67: 1 | F67: 0
A68: 检验科 | B68: 血液常规（五分类RT） | C68: 了解是否贫血、感染等，用于对病人身体状况，疾病初步诊断及对治疗疗效的观察。 | E68: 1 | F68: 20
A69: 检验科 | B69: 肝功四项 | C69: 临床上主要用于诊断肝脏和胆道疾病。 | E69: 1 | F69: 20
A70: 检验科 | B70: 肾功四项 | C70: 是肾脏功能的重要指标，指标升高意味着肾功能的损害。 | E70: 1 | F70: 27
A71: 检验科 | B71: 血脂四项 | C71: 了解血脂成分，血脂异常是心脑血管疾病的重要危险因素。 | E71: 1 | F71: 34
A72: 检验科 | B72: AFP（定性） | C72: 早期发现肝癌的重要指标，而且还是评估和判断肝炎患者修复状况的重要标志。 | E72: 1 | F72: 12
A73: —24—
A74: 检验科 | B74: EB病毒 | C74: EB病毒持续感染是鼻咽癌的危险因素。 | E74: 1 | F74: 21
A75: 检验科 | B75: 心肌酶5项 | C75: 了解心肌细胞损伤情况。 | E75: 1 | F75: 45
A76: 检验科 | B76: 幽门螺杆菌抗体测定（HP） | C76: 了解消化道是否感染幽门螺旋杆菌。 | E76: 1 | F76: 53
A77: 检验科 | B77: CEA定性 | C77: 联合检测可提高为消化系统肿瘤的筛查提供线索. | E77: 1 | F77: 12
A78: 检验科 | B78: 尿常规分析+镜检 | C78: 了解尿液成分，协助诊断泌尿系统疾病及疗效观察。 | E78: 1 | F78: 10
A79: 心电图室 | B79: 心电图检查（十二导联） | C79: 了解心律是否正常，是否存在心肌缺血、损伤等。 | E79: 1 | F79: 27
A80: B超 | B80: 肝胆脾胰彩超（肝胆脾，双肾，子宫附件任选一各部位） | C80: 了解内脏器官是否存在结石、息肉、肿瘤等病变。 | E80: 1 | F80: 135
A81: 影像科 | B81: 胸部正位片 | C81: 排除肺部疾病。 | E81: 1 | F81: 60
A82: 体格检查及耗材费用 | B82: 静脉采血 | C82: 静脉抽血人工费用。 | E82: 1 | F82: 3
A83: 体格检查及耗材费用 | B83: *真空采血管* | C83: 各项标本一次性容器。 | E83: 3 | F83: 5.01
A84: 体格检查及耗材费用 | B84: 超声计算机图文报告 | C84: 超声检查图文报告。 | E84: 1 | F84: 15
A85: 体格检查及耗材费用 | B85: 建立健康档案费 | C85: 将体检资料收集装订成册，给出总检结论，以便保存。 | E85: 1 | F85: 5
D86: 合计： | F86: =SUM(F67:F84) -> 499.01 | H86: 400
A88: 2018年东莞东华医院女律师体检套餐A（已婚女性）
A89: 类别 | B89: 项目 | C89: 临床意义 | E89: 数量 | F89: 折前价 | G89: 折扣 | H89: 折后价
A90: 常规检查 | B90: 常规检查（身高、体重、血压） | C90: 了解是否高血压病、体重是否超标。 | E90: 1 | F90: 0
A91: 妇科 | B91: 单次妇检 | C91: 检查妇科一般情况，有无宫颈糜烂、息肉、囊肿等。 | E91: 1 | F91: 8
A92: 检验科 | B92: 血液常规（五分类RT） | C92: 了解是否贫血、感染等，用于对病人身体状况，疾病初步诊断及对治疗疗效的观察。 | E92: 1 | F92: 20
A93: 检验科 | B93: 肝功四项 | C93: 临床上主要用于诊断肝脏和胆道疾病。 | E93: 1 | F93: 20
A94: 检验科 | B94: 肾功四项 | C94: 是肾脏功能的重要指标，指标升高意味着肾功能的损害。 | E94: 1 | F94: 27
A95: 检验科 | B95: 血脂二项 | C95: 了解血脂成分，血脂异常是心脑血管疾病的重要危险因素。 | E95: 1 | F95: 10
A96: 检验科 | B96: CEA定性 | C96: 联合检测可提高为消化系统肿瘤的筛查提供线索. | E96: 1 | F96: 12
A97: —25—
A98: 检验科 | B98: AFP（定性） | C98: 早期发现肝癌的重要指标，而且还是评估和判断肝炎患者修复状况的重要标志。 | E98: 1 | F98: 12
A99: 检验科 | B99: 尿常规分析+镜检 | C99: 了解尿液成分，协助诊断泌尿系统疾病及疗效观察。 | E99: 1 | F99: 10
A100: 检验科 | B100: 白带常规 | C100: 了解白带清洁度，协助诊断妇科疾病。 | E100: 1 | F100: 10
A101: 检验科 | B101: 宫颈涂片 | C101: 通过巴氏分级，筛查宫颈癌。 | E101: 1 | F101: 53
A102: 心电图室 | B102: 心电图检查（十二导联） | C102: 了解心律是否正常，是否存在心肌缺血、损伤等。 | E102: 1 | F102: 27
A103: 彩超 | B103: 乳腺彩超 | C103: 了解乳腺是否存在增生、肿瘤等病变。 | E103: 1 | F103: 135
A104: 彩超 | B104: 子宫附件彩超 | C104: 了解内脏器官是否存在息肉、肿瘤等病变。 | E104: 1 | F104: 135
A105: 体格检查及耗材费用 | B105: 静脉采血 | C105: 静脉抽血人工费用。 | E105: 1 | F105: 3
A106: 体格检查及耗材费用 | B106: *真空采血管* | C106: 各项标本一次性容器。 | E106: 3 | F106: 5.01
A107: 体格检查及耗材费用 | B107: 建立健康档案费 | C107: 将体检资料收集装订成册，给出总检结论，以便保存。 | E107: 1 | F107: 5
D108: 合计： | F108: =SUM(F90:F107) -> 492.01 | H108: 400
A110: 2018年东莞东华医院女律师体检套餐B（已婚女性）
A111: 类别 | B111: 项目 | C111: 临床意义 | E111: 数量 | F111: 折前价 | G111: 折扣 | H111: 折后价
A112: 常规检查 | B112: 常规检查（身高、体重、血压） | C112: 了解是否高血压病、体重是否超标。 | E112: 1 | F112: 0
A113: 妇科 | B113: 单次妇检 | C113: 检查妇科一般情况，有无宫颈糜烂、息肉、囊肿等。 | E113: 1 | F113: 8
A114: 检验科 | B114: 血液常规（五分类RT） | C114: 了解是否贫血、感染等，用于对病人身体状况，疾病初步诊断及对治疗疗效的观察。 | E114: 1 | F114: 20
A115: 检验科 | B115: 肝功四项 | C115: 临床上主要用于诊断肝脏和胆道疾病。 | E115: 1 | F115: 20
A116: 检验科 | B116: 肾功四项 | C116: 是肾脏功能的重要指标，指标升高意味着肾功能的损害。 | E116: 1 | F116: 27
A117: 检验科 | B117: 血脂二项 | C117: 了解血脂成分血脂异常是心脑血管疾病的重要危险因素。 | E117: 1 | F117: 10
A118: 检验科 | B118: 尿常规分析+镜检 | C118: 了解尿液成分，协助诊断泌尿系统疾病及疗效观察。 | E118: 1 | F118: 10
A119: 检验科 | B119: 幽门螺杆菌抗体测定（HP） | C119: 了解消化道是否感染幽门螺旋杆菌。 | E119: 1 | F119: 53
A120: 检验科 | B120: 宫颈涂片 | C120: 通过巴氏分级，筛查宫颈癌。 | E120: 1 | F120: 53
A121: —26—
A122: 检验科 | B122: 白带常规 | C122: 了解白带清洁度，协助诊断妇科疾病。 | E122: 1 | F122: 10
A123: 心电图室 | B123: 心电图检查（十二导联） | C123: 了解心律是否正常，是否存在心肌缺血、损伤等。 | E123: 1 | F123: 27
A124: B超 | B124: 肝胆脾胰彩超（肝胆脾，双肾，子宫附件任选一各部位） | C124: 了解内脏器官是否存在结石、息肉、肿瘤等病变。 | E124: 1 | F124: 135
A125: 彩超 | B125: 乳腺彩超 | C125: 了解乳腺是否存在增生、肿瘤等病变。 | E125: 1 | F125: 135
A126: 体格检查及耗材费用 | B126: 静脉采血 | C126: 静脉抽血人工费用。 | E126: 1 | F126: 3
A127: 体格检查及耗材费用 | B127: *真空采血管* | C127: 各项标本一次性容器。 | E127: 3 | F127: 5.01
A128: 体格检查及耗材费用 | B128: 建立健康档案费 | C128: 将体检资料收集装订成册，给出总检结论，以便保存。 | E128: 1 | F128: 5
D129: 合计： | F129: =SUM(F112:F128) -> 521.01 | H129: 400
A143: —27—

Sheet 附件7东华自选项目
A1: 2018年东莞东华医院体检中心常检项目价格表
A3: ★增加自选项目享受8折优惠，特殊项目不享受任何折扣优惠。
A4: 类别 | B4: 项目 | C4: 临床意义 | D4: 价格 | E4: 备注
A5: 常规检查 | B5: 常规检查（身高、体重、血压） | C5: 了解是否高血压病、体重是否超标。 | D5: 0
A6: 体格检查及耗材费用 | B6: 各专科体检 | C6: 通过体格检查了解内外眼耳鼻喉等基本情况。 | D6: 25
A7: 内科 | B7: 内科 | C7: 通过体格检查初步了解内科各系统情况。
A8: 外科 | B8: 外科 | C8: 通过体格检查初步了解外科各系统情况。
A9: 耳鼻喉科 | B9: 耳鼻喉科 | C9: 通过体格检查初步了解耳鼻喉科情况。
A10: 眼科 | B10: 眼科 | C10: 通过体格检查初步了解眼科情况。
A11: 眼科 | B11: 眼底 | C11: 通过眼底镜检查初步了解眼底情况。 | D11: 5
A12: 妇科 | B12: 单次妇检 | C12: 检查妇科一般情况，有无宫颈糜烂、息肉、囊肿等。 | D12: 8
A13: 检验科 | B13: ABO血型鉴定 | C13: 确定血型。 | D13: 12
A14: 检验科 | B14: 血液常规（五分类RT） | C14: 了解是否贫血、感染等，用于对病人身体状况，疾病初步诊断及对治疗疗效的观察。 | D14: 20
A15: 检验科 | B15: 血型三项 | C15: 为优生优育项目。 | D15: 82
A16: 检验科 | B16: 尿常规分析+镜检 | C16: 了解尿液成分，协助诊断泌尿系统疾病及疗效观察。 | D16: 10
A17: 检验科 | B17: 尿妊娠试验（HCG） | C17: 协助诊断是否受孕。 | D17: 7
A18: 检验科 | B18: 大便培养 | C18: 检查大便是否带有致病菌。 | D18: 74
A19: 检验科 | B19: 大便潜血试验 | C19: 粪便潜血检查可作为消化道肿瘤筛选的首选指标。 | D19: 18
A20: 检验科 | B20: 大便常规 | C20: 初步了解消化系统有无炎症、出血、寄生虫感染，以及间接判断胃肠、胰腺、肝胆的功能状况。 | D20: 2
A21: 检验科 | B21: GPT(肝功一项) | C21: 临床上主要用于诊断肝脏。 | D21: 5
A22: 检验科 | B22: 肝功四项 | C22: 临床上主要用于诊断肝脏和胆道疾病。 | D22: 20
A23: 检验科 | B23: 肝功六项 | C23: 临床上主要用于诊断肝脏和胆道疾病。 | D23: 37
A24: 检验科 | B24: 肝功九项 | C24: 临床上主要用于诊断肝脏和胆道疾病。 | D24: 44
A25: 检验科 | B25: 肝功十二项 | C25: 临床上主要用于诊断肝脏和胆道疾病。 | D25: 76
A26: 检验科 | B26: 血糖测定（GLU） | C26: 了解血糖情况，为诊断糖尿病提高依据。 | D26: 6
A27: 检验科 | B27: 肾功四项 | C27: 是肾脏功能的重要指标，指标升高意味着肾功能的损害。 | D27: 27
A28: 检验科 | B28: 肾功5项 | C28: 是肾脏功能的重要指标，指标升高意味着肾功能的损害。 | D28: 76
A29: 检验科 | B29: 血脂三项 | C29: 了解血脂成分血脂异常是心脑血管疾病的重要危险因素。 | D29: 22
A30: 检验科 | B30: 血脂四项 | C30: 了解血脂成分，血脂异常是心脑血管疾病的重要危险因素。 | D30: 34
A31: 检验科 | B31: 血脂全套 | C31: 了解血脂成分血脂异常是心脑血管疾病的重要危险因素。 | D31: 60
A32: 检验科 | B32: 同型半胱氨酸（HCY） | C32: 是心脑血管病的独立危险因素，测定血浆同型半胱氨酸可以预知动脉粥样硬化的危险性。 | D32: 60
A33: 检验科 | B33: 心肌酶5项 | C33: 了解心肌细胞损伤情况。 | D33: 45
A34: 检验科 | B34: 糖化血红蛋白 | C34: 了解近2--3个月血糖水平。 | D34: 84
A35: 检验科 | B35: C-肽 | C35: 能更准确地反映自身胰岛细胞功能. | D35: 53
A36: —28—
A37: 检验科 | B37: 超敏C-反应蛋白 | C37: 了解炎症在动脉粥样硬化中的作用。 | D37: 48
A38: 检验科 | B38: 胰岛素 | C38: 协助糖尿病和代谢综合症的诊断。 | D38: 66
A39: 检验科 | B39: 胃蛋白酶原Ⅰ | C39: 了解胃蛋白酶原情况。 | D39: 83
A40: 检验科 | B40: 胃功能四项 | C40: 反映了不同部位胃黏膜的形态和功能。 | D40: 178
A41: 检验科 | B41: 幽门螺杆菌抗体测定（HP） | C41: 了解消化道是否感染幽门螺旋杆菌。 | D41: 53
A42: 检验科 | B42: 甲肝抗体 | C42: 了解是否感染甲肝。 | D42: 42
A43: 检验科 | B43: TSH | C43: 协助诊断甲状腺疾病，检测治疗情况。 | D43: 40
A44: 检验科 | B44: T4 | C44: 协助诊断甲状腺疾病，检测治疗情况。 | D44: 60
A45: 检验科 | B45: T3 | C45: 协助诊断甲状腺疾病，检测治疗情况。 | D45: 60
A46: 检验科 | B46: 甲状腺功能系列（五项） | C46: 协助诊断甲状腺疾病，评估治疗效果。 | D46: 280
A47: 检验科 | B47: 血沉 | C47: 协助诊断风湿病、贫血、急性感染等多种疾病。 | D47: 9
A48: 检验科 | B48: 抗链球菌溶血O抗体（ASO）[定量]试验 | C48: 对急性扁桃体炎、急性肾小球肾炎、风湿热的诊断有重要意义。 | D48: 37
A49: 检验科 | B49: 类风湿因子 | C49: 协助诊断类风湿疾病。 | D49: 25
A50: 检验科 | B50: 微量元素5项（钙镁铁铜锌） | C50: 必需微量元素在维持人体健康方面是不可缺少的. | D50: 25
A51: 检验科 | B51: 微量元素2项（铅、镉） | C51: 铅、镉暴露是造成一系列不良健康状况的重要风险因素。 | D51: 34
A52: 检验科 | B52: 离子4项（K、Na、CL、Ca) | C52: 了解电解质（钾、钠、氯、钙）等离子的分布情况。 | D52: 23
A53: 检验科 | B53: 梅毒诊断证实试验 | C53: 如出现阳性反应，结合临床可确诊梅毒。 | D53: 35
A54: 检验科 | B54: 梅毒血清学试验 | C54: 筛查梅毒患者。 | D54: 16
A55: 检验科 | B55: 爱滋病抗体 | C55: 说明病人血清中有抗该病毒的相应抗体;结合临床分析有重要意义。 | D55: 40
A56: 检验科 | B56: 性激素全套 | C56: 了解各种性腺激素水平。 | D56: 363
A57: 检验科 | B57: 优生优育系列检查 | C57: 较全面的了解优生优育的各项指标。 | D57: 390 | E57: 特殊项目，不享受任何折扣优惠
A58: 检验科 | B58: 变应源体外检测（吸入组） | C58: 变应源体外检测在临床上有较高的实用性,安全可靠,结果准确,能够指导特异性免疫治疗. | D58: 232
A59: 检验科 | B59: 变应源体外检测（食物组） | C59: 变应源体外检测在临床上有较高的实用性,安全可靠,结果准确,能够指导特异性免疫治疗 | D59: 224
A60: 检验科 | B60: 外周血染色体核型分析 | C60: 外周血染色体检查,可以防止染色体异常的患儿出生。 | D60: 738
A61: 检验科 | B61: C反应蛋白（CRP）[定量] | C61: 协助诊断风湿病、急性炎症性疾病等。 | D61: 18
A62: 检验科 | B62: 凝血2项 | C62: 了解凝血情况。 | D62: 53
A63: 检验科 | B63: 凝血四项 | C63: 凝血酶原时间(PT)、活化部分凝血活酶时间(APTT)、凝血酶时间(TT).纤维蛋白原时间(FIB)的生理变化。 | D63: 96
A64: 检验科 | B64: 红细胞渗透脆性试验 | C64: 筛查地中海贫血项目。 | D64: 28
A65: 检验科 | B65: 贫血三项 | C65: 检查贫血原因。 | D65: 140
A66: 病理科 | B66: 地贫基因三项 | C66: 检查是否携带有地中海贫血基因。 | D66: 554 | E66: 特殊项目，不享受任何折扣优惠
A67: 检验科 | B67: 红细胞葡萄糖-6-磷酸脱氢酶 | C67: 筛查红细胞葡萄糖-6-磷酸脱氢酶缺乏症患者。 | D67: 12
A68: 检验科 | B68: 免疫五型 | C68: 了解免疫功能状况。 | D68: 90
A69: —29—
A70: 肿瘤系列（抽血）
A71: 检验科 | B71: EB病毒 | C71: EB病毒持续感染是鼻咽癌的危险因素。 | D71: 21
A72: 检验科 | B72: EB病毒Rta蛋白抗体IgG | C72: EB病毒持续感染是鼻咽癌的危险因素。 | D72: 63
A73: 病理科 | B73: EBV(EB病毒）荧光定量 | D73: 160
A74: 检验科 | B74: AFP（定性） | C74: 早期发现肝癌的重要指标，而且还是评估和判断肝炎患者修复状况的重要标志。 | D74: 12
A75: 检验科 | B75: AFP（定量） | C75: 早期发现肝癌的重要指标，而且还是评估和判断肝炎患者修复状况的重要标志。 | D75: 72
A76: 检验科 | B76: CEA定性 | C76: 联合检测可提高为消化系统肿瘤的筛查提供线索. | D76: 12
A77: 检验科 | B77: 癌胚抗原测定（CEA） | C77: 联合检测可提高为肿瘤的筛查提供线索. | D77: 72
A78: 检验科 | B78: 卵巢癌相关抗原 | C78: 为卵巢癌的筛查提供线索.有利于早期诊断. | D78: 145
A79: 检验科 | B79: 肺癌相关抗原 | C79: 为肺癌的筛查提供线索.有利于早期诊断. | D79: 84
A80: 病理科 | B80: CA242(流式荧光发光法) | C80: 筛查胰腺癌、结肠癌、胃癌等。 | D80: 145
A81: 检验科 | B81: CA19-9 | C81: 联合检测可提高为消化系统肿瘤的筛查提供线索. | D81: 145
A82: 检验科 | B82: CA72-4 | C82: 联合检测可提高为消化系统肿瘤的筛查提供线索. | D82: 145
A83: 检验科 | B83: 前列腺特异性抗原 | C83: 可作为前列腺癌筛检的重要指标。 | D83: 95
A84: 检验科 | B84: 乳腺癌相关抗原 | C84: 为乳腺癌的筛查提供线索.有利于早期诊断. | D84: 145
A85: 病理科 | B85: 鳞状细胞癌抗原(流式荧光发光法) | C85: 筛查肺癌（非小细胞性肺癌），头颈部癌症，食道癌，宫颈癌等。 | D85: 121
A86: 病理科 | B86: 细胞角蛋白19片段(流式荧光发光法) | C86: 是肺鳞癌的首选标志物，可用于膀胱癌，鼻咽癌、胃肠道肿瘤的筛查。 | D86: 95
A88: 检验科 | B88: 精液常规 | C88: 精液结果分析,对判断男性的生育能力有重要意义. | D88: 31
A89: 检验科 | B89: 宫颈涂片 | C89: 通过巴氏分级，筛查宫颈癌。 | D89: 53
A90: 检验科 | B90: 白带常规 | C90: 了解白带清洁度，协助诊断妇科疾病。 | D90: 10
A91: 病理科 | B91: 液基细胞学检测 | C91: 筛查宫颈癌较先进方法。 | D91: 210
A92: 病理科 | B92: 高危型HPV检测（杂交捕获法） | C92: 高载量高危HPV长期感染可增加罹患宫颈癌风险。 | D92: 362
A93: 病理科 | B93: 高危型HPV检测（PCR法） | C93: 高载量高危HPV长期感染可增加罹患宫颈癌风险。 | D93: 173
A94: 病理科 | B94: 高危型HPV分型检测 | C94: 检测是否感染高危乳头状瘤病毒，该病毒与宫颈癌有相关性。 | D94: 362
A95: 病理科 | B95: HPV（乳头瘤病毒）荧光定量 | C95: 检测是否感染高危乳头状瘤病毒，该病毒与宫颈癌有相关性。（处女不检） | D95: 160
A96: 病理科 | B96: UU（解脲支原体）荧光定量 | D96: 160
A97: 病理科 | B97: CT（沙眼衣原体）荧光定量 | D97: 160
A98: 病理科 | B98: NG（淋球菌）荧光定量 | D98: 160
A99: 超声科
A100: 彩超 | B100: 肝胆脾胰双肾子宫附件彩超 | C100: 了解内脏器官是否存在结石、息肉、肿瘤等病变。 | D100: 405
B101: 肝胆脾胰双肾前列腺彩超 | C101: 了解内脏器官是否存在结石、息肉、肿瘤等病变。 | D101: 270
B102: 乳腺彩超 | C102: 了解乳腺是否存在增生、肿瘤等病变。 | D102: 135
A103: —30—
A104: 彩超 | B104: 甲状腺彩超 | C104: 了解甲状腺情况。 | D104: 135
B105: 经阴道子宫附件彩超 | C105: 了解子宫、附件情况。 | D105: 212.72
B106: 胃彩超 | D106: 221.25 | E106: 特殊项目，不享受任何折扣优惠
B107: 双侧颈动脉彩超 | C107: 了解颈动脉是否存在硬化、狭窄等病变。 | D107: 222
B108: 双侧椎动脉彩超 | C108: 了解椎动脉是否存在硬化、狭窄等病变。 | D108: 96
B109: 子宫附件彩超 | C109: 了解子宫、附件情况。 | D109: 135
B110: 肝胆脾胰彩超 | C110: 了解内脏器官是否存在结石、息肉、肿瘤等病变。 | D110: 135
B111: 心脏彩超（经胸） | C111: 了解心脏结构和机能。 | D111: 323
B112: 胎儿NT测量（孕11-14周彩超） | C112: 了解胎儿发育情况。 | D112: 262 | E112: 特殊项目，不享受任何折扣优惠
B113: 双肾输尿管膀胱、前列腺彩超 | C113: 了解泌尿系统是否存在结石、息肉、肿瘤等病变。 | D113: 135
B114: 四维胎儿及附属物彩超 | C114: 了解胎儿发育情况。 | D114: 444 | E114: 特殊项目，不享受任何折扣优惠（须到总院检查）
B115: 颈部淋巴结彩超 | C115: 了解颈部淋巴结情况。 | D115: 135
B116: 单上肢动脉彩超 | C116: 主要用于筛查动脉壁的情况及动-静脉瘘等。 | D116: 138
B117: 双下肢动脉彩超 | C117: 了解双下肢动脉情况。 | D117: 348
A118: 影像科
A119: 影像科 | B119: 胸部透视 | C119: 了解肺部情况，排除结核、炎症、肿瘤等。 | D119: 10
B120: 颈椎侧位 | C120: 了解颈椎是否生理曲度、增生等情况。 | D120: 60
B121: 腰椎侧位 | C121: 了解腰椎的生理曲度、是否增生等情况。 | D121: 60
B122: 腰椎正侧位 | C122: 了解腰椎是否生理曲度、增生等情况。 | D122: 113
B123: 颈椎正侧位 | C123: 了解颈椎是否生理曲度、增生等情况。 | D123: 113
B124: 胸部正侧位 | C124: 排除肺部疾病。 | D124: 113
B125: 胸部正位片 | C125: 排除肺部疾病。 | D125: 60
A126: CT | B126: 腰椎CT | C126: 了解腰椎、椎间盘情况，适用于腰部不适和下肢麻木、疼痛等。 | D126: 556 | E126: 特殊项目，不享受任何折扣优惠
B127: 头颅CT | C127: 了解脑部情况，适用于头痛、头昏等症状。 | D127: 556
B128: 颈椎CT | C128: 了解颈椎、椎间盘情况，适用于颈部不适和上肢麻木等症状。 | D128: 556
B129: 胸部CT | C129: 用于肺癌的筛查和其他肺部疾病的诊断。 | D129: 556
B130: 肺部CT | C130: 用于肺癌的筛查和其他肺部疾病的诊断。 | D130: 556
B131: 鼻咽部CT | C131: 用于鼻咽癌的筛查。 | D131: 556
A132: 核磁共振 | B132: 腰椎磁共振 | C132: 了解有无腰椎退行性改变、脊髓占位（如腰椎间盘突出）及椎管内肿瘤等疾病。 | D132: 900 | E132: 也可作为CT的补充（如体内有金属内固定物、假关节等、装有心脏起搏器的患者、心脏瓣膜置换术后患者、体表有金属导线或其它含金属物质者、妊娠妇女禁作）（须到总院检查）
B133: 头部磁共振 | C133: 了解颅脑情况，排除脑梗塞、脑肿瘤等病变。 | D133: 900
B134: 胸部磁共振平扫 | C134: 适用于肺部疾病、纵膈肿瘤、胸壁胸膜病变等筛查。 | D134: 1005
B135: 颈椎MRI平扫 | C135: 了解有无颈椎病、颈椎退行性改变、脊髓占位及椎管内肿瘤等疾病。是目前显示椎管内病变的最好方法，而且无创伤。 | D135: 900
A136: 影像科 | B136: PET-CT全身断层显象 | C136: 用于检查肿瘤的先进设备。 | D136: 7101 | E136: 特殊项目，不享受任何折扣优惠（须到总院检查）
A137: —31—
A138: 其他检查
A139: 心电图室 | B139: 心电图检查（十二导联） | C139: 了解心律是否正常，是否存在心肌缺血、损伤等。 | D139: 27
A140: 碳-13呼气试验 | B140: 碳-13呼气试验 | C140: 了解消化道是否感染幽门螺旋杆菌，适合胃病患者。 | D140: 242
A141: 碳-14呼气试验 | B141: 碳14呼气试验 | C141: 了解消化道是否感染幽门螺旋杆菌，适合胃病患者。 | D141: 92
A142: 眼科 | B142: 双眼眼底照相 | C142: 无需散瞳，观测眼底，辅助眼底视网膜疾症的诊断。 | D142: 74
A143: 骨密度检查 | B143: 骨密度检查 | C143: 了解骨量是否减少，适合中老年人。 | D143: 78
A144: 无创动脉硬化检查 | B144: 无创动脉硬化检查 | C144: 了解动脉血管是否硬化。 | D144: 79
A145: 内脏脂肪检测 | B145: 内脏脂肪检测 | C145: 用于了解内脏脂肪情况 | D145: 256
A146: 压力测定检查 | B146: 压力测定检查 | C146: 了解人体抗压能力。 | D146: 78
A147: 内窥镜 | B147: 电子胃十二指肠镜检查 | C147: 检查胃、十二指肠疾病。 | D147: 322 | E147: 特殊项目，不享受任何折扣优惠（须到总院检查）
A148: 内窥镜 | B148: 电子结肠镜检查 | C148: 检查结肠疾病。 | D148: 359
A149: 脑电图 | B149: 脑电图 | C149: 了解脑电流情况。 | D149: 250
A150: 动态心电图 | B150: 24H动态心电图 | C150: 可连续24小时观察心电图变化。 | D150: 300
A151: 动态心电图 | B151: 心电图踏车负荷试验（平板运动试验） | C151: 协助诊断心肌缺血等疾病。 | D151: 242
A152: 经颅多普勒 | B152: 颅内经颅多谱勒脑血流图（TCD） | C152: 了解脑血流情况。 | D152: 141
A153: 经颅多普勒 | B153: 颅内外经颅多谱勒脑血流图（TCD） | D153: 372
A154: 体格检查及耗材费用 | B154: 建立健康档案费 | C154: 将体检资料收集装订成册，给出总检结论，以便保存。 | D154: 5
B155: 健康咨询 | C155: 由医生解读、分析报告，提供保健建议。 | D155: 5
B156: 静脉采血 | C156: 静脉抽血人工费用。 | D156: 4
B157: *真空采血管* | C157: 各项标本一次性容器。(按实际) | D157: 1.67
A171: —32—

Sheet 附件8美年套餐
A1: 附件8
A2: 2018年东莞美年大健康体检中心律师体检套餐
A3: 项目代码 | B3: 体检项目 | D3: 临床意义 | G3: 男士 | H3: 女士未婚 | I3: 女士已婚
A4: 45851 | B4: 血压 | C4: 血压（BP） | D4: 可以清楚自己的血压情况，对起居，饮食，用药，保健等等都有重要的指导作用。 | G4: 5 | H4: 5 | I4: 5
A5: 011 | B5: 解析心电图 | C5: 十二导心电图 | D5: 用于心肌梗死、心律失常、心肌缺血等心脏疾病的检查。 | G5: 22 | H5: 22 | I5: 22
A6: 45758 | B6: 彩色超声检查 | C6: 肝、胆、脾、胰彩超 | D6: 更清晰的诊断炎症、囊肿、肿瘤、结石、梗阻、血管瘤、肝硬化、脂肪肝等，提供高清晰度的动态彩色超声诊断图像 | G6: 90 | H6: 90 | I6: 90
A7: 45769 | B7: 彩色超声检查 | C7: 双肾、输尿管、膀胱彩超 | D7: 检查诊断炎症、囊肿、肿瘤、结石、肾癌、游走肾、膀胱癌、膀胱畸形、输尿管膀胱积水等，提供高清晰度的动态彩色超声诊断图像 | G7: 90 | H7: 90 | I7: 90
A8: 45789 | B8: 彩色超声检查 | C8: 前列腺彩超 | D8: 检查能较好的显示前列腺的形态、大小，对于前列腺增生、肥大、钙化等疾病具有诊断意义。提供高清晰度的动态彩色超声断层图像诊断。 | G8: 90 | H8: —— | I8: ——
A9: 45778 | B9: 彩色超声检查 | C9: 子宫、附件彩超 | D9: 更清晰的观察子宫、卵巢、盆腔等生殖器是否有病变发生，如子宫肌瘤、囊肿等。 | G9: —— | H9: 90 | I9: 90
A10: 451075 | B10: 彩色超声检查 | C10: 乳腺彩超① | D10: 可发现和鉴别乳腺炎、乳腺纤维瘤、囊性增生、小叶增生、乳腺癌等疾病 | G10: —— | H10: 90 | I10: 90
A11: 45890 | B11: 尿常规（15项） | C11: 比重、酸碱度、尿糖、酮体、尿白细胞、隐血、尿胆原、尿胆红素、尿蛋白、亚硝酸盐、维生素C、尿镜检4项 | D11: 可提示有无泌尿系统疾患：如急、慢性肾炎，肾盂肾炎，膀胱炎，尿道炎，肾病综合征，狼疮性肾炎，血红蛋白尿，肾梗塞、肾小管重金属盐及药物导致急性肾小管坏死，肾或膀胱肿瘤以及有无尿糖等 | G11: 10 | H11: 10 | I11: 10
A12: 025 | B12: 血常规（三分类18项） | C12: 白细胞计数(WBC)、红细胞计数(RBC)、血红蛋白浓度(HGB)、血小板计数(PLT)、红细胞压积(HCT)、平均红细胞体积(MCV)、平均红细胞血红蛋白含量(MCH)、平均红细胞血红蛋白浓度(MCHC)、红细胞体积分布宽度(RDW)、血小板压积(PCT)、平均血小板体积(MPV)、血小板分布宽度(PDW)、中性粒细胞数目(Gran＃)、淋巴细胞数目(Lymph＃)、中间细胞数目(Mid＃)、中间细胞百分比(Mid%)、、中性粒细胞百分比(Gran%)、淋巴细胞百分比(LYM%) | D12: 通过检测血液细胞的计数及不同种类细胞、成分的分类来反映身体状况，如：贫血、感染、血液系统疾病、物理化学因素损伤等。 | G12: 20 | H12: 20 | I12: 20
A13: 451125 | B13: 血脂二项 | C13: 甘油三酯(TG)、总胆固醇(CHOL) | D13: 血脂浓度与心脑血管疾病关系密切，对诊断动脉硬化症，冠心病及肾病综合症有参考意义。 | G13: 20 | H13: 20 | I13: 20
A14: 45946 | B14: 肝功能五项 | C14: 丙氨酸氨基转移酶(ALT)、天门冬氨酸氨基转移酶(AST)、白蛋白(ALB)、直接胆红素(DBIL)、总胆红素(TBIL) | D14: 了解肝脏功能情况，是否有肝细胞损害、肝脏疾病及胆道疾病等病症 | G14: 30 | H14: 30 | I14: 30
A15: —33—
A16: 451124 | B16: 肾功能三项 | C16: 尿素（Urea）、肌酐（CR）、尿酸（UA） | D16: 主要用于了解肾功能异常，痛风，尿酸偏高等。 | G16: 30 | H16: 30 | I16: 30
A17: 046 | B17: 血糖 | C17: 血糖②(GLU) | D17: 从血糖水平了解是否有低血糖、糖尿病.了解血糖控制情况等 | G17: 10 | H17: 10 | I17: 10
A18: 451182 | B18: 肿瘤标志检测 | C18: 神经元特异性烯醇化酶(NSE) | D18: 对小细胞肺癌，神经母细胞瘤等诊断有帮助 | G18: 70 | H18: —— | I18: ——
A19: 451122 | B19: 胃幽门螺旋杆菌筛 | C19: 幽门螺旋杆菌抗体(HP-IgG) | D19: 主要用于了解胃内有无幽门螺旋杆菌感染，此感染与胃炎、消化性溃疡、胃癌等发病有密切关系。 | G19: 60 | H19: 60 | I19: 60
A20: 018 | B20: 女性专项检查（已婚项目） | C20: 妇科常规检查 | D20: 检查女性生殖器有无异常改变、有无宫颈及阴道异常病变。 | G20: —— | H20: —— | I20: 10
A21: 047 | B21: 女性专项检查（已婚项目） | C21: 白带常规 | D21: 了解阴道分泌物的清洁度，阴道有无炎症、白细胞、霉菌、滴虫等。 | G21: —— | H21: —— | I21: 10
A22: 451185 | B22: 女性专项检查（已婚项目） | C22: 宫颈涂片 | D22: 又称宫颈细胞巴氏分级，主要是宫颈癌细胞学检查，能检查出部分癌前病变以及微生物的感染。 | G22: —— | H22: —— | I22: 33
B23: 深度分析报告/纸质版 | G23: 50 | H23: 50 | I23: 50
A24: 022 | B24: 总检（必选） | G24: 赠送 | H24: 赠送 | I24: 赠送
A25: 283 | B25: 抽血（必选） | G25: 赠送 | H25: 赠送 | I25: 赠送
A26: 007 | B26: 营养早餐（必选） | G26: 赠送 | H26: 赠送 | I26: 赠送
F27: 合计 | G27: =SUM(G4:G26) -> 597 | H27: =SUM(H4:H26) -> 617 | I27: =SUM(I4:I26) -> 670
F28: 优惠价 | G28: 400 | H28: 400 | I28: 400
A29: 赠送项目（男女）
A30: 451096 | B30: 肿瘤标志检测 | C30: 总前列腺特异性抗原(T-PSA) | D30: 前列腺癌患者PSA升高。前列腺肥大，前列腺炎时也可见血清PSA水平轻度升高 | G30: 价值90元 （男士均有赠送）
A31: 451100 | B31: 肿瘤标志检测 | C31: 糖类抗原153(CA153) | D31: 是一种乳腺癌相关的肿瘤标志物 | G31: 价值138元 （女士均有赠送）
A32: 赠送项目（年龄）
A33: 66445 | B33: 心脑血管危险因子一项 | C33: 同型半胱氨酸（HCY） | D33: 用于冠心病、动脉硬化、心梗、脑梗等的早期预警。 | G33: 100 | H33: 100 | I33: 100
A34: 441257 | B34: 宫颈涂片升级为宫颈液基细胞检测 | C34: 宫颈液基细胞检测(LCT或TCT) | D34: 对宫颈癌前病变的筛查率在97%以上，还能了解宫颈炎性的改变及其他各类病毒感染引起的病变，如HPV感染等 | G34: 价值200元 （40岁以上享受该升级服务）
A35: 377 | B35: CT | C35: 胸部CT | D35: 根据临床需要可检出X线胸片未发现的隐性病源：(1)查明有无微小转移瘤，可显示肿瘤的存在及其部位、大小、数目，以便制订治疗方案。(2)CT引导经皮穿刺活检，使某些肿块能得到组织学诊断。(3)对X线胸片及纤维支气管镜检查阴性，而痰瘤细胞阳性，应作CT以查明肺内瘤源。 | G35: 价值380元 （45岁以上均有赠送）
A36: —34—
A37: 大型项目钜惠
A38: 451223 | B38: 核磁共振 | C38: 脑垂体 | D38: 适用于脑垂体肿瘤，如腺瘤、微腺瘤的筛查等。 | G38: 价值680元 （加价166元可获得）
A39: 45970 | B39: 核磁共振 | C39: 头面部核磁 | D39: 早期筛查甲状腺、腮腺、淋巴结等器官及颈部软组织各种良恶性肿瘤等病变。 | G39: 价值680元 （加价166元可获得）
A40: 45950 | B40: 核磁共振 | C40: 甲状腺 | D40: 适用于甲状腺良恶性肿瘤、肿大筛查。 | G40: 价值680元 （加价166元可获得）
A41: 45971 | B41: 核磁共振 | C41: 鼻咽部 | D41: 适用于鼻咽部恶性肿瘤的筛查，为鼻咽癌检查首选。 | G41: 价值680元 （加价166元可获得）
A79: —35—

Sheet 附件8美年自选项目
A1: 2018年东莞美年大健康体检中心自选体检项目及报价
A2: ★提前预约时增加自选项目享受7折优惠，现场增加自选项目享受8折优惠。
A3: √ | C3: 注：此单价表作为对内结算用，请注意保密！！ | K3: 报价
A4: 选择区 | B4: 项目代码 | C4: 体检项目 | E4: 男性 | F4: 女性未婚 | G4: 女性已婚 | H4: 临床意义 | K4: 男性 | L4: 女性未婚 | M4: 女性已婚
A5: √ | B5: 基础检查
A6: √ | B6: 45848 | C6: 身高体重 | D6: 身高、体重BMI18.5-24 | E6: ★ | F6: ★ | G6: ★ | H6: 身高 、体重、血压基本健康状态参数，了解体重是否正常，有无体重不足、超重或肥胖，为相关科室的诊断提供依据。 | K6: 5 | L6: 5 | M6: 5
A7: √ | B7: 45851 | C7: 血压 | D7: 血压（BP） | E7: ★ | F7: ★ | G7: ★ | H7: 可以清楚自己的血压情况，对起居，饮食，用药，保健等等都有重要的指导作用。 | K7: 5 | L7: 5 | M7: 5
A8: √ | B8: 441282 | C8: 人体成分分析 | D8: 人体成分分析 | H8: 测量人体成分：体重、肥胖度判断、身体年龄，基础代谢量、肌肉量、推定骨骼量、身体脂肪率、内脏脂肪水平、锻炼模式等各项健康指数，有效指示客人的身体健康状况。 | K8: 80 | L8: 80 | M8: 80
A9: √ | B9: 441284 | C9: 血氧饱和度 | D9: 血氧饱和度 | H9: 血液中血氧的浓度，它是呼吸循环的重要生理参数 | K9: 10 | L9: 10 | M9: 10
A10: √ | B10: 451055 | C10: 内科 | D10: 心、肺听诊，腹部触诊 | E10: ★ | F10: ★ | G10: ★ | H10: 初步排查心、肺、肝、脾、胰、肾以及腹部等器官的疾病 | K10: 10 | L10: 10 | M10: 10
A11: √ | B11: 451059 | C11: 外科 | D11: 浅表淋巴结，甲状腺、乳房、脊柱、四肢、外生殖器、前列腺、肛肠指检、皮肤等 | E11: ★ | F11: ★ | G11: ★ | H11: 淋巴结有无肿大，甲状腺、乳房、肛肠有无异常、四肢脊柱有无畸形等 | K11: 10 | L11: 10 | M11: 10
B12: 45852/45853 | C12: 胸围/腹围/头围/臀围 | D12: 胸围/腹围/头围/臀围 | H12: 通过测量，评估其营养及发育状况 | K12: 1 | L12: 1 | M12: 1
B13: 451198 | C13: 握力体重指数 | D13: 握力体重指数=握力÷体重×100 | H13: 握力是反映前臂及手部肌肉的力量，测试其肌肉静力的耐力状况。一个人的握力与其全身力量成高度相关，握力能够间接反映一个人的健康状况，握力增长或维持在较高水平时，健康状况就好;握力下降时健康状况就不好。握力与体重的大小有关，故采用握力体重指数进行评分。 | K13: 10 | L13: 10 | M13: 10
A14: √ | B14: 359 | C14: 眼科一般检查 | D14: 外眼 | E14: ★ | F14: ★ | G14: ★ | H14: 主要检查有无结膜炎、角膜炎等。 | K14: 10 | L14: 10 | M14: 10
B15: 441299 | C15: 测视力 | D15: 测视力 | H15: 了解视力情况，有无屈光不正、 | K15: 1 | L15: 1 | M15: 1
B16: 395 | C16: 辨色力 | D16: 辨色力 | H16: 了解有无色弱与色盲 | K16: 1 | L16: 1 | M16: 1
B17: 441533 | C17: 视力检查仪 | D17: 视力筛查仪（婴幼儿、儿童及成人） | H17: 视力筛查仪自动检测屈光度问题，包括近视、远视、散光和不等视等，其特点是：、自动、无损伤性、快速而有效、配合度低，准确率高。 | K17: 20 | L17: 20 | M17: 20
A18: √ | B18: 441283 | C18: 眼压检查（非接触眼压计） | D18: 眼压检查（非接触眼压计） | H18: 了解眼压是否正常，眼压高可能患有青光眼病。 | K18: 30 | L18: 30 | M18: 30
A19: √ | B19: 27618 | C19: 眼底检查（直接眼底镜） | D19: 眼底检查（直接眼底镜） | H19: 通过眼底镜检查了解眼底检查有无黄斑变性和动脉硬化等。 | K19: 10 | L19: 10 | M19: 10
A20: √ | B20: 441300 | C20: 眼底照相检查 | D20: 眼底照相检查 | H20: 通过眼底镜检查了解眼底检查有无黄斑变性和动脉硬化等。并采集清晰的图片。 | K20: 160 | L20: 160 | M20: 160
A21: √ | B21: 45728 | C21: 裂隙灯检查 | D21: 裂隙灯检查 | E21: ★ | F21: ★ | G21: ★ | H21: 主要检查眼角膜和晶状体有无病变（如白内障）等。 | K21: 12 | L21: 12 | M21: 12
A22: √ | B22: 009 | C22: 耳鼻喉科 | D22: 外耳道、鼓膜、鼻腔、鼻中隔、扁桃体、咽部 | E22: ★ | F22: ★ | G22: ★ | H22: 检查有无中耳炎、鼻炎、慢性扁桃体炎、鼻中隔偏曲、咽炎等疾病。 | K22: 10 | L22: 10 | M22: 10
A23: √ | B23: 66541 | C23: 耳鼻喉科 | D23: 音叉检测听力 | E23: ★ | F23: ★ | G23: ★ | H23: 了解听力损失的程度,性质及病变的部位。 | K23: 10 | L23: 10 | M23: 10
B24: 441534 | C24: 听力检查仪 | D24: 听力筛查仪（新生儿、婴幼儿、儿童及成人） | H24: 在安静的状态下通过耳声发射，快速检测新生儿、儿童、成年的听力，筛查出早期的听力损伤，进行早期干预治疗，提升其生活质量。 | K24: 20 | L24: 20 | M24: 20
A25: √ | B25: 441301 | C25: 电测听（外检） | D25: 电测听（外检） | H25: 通过对受检者气导、骨导的检测，客观评价听觉系统的功能状态。 | K25: 45 | L25: 45 | M25: 45
A26: √ | B26: 45730 | C26: 纯音电测听 | D26: 纯音电测听 | H26: 在封闭的隔音室内，通过对受检者气导、骨导的检测，客观评价听觉系统的功能状态。 | K26: 112 | L26: 112 | M26: 112
A27: √ | B27: 002 | C27: 口腔科 | D27: 口腔检查 | E27: ★ | F27: ★ | G27: ★ | H27: 通过检查可对龋齿、牙龈炎、牙周炎进行早期检查，同时提供口腔保健指导。 | K27: 10 | L27: 10 | M27: 10
A28: √ | B28: 011 | C28: 解析心电图 | D28: 十二导心电图 | E28: ★ | F28: ★ | G28: ★ | H28: 用于心肌梗死、心律失常、心肌缺血等心脏疾病的检查。 | K28: 22 | L28: 22 | M28: 22
A29: √ | B29: 441315 | C29: 动态心电图 | D29: 动态心电图 | H29: 动态心电图是一种可以长时间连续记录并编集分析人体心脏在活动和安静状态下心电图变化的方法。 | K29: 300 | L29: 300 | M29: 300
A30: √ | B30: 018 | C30: 女性专项检查（已婚项目） | D30: 妇科常规检查 | G30: ★ | H30: 检查女性生殖器有无异常改变、有无宫颈及阴道异常病变。 | M30: 10
A31: √ | B31: 047 | C31: 女性专项检查（已婚项目） | D31: 白带常规 | G31: ★ | H31: 了解阴道分泌物的清洁度，阴道有无炎症、白细胞、霉菌、滴虫等。 | M31: 10
A32: √ | B32: 451185 | C32: 女性专项检查（已婚项目） | D32: 宫颈涂片 | G32: ★ | H32: 又称宫颈细胞巴氏分级，主要是宫颈癌细胞学检查，能检查出部分癌前病变以及微生物的感染。 | M32: 33
A33: √ | B33: 451113 | C33: 女性专项检查（已婚项目） | D33: 细菌性阴道病检测(BV) | G33: ★ | H33: 用于细菌性阴道疾病致病菌的筛查。 | M33: 80
A34: √ | B34: 441257 | C34: 女性专项检查（已婚项目） | D34: 宫颈液基细胞检测(TCT) | G34: ★ | H34: 对宫颈癌前病变的筛查率在97%以上，还能了解宫颈炎性的改变及其他各类病毒感染引起的病变，如HPV感染等 | M34: 200
A35: √ | B35: 80694 | C35: 女性专项检查（已婚项目） | D35: HPV基因检测 | G35: ★ | H35: 检测是否HPV病毒感染，为早期宫颈癌和癌前病变提供诊断参考。 | M35: 350
A36: —36—
A37: √ | B37: 296 | C37: 女性专项检查（已婚项目） | D37: 电子阴道镜 | G37: ★ | H37: 直观、有效地发现宫颈糜烂、用于诊断癌症及其它妇科疾病和性疾病，建议中度以上宫颈糜烂患者常规进行阴道镜检查，该检查无任何创伤及副作用，对相关检查信息可以留存。 | M37: 100
A38: √ | B38: 全数字X光（DR）
A39: √ | B39: 005 | C39: ＤＲ摄影检查 | D39: 胸透（外检） | E39: ★ | F39: ★ | G39: ★ | H39: 检查心、肺、支气管、胸膜有无异常，最主要是发现肺结核。 | K39: 10 | L39: 10 | M39: 10
A40: √ | B40: 45744 | C40: ＤＲ摄影检查 | D40: 透环（外检） | G40: ★ | H40: 了解避孕环在子宫腔内的位置是否正常、是否脱落等 | M40: 13
A41: √ | B41: 80644 | C41: ＤＲ摄影检查 | D41: 胸部正位片 | E41: ★ | F41: ★ | G41: ★ | H41: 有无肺部疾病及心脏、主动脉、纵膈、横膈疾病等。 | K41: 55 | L41: 55 | M41: 55
A42: √ | B42: 80685 | C42: ＤＲ摄影检查 | D42: 胸部正侧位片 | E42: ★ | F42: ★ | G42: ★ | H42: 可提示心、肺、大血管和横隔位置，心脏肥大、肺炎、肺结核、支气管扩张、肺占位病变等。 | K42: 110 | L42: 110 | M42: 110
A43: √ | B43: 76723 | C43: ＤＲ摄影检查 | D43: 颈椎侧位片 | E43: ★ | F43: ★ | G43: ★ | H43: 可提示颈椎曲度是否改变，椎间隙是否变窄，有无骨质增生或韧带钙化。 | K43: 40 | L43: 40 | M43: 40
A44: √ | B44: 80646 | C44: ＤＲ摄影检查 | D44: 颈椎正侧位片 | E44: ★ | F44: ★ | G44: ★ | H44: 颈椎正侧位片检查可以显示颈椎关节有无明显改变，颈椎曲度是否改变，椎间隙是否变窄，有无骨质增生或韧带钙化，斜位摄片有无椎间孔变小。 | K44: 80 | L44: 80 | M44: 80
A45: √ | B45: 80653 | C45: ＤＲ摄影检查 | D45: 腰椎侧位片 | E45: ★ | F45: ★ | G45: ★ | H45: 了解椎体曲度、椎体异常改变、腰骶角大小等。 | K45: 40 | L45: 40 | M45: 40
A46: √ | B46: 80649 | C46: ＤＲ摄影检查 | D46: 腰椎正侧位片 | E46: ★ | F46: ★ | G46: ★ | H46: 正位片可提示腰椎、横突、椎间隙等是否有异常改变；侧位片了解椎体曲度、椎体异常改变、腰骶角大小等。 | K46: 80 | L46: 80 | M46: 80
A47: √ | B47: 80671 | C47: ＤＲ摄影检查 | D47: 副鼻窦柯氏位片 | E47: ★ | F47: ★ | G47: ★ | H47: 了解副鼻窦的各类炎症及病理性改变； | K47: 40 | L47: 40 | M47: 40
A48: √ | B48: 80670 | C48: ＤＲ摄影检查 | D48: 副鼻窦瓦特氏位片 | E48: ★ | F48: ★ | G48: ★ | K48: 40 | L48: 40 | M48: 40
A49: √ | C49: ＤＲ摄影检查 | D49: 各关节及骨骼的正侧位片 | E49: ★ | F49: ★ | G49: ★ | H49: 各关节及骨骼的增生、骨折、炎性、肿瘤等异常病变与损伤。 | K49: 80 | L49: 80 | M49: 80
A50: √ | B50: 黑白B超检查（仅限于外检套餐使用）
A51: √ | B51: 45757 | C51: B超检查 | D51: 肝胆脾胰B超 | E51: ★ | F51: ★ | G51: ★ | H51: 检查肝脏、胆囊、胆管、脾脏等是否具有异常病变发生。 | K51: 60 | L51: 60 | M51: 60
A52: √ | B52: 45758 | C52: B超检查 | D52: 肝胆脾B超 | E52: ★ | F52: ★ | G52: ★ | H52: 检查肝脏、胆囊、胆管、脾脏、肾等是否具有异常病变发生。 | K52: 60 | L52: 60 | M52: 60
A53: √ | B53: 45767 | C53: B超检查 | D53: 双肾B超 | E53: ★ | F53: ★ | G53: ★ | H53: 检查诊断炎症、囊肿、肿瘤、结石、肾癌、游走肾等 | K53: 60 | L53: 60 | M53: 60
A54: √ | B54: 45768 | C54: B超检查 | D54: 双肾输尿管膀胱B超 | E54: ★ | F54: ★ | G54: ★ | H54: 检查诊断炎症、囊肿、肿瘤、结石、肾癌、游走肾、膀胱癌、膀胱畸形、输尿管膀胱积水等 | K54: 60 | L54: 60 | M54: 60
A55: √ | B55: 45777 | C55: B超检查 | D55: 子宫附件B超 | F55: ★ | G55: ★ | H55: 检查子宫、输卵管、卵巢等部位有无炎症及病变等 | L55: 60 | M55: 60
A56: √ | B56: 45787 | C56: B超检查 | D56: 前列腺B超 | E56: ★ | H56: 了解是否有前列腺疾病和肿瘤。 | K56: 60
A57: √ | B57: 高清彩色超声检查
A58: √ | B58: 45754 | C58: 彩色超声检查 | D58: 肝、胆、脾彩超 | E58: ★ | F58: ★ | G58: ★ | H58: 更清晰的诊断炎症、囊肿、肿瘤、结石、梗阻、血管瘤、肝硬化、脂肪肝等，提供高清晰度的动态彩色超声诊断图像 | K58: 90 | L58: 90 | M58: 90
B59: 441498 | C59: 彩色超声检查 | D59: 胰腺彩超 | E59: ★ | F59: ★ | G59: ★ | H59: 清晰的诊断胰腺形态的改变，提供的动态彩色超声诊断图像 | K59: 90 | L59: 90 | M59: 90
A60: √ | B60: 45758 | C60: 彩色超声检查 | D60: 肝、胆、脾、胰彩超 | E60: ★ | F60: ★ | G60: ★ | H60: 更清晰的诊断炎症、囊肿、肿瘤、结石、梗阻、血管瘤、肝硬化、脂肪肝等，提供高清晰度的动态彩色超声诊断图像 | K60: 90 | L60: 90 | M60: 90
A61: √ | B61: 76711 | C61: 彩色超声检查 | D61: 肝、胆、脾、胰、双肾彩超 | E61: ★ | F61: ★ | G61: ★ | H61: 更清晰的诊断炎症、囊肿、肿瘤、结石、梗阻及血管瘤、肝硬化、脂肪肝等，提供高清晰度的动态彩色超声诊断图像 | K61: 180 | L61: 180 | M61: 180
A62: √ | B62: 45765 | C62: 彩色超声检查 | D62: 双肾彩超 | E62: ★ | F62: ★ | G62: ★ | H62: 更清晰的检查肾癌、游走肾等是否异常病变发生 | K62: 90 | L62: 90 | M62: 90
A63: √ | B63: 45769 | C63: 彩色超声检查 | D63: 双肾、输尿管、膀胱彩超（女性阴道彩超不选此项目） | E63: ★ | F63: ★ | G63: ★ | H63: 检查诊断炎症、囊肿、肿瘤、结石、肾癌、游走肾、膀胱癌、膀胱畸形、输尿管膀胱积水等，提供高清晰度的动态彩色超声诊断图像 | K63: 90 | L63: 90 | M63: 90
A64: √ | B64: 45789 | C64: 彩色超声检查 | D64: 前列腺彩超 | E64: ★ | H64: 检查能较好的显示前列腺的形态、大小，对于前列腺增生、肥大、钙化等疾病具有诊断意义。提供高清晰度的动态彩色超声断层图像诊断。 | K64: 90
A65: √ | B65: 45778 | C65: 彩色超声检查 | D65: 子宫、附件彩超 | F65: ★ | G65: ★ | H65: 更清晰的观察子宫、卵巢、盆腔等生殖器是否有病变发生，如子宫肌瘤、囊肿等。 | L65: 90 | M65: 90
B66: 451077 | C66: 彩色超声检查 | D66: 阴道彩超（子宫、附件彩超） | H66: 更清晰的观察子宫、卵巢、盆腔等生殖器是否有病变发生，如子宫肌瘤、囊肿等。 | L66: 120 | M66: 120
A67: √ | B67: 451079 | C67: 彩色超声检查 | D67: 皮下包块（肿物）彩超 | E67: ★ | F67: ★ | G67: ★ | H67: 可提示皮下包块（肿物）的性质、大小及病变状况等 | K67: 90 | L67: 90 | M67: 90
A68: √ | B68: 451075 | C68: 彩色超声检查 | D68: 乳腺彩超① | F68: ★ | G68: ★ | H68: 可发现和鉴别乳腺炎、乳腺纤维瘤、囊性增生、小叶增生、乳腺癌等疾病 | L68: 90 | M68: 90
A69: √ | B69: 310 | C69: 彩色超声检查 | D69: 颈动脉彩超 | E69: ★ | F69: ★ | G69: ★ | H69: 了解颈部大动脉有无异常(如斑块、粥样硬化、狭窄)。 | K69: 90 | L69: 90 | M69: 90
A70: √ | B70: 314 | C70: 彩色超声检查 | D70: 甲状腺彩超 | E70: ★ | F70: ★ | G70: ★ | H70: 主要了解甲状腺瘤、甲亢、甲状腺结节等疾病形态学的改变 | K70: 90 | L70: 90 | M70: 90
A71: √ | B71: 451220 | C71: 彩色超声检查 | D71: 其他各部位及脏器的彩超 | E71: ★ | F71: ★ | G71: ★ | H71: 了解其部位及脏器形态、大小、结构回声、血流等异常病理性改变 | K71: 90 | L71: 90 | M71: 90
A72: —37—
A73: √ | B73: 45794 | C73: 彩色超声检查 | D73: 心脏彩超 | E73: ★ | F73: ★ | G73: ★ | H73: 心血管疾病的重要诊断方法。动态显示心腔内结构、心脏的搏动和血液流动，对先天性心脏病、心肌病、冠心病、心肌梗塞并发症及肺心病有较大的诊断价值。 | K73: 315 | L73: 315 | M73: 315
A74: √ | B74: 451074 | C74: 彩色超声检查 | D74: 心脏彩超+图文片 | E74: ★ | F74: ★ | G74: ★ | H74: 了解心脏各组成部分的形态以及功能状态，对心脏瓣膜疾病有较大的临床诊断意义。 | K74: 345 | L74: 345 | M74: 345
A75: √ | B75: 实验室检查
A76: √ | B76: 025 | C76: 血常规（三分类18项）(6月份将逐渐停止） | D76: 白细胞计数(WBC)、红细胞计数(RBC)、血红蛋白浓度(HGB)、血小板计数(PLT)、红细胞压积(HCT)、平均红细胞体积(MCV)、平均红细胞血红蛋白含量(MCH)、平均红细胞血红蛋白浓度(MCHC)、红细胞体积分布宽度(RDW)、血小板压积(PCT)、平均血小板体积(MPV)、血小板分布宽度(PDW)、中性粒细胞数目(Gran＃)、淋巴细胞数目(Lymph＃)、中间细胞数目(Mid＃)、中间细胞百分比(Mid%)、、中性粒细胞百分比(Gran%)、淋巴细胞百分比(LYM%) | E76: ★ | F76: ★ | G76: ★ | H76: 通过检测血液细胞的计数及不同种类细胞、成分的分类来反映身体状况，如：贫血、感染、血液系统疾病、物理化学因素损伤等。 | K76: 20 | L76: 20 | M76: 20
A77: √ | B77: 451109 | C77: 血常规（五分类22项） | D77: 白细胞计数(WBC)、红细胞计数(RBC)、血红蛋白浓度(HGB)、血小板计数(PLT)、红细胞压积(HCT)、平均红细胞体积(MCV)、平均红细胞血红蛋白含量(MCH)、平均红细胞血红蛋白浓度(MCHC)、红细胞体积分布宽度(RDW)、血小板压积(PCT)、平均血小板体积(MPV)、血小板分布宽度(PDW)、中性粒细胞数目(Gran＃)、淋巴细胞数目(Lymph＃)、中性粒细胞百分比(Gran%)、淋巴细胞百分比(LYM%)、嗜酸性粒细胞数目、嗜酸性粒细胞百分比、嗜碱性粒细胞数目、嗜碱性粒细胞百分比、单核细胞数目、单核细胞百分比 | E77: ★ | F77: ★ | G77: ★ | K77: 30 | L77: 30 | M77: 30
A78: √ | B78: 451036 | C78: 血流变（血粘度检测） | D78: 全血粘度低切150、全血粘度低切60、全血粘度低切10、毛细管血浆粘度、全血还原粘度（低切）、全血还原粘度（中切）、全血还原粘度（高切）、血沉、血沉方程K值、红细胞聚集指数、红细胞刚性指数、红细胞变形指数、红细胞电泳指数、红细胞压积、 | E78: ★ | F78: ★ | G78: ★ | H78: 监测是否存在高血压、高血脂、糖尿病、冠心病、心肌梗塞、血栓形成等危险因素。 | K78: 100 | L78: 100 | M78: 100
A79: √ | B79: 45886 | C79: 血型 | D79: ABO血型 | E79: ★ | F79: ★ | G79: ★ | H79: 红细胞血型分为O型、A型、B型、AB型等四型 | K79: 10 | L79: 10 | M79: 10
A80: √ | B80: 45903 | C80: RH血型 | D80: Rh血型(Rh) | E80: ★ | F80: ★ | G80: ★ | H80: 鉴定检查者血型 | K80: 30 | L80: 30 | M80: 30
A81: √ | B81: 肝功能
A82: √ | B82: 89581 | C82: 肝功能十二项 | D82: 丙氨酸氨基转移酶(ALT)、天门冬氨酸氨基转移酶(AST)、天冬/丙氨(AST/ALT)、谷氨酰转肽酶(GGT)、碱性磷酸酶(ALP)、总胆红素(TBIL)、直接胆红素(DBIL)、间接胆红素(IBIL)、总蛋白(TP)、白蛋白(ALB)、球蛋白(GLO)、白/球比值(A/G) | E82: ★ | F82: ★ | G82: ★ | H82: 通过对肝脏酶、蛋白、胆红素的检测，可反映肝细胞的合成功能情况，肝细胞实质受损情况，肝内、外胆道阻塞情况等。 | K82: 80 | L82: 80 | M82: 80
A83: √ | B83: 45932 | C83: 肝功能十项 | D83: 丙氨酸氨基转移酶(ALT)、天门冬氨酸氨基转移酶(AST)、天冬/丙氨(AST/ALT)、总胆红素(TBIL)、直接胆红素(DBIL)、间接胆红素(IBIL)、总蛋白(TP)、白蛋白(ALB)、球蛋白(GLO)、白/球比值(A/G) | E83: ★ | F83: ★ | G83: ★ | H83: 通过对肝脏酶、蛋白、胆红素的检测，可反映肝细胞的合成功能情况，肝细胞实质受损情况，肝内、外胆道阻塞情况等。 | K83: 70 | L83: 70 | M83: 70
A84: √ | B84: 323 | C84: 肝功能八项 | D84: 丙氨酸氨基转移酶(ALT)、天门冬氨酸氨基转移酶(AST)、谷氨酰转肽酶(GGT)、碱性磷酸酶(ALP)、总胆红素(TBIl)、直接胆红素(DBIL)、总蛋白(TP)、白蛋白（ALB） | E84: ★ | F84: ★ | G84: ★ | H84: 了解肝脏功能情况，是否有肝细胞损害，胆道梗阻、急慢性肝炎、脂肪肝、肝硬化等病症 | K84: 60 | L84: 60 | M84: 60
A85: √ | B85: 45946 | C85: 肝功能五项 | D85: 丙氨酸氨基转移酶(ALT)、天门冬氨酸氨基转移酶(AST)、白蛋白(ALB)、直接胆红素(DBIL)、总胆红素(TBIL) | E85: ★ | F85: ★ | G85: ★ | H85: 了解肝脏功能情况，是否有肝细胞损害、肝脏疾病及胆道疾病等病症 | K85: 35 | L85: 35 | M85: 35
A86: √ | B86: 286 | C86: 肝功能四项 | D86: 丙氨酸氨基转移酶(ALT)、天门冬氨酸氨基转移酶(AST)、谷氨酰转肽酶(GGT)、碱性磷酸酶(ALP) | E86: ★ | F86: ★ | G86: ★ | H86: 了解肝脏功能情况，是否有肝细胞损害、肝脏疾病及胆道疾病等病症 | K86: 30 | L86: 30 | M86: 30
A87: √ | B87: 76706 | C87: 肝功能三项 | D87: 丙氨酸氨基转移酶(ALT)、天门冬氨酸氨基转移酶(AST)、谷氨酰转肽酶(GGT) | E87: ★ | F87: ★ | G87: ★ | H87: 用于诊断肝细胞损伤、急慢性肝炎、酒精性肝炎、阻塞性黄疸等胆道系统疾病。GGT有助于判断肝硬化向肝癌方面的转变 | K87: 25 | L87: 25 | M87: 25
A88: √ | B88: 274 | C88: 肝功能二项 | D88: 丙氨酸氨基转移酶(ALT)、天门冬氨酸氨基转移酶(AST) | E88: ★ | F88: ★ | G88: ★ | H88: ALT与AST在肝细胞内的浓度较高，相结合可用于诊断各类肝脏性疾病。 | K88: 20 | L88: 20 | M88: 20
A89: √ | B89: 45979 | C89: 肝功能一项 | D89: 丙氨酸氨基转移酶(ALT) | E89: ★ | F89: ★ | G89: ★ | H89: 可检测急、慢性病毒性肝炎、酒精性肝病、肝癌、肝硬化、脂肪肝等。 | K89: 10 | L89: 10 | M89: 10
A90: √ | B90: 451137 | C90: 肝功能 | D90: 天门冬氨酸氨基转移酶(AST) | E90: ★ | F90: ★ | G90: ★ | H90: 可检测急、慢性病毒性肝炎、酒精性肝病、肝癌、肝硬化、脂肪肝、心肌梗死等。 | K90: 10 | L90: 10 | M90: 10
A91: √ | B91: 451138 | C91: 肝功能 | D91: 谷氨酰转肽酶(GGT) | E91: ★ | F91: ★ | G91: ★ | H91: 可检测胆道阻塞性疾病、急慢性肝炎、肝硬化、酒精性肝炎、脂肪肝、胰腺炎、胰腺肿瘤等。 | K91: 10 | L91: 10 | M91: 10
A92: √ | B92: 441408 | C92: 总胆汁酸 | D92: 总胆汁酸(TBA) | E92: ★ | F92: ★ | G92: ★ | H92: 增高见于急性肝炎、慢性活动性肝炎和胆汁淤积综合征 | K92: 30 | L92: 30 | M92: 30
A93: √ | B93: 441262 | C93: 胆碱脂酶 | D93: 胆碱脂酶（CHE） | H93: 用于有机磷中度，严重消耗性疾病，肝实质损伤等的检测 | K93: 20 | L93: 20 | M93: 20
A94: √ | B94: 451139 | C94: 肝功能 | D94: 碱性磷酸酶(ALP) | E94: ★ | F94: ★ | G94: ★ | H94: 用于检测肝胆系统疾病、黄疸的鉴别诊断、骨骼疾病等。 | K94: 10 | L94: 10 | M94: 10
A95: √ | B95: 325 | C95: 肝功能 | D95: 总胆红素(TBIL) | E95: ★ | F95: ★ | G95: ★ | H95: 用于黄疸性肝炎及各类溶血性黄疸的诊断与鉴别诊断。 | K95: 10 | L95: 10 | M95: 10
A96: —38—
A97: √ | B97: 330 | C97: 肝功能 | D97: 直接胆红素(DBIL) | E97: ★ | F97: ★ | G97: ★ | H97: 用于黄疸性肝炎及各类溶血性黄疸的诊断与鉴别诊断。 | K97: 5 | L97: 5 | M97: 5
A98: √ | B98: 451112 | C98: 肝功能 | D98: 白蛋白(ALB) | E98: ★ | F98: ★ | G98: ★ | H98: 检测肠道吸收障碍、营养不良、慢性消耗性疾病、肾病综合征、肝硬化等。 | K98: 5 | L98: 5 | M98: 5
A99: √ | B99: 45945 | C99: 肝功能 | D99: 谷草与谷丙比值 | E99: ★ | F99: ★ | G99: ★ | H99: 可检测急、慢性病毒性肝炎、酒精性肝病、肝癌、肝硬化、脂肪肝等。 | K99: 0 | L99: 0 | M99: 0
A100: √ | B100: 45998 | C100: 胆红素三项 | D100: 总胆红素(TBIL)、直接胆红素(DBIL)、间接胆红素(IBIL) | E100: ★ | F100: ★ | G100: ★ | H100: 用于黄疸性肝炎及各类溶血性黄疸的诊断与鉴别诊断。 | K100: 15 | L100: 15 | M100: 15
A101: √ | B101: 45999 | C101: 蛋白四项 | D101: 总蛋白(TP)、白蛋白(ALB)、球蛋白(GLO)、白/球比值(A/G) | E101: ★ | F101: ★ | G101: ★ | H101: 可检测肝脏疾病、营养不良、肾病综合征及慢性消耗性疾病、肠道吸收障碍、营养不良、慢性消耗性疾病、肾病综合征、肝硬化、慢性肝脏疾病、M球蛋白血症、自身免疫性疾病等。 | K101: 22 | L101: 22 | M101: 22
A102: √ | B102: 血脂
A103: √ | B103: 369 | C103: 血脂七项 | D103: 甘油三酯(TG)、总胆固醇(CHOL)、高密度脂蛋白（HDL）、低密度脂蛋白（LDL）、载脂蛋A1(ApoAI)、载脂蛋白B(APO-B)、脂蛋白a(LP-a) | E103: ★ | F103: ★ | G103: ★ | H103: 用于动脉粥样硬化、高血压、脑血管病、冠心病、糖尿病、肥胖与高脂血症、肾病综合症等预警及诊断。 | K103: 100 | L103: 100 | M103: 100
A104: √ | B104: 89582 | C104: 血脂五项 | D104: 载脂蛋A1(ApoAI)、载脂蛋白B(APO-B)、高密度脂蛋白（HDL）、低密度脂蛋白（LDL）、脂蛋白aLP（Lp-a） | E104: ★ | F104: ★ | G104: ★ | H104: 用于动脉粥样硬化、高血压、脑血管病、冠心病、糖尿病、肥胖与高脂血症、肾病综合症等预警及诊断。 | K104: 80 | L104: 80 | M104: 80
A105: √ | B105: 211 | C105: 血脂四项 | D105: 甘油三酯(TG)、总胆固醇(CHOL)、高密度脂蛋白（HDL）、低密度脂蛋白（LDL） | E105: ★ | F105: ★ | G105: ★ | H105: 用于评估受检者的脂肪代谢水平及血脂代谢紊乱评价、动脉粥样硬化性疾病危险性预测和营养学评价。 | K105: 40 | L105: 40 | M105: 40
A106: √ | B106: 76707 | C106: 血脂三项 | D106: 甘油三酯(TG)、总胆固醇(CHOL)、高密度脂蛋白（HDL） | E106: ★ | F106: ★ | G106: ★ | H106: 血脂浓度与心脑血管疾病关系密切，对诊断动脉硬化症，冠心病及肾病综合症有参考意义。 | K106: 30 | L106: 30 | M106: 30
A107: √ | B107: 451125 | C107: 血脂二项 | D107: 甘油三酯(TG)、总胆固醇(CHOL) | E107: ★ | F107: ★ | G107: ★ | H107: 血脂浓度与心脑血管疾病关系密切，对诊断动脉硬化症，冠心病及肾病综合症有参考意义。 | K107: 20 | L107: 20 | M107: 20
A108: √ | B108: 45980 | C108: 血脂一项 | D108: 甘油三脂（TG） | E108: ★ | F108: ★ | G108: ★ | H108: 血脂浓度与心脑血管疾病关系密切，对诊断动脉硬化症，冠心病及肾病综合症有参考意义。 | K108: 10 | L108: 10 | M108: 10
A109: √ | B109: 335 | C109: 血脂一项 | D109: 总胆固醇(CHOL) | E109: ★ | F109: ★ | G109: ★ | H109: 血脂浓度与心脑血管疾病关系密切，对诊断动脉硬化症，冠心病及肾病综合症有参考意义。 | K109: 10 | L109: 10 | M109: 10
A110: √ | B110: 441233 | C110: 血脂一项 | D110: 低密度脂蛋白（LDL） | E110: ★ | F110: ★ | G110: ★ | H110: 血脂浓度与心脑血管疾病关系密切，对诊断动脉硬化症，冠心病及肾病综合症有参考意义。 | K110: 10 | L110: 10 | M110: 10
A111: √ | B111: 451135 | C111: 载脂蛋白A(APO-A) | D111: 载脂蛋白A1(ApoAI) | E111: ★ | F111: ★ | G111: ★ | H111: 是诊断冠心病的灵敏指标。 | K111: 20 | L111: 20 | M111: 20
A112: √ | B112: 376 | C112: 载脂蛋白B(APO-B) | D112: 载脂蛋白B(APO-B) | E112: ★ | F112: ★ | G112: ★ | H112: 是检测动脉粥样硬化及诊断冠心病的灵敏指标。 | K112: 20 | L112: 20 | M112: 20
A113: √ | B113: 肾功能
A114: √ | B114: 451124 | C114: 肾功能三项 | D114: 尿素（Urea）、肌酐（CR）、尿酸（UA） | E114: ★ | F114: ★ | G114: ★ | H114: 主要用于了解肾功能异常，痛风，尿酸偏高等。 | K114: 30 | L114: 30 | M114: 30
A115: √ | B115: 451123 | C115: 肾功能二项 | D115: 尿素（Urea）、肌酐（CR） | E115: ★ | F115: ★ | G115: ★ | H115: 尿素氮(Urea)是肾脏滤过代谢的最终产物，当肾细胞损害时，体内代谢产物堆积，此时血清中之尿素氮数值升高；肌酐(CR)检测肾脏的滤过功能。用于筛查急慢性肾炎、尿毒症、肾衰竭等疾病 | K115: 20 | L115: 20 | M115: 20
A116: √ | B116: 451130 | C116: 肌酐 | D116: 肌酐（CR） | E116: ★ | F116: ★ | G116: ★ | H116: 肌酐（CR）检测肾脏的排泄功能 | K116: 10 | L116: 10 | M116: 10
A117: √ | B117: 451133 | C117: 尿素(Urea) | D117: 尿素(Urea) | E117: ★ | F117: ★ | G117: ★ | H117: 尿素氮(Urea)是肾脏滤过代谢的最终产物，当肾细胞损害时，体内代谢产物堆积，此时血清中之尿素氮数值升高； | K117: 10 | L117: 10 | M117: 10
A118: √ | B118: 350 | C118: 尿酸 | D118: 尿酸（UA） | E118: ★ | F118: ★ | G118: ★ | H118: 尿酸增高提示痛风、肾功下降、代谢综合征及尿酸类肾结石等疾病存在的可能。 | K118: 10 | L118: 10 | M118: 10
A119: √ | B119: 451111 | C119: 尿微量白蛋白 | D119: 尿微量白蛋白（U-ALb） | E119: ★ | F119: ★ | G119: ★ | H119: 是预测糖尿病、高血压、心血管疾病肾血管损伤的敏感指标,，也是早期肾损伤的金标准。 | K119: 80 | L119: 80 | M119: 80
B120: 441316 | C120: ACR(早期肾功能筛查) | D120: 尿微量白蛋白（U-ALb） | E120: ★ | F120: ★ | G120: ★ | H120: 是预测糖尿病、高血压、心血管疾病肾血管损伤的敏感指标,，也是早期肾损伤的金标准。某一点段的尿液微量白蛋白检测易受其他因素的干扰，导致假阴性或假阳性，如果用尿肌酐做校正可消除尿量对尿微量白蛋白排量的影响，因此ACR能更准确地反映肾功能状态。 | K120: 80 | L120: 80 | M120: 80
D121: 尿肌酐（Cr） | E121: ★ | F121: ★ | G121: ★
D122: ACR=U-ALb/Cr | E122: ★ | F122: ★ | G122: ★
A123: √ | B123: 441263 | C123: 视黄醇结合蛋白 | D123: 视黄醇结合蛋白（RBP） | H123: 评价肾脏疾病，特别是肾小管损伤的良好指标，还可作为肝功能早期损害和监护治疗的指标。 | K123: 80 | L123: 80 | M123: 80
A124: √ | B124: 344 | C124: 胱抑素 | D124: 胱抑素C | E124: ★ | F124: ★ | G124: ★ | H124: 血浆胱抑素C是检测肾功能较稳定的指标，不易受其它因素的影响,且诊断准确性明显优于血清肌酐。对评估老年人肾功能异常时较肌酐更有意义。 | K124: 80 | L124: 80 | M124: 80
A125: √ | B125: 甲状腺功能
A126: √ | B126: 45824 | C126: 甲状腺功能七项 | D126: 促甲状腺激素（TSH）、三碘甲腺原氨酸（T3）、甲状腺素（T4）、游离三碘甲状原氨酸(FT3)、游离甲状腺素检测(FT4)、甲状腺球蛋白(TG)、甲状腺球蛋白抗体TGA | E126: ★ | F126: ★ | G126: ★ | H126: 是甲状腺机能亢进或减退，及其他各类急慢性甲状腺疾病的诊断指标 | K126: 420 | L126: 420 | M126: 420
A127: √ | B127: 451086 | C127: 甲状腺功能五项 | D127: 促甲状腺激素（TSH）、三碘甲腺原氨酸（T3）、甲状腺素（T4）、游离三碘甲状原氨酸(FT3)、游离甲状腺素检测(FT4) | E127: ★ | F127: ★ | G127: ★ | H127: 是甲状腺机能亢进或减退，及其他甲状腺疾病的诊断指标 | K127: 315 | L127: 315 | M127: 315
A128: √ | B128: 441499 | C128: 甲状腺功能四项 | D128: 促甲状腺激素（TSH）、游离三碘甲状原氨酸(FT3)、游离甲状腺素检测(FT4、甲状腺球蛋白(TG) | E128: ★ | F128: ★ | G128: ★ | H128: 检查甲状腺功能，甲亢、甲低的辅助诊断以及桥本氏病，甲状腺癌术后转移，突眼甲状腺炎、亚急性甲状腺炎活动期等 | K128: 240 | L128: 240 | M128: 240
A129: √ | B129: 451108 | C129: 游离甲状腺功能三项 | D129: 促甲状腺激素（TSH）、游离三碘甲状原氨酸(FT3)、游离甲状腺素检测(FT4) | E129: ★ | F129: ★ | G129: ★ | H129: 是甲状腺机能亢进或减退，及其他甲状腺疾病的诊断指标 | K129: 190 | L129: 190 | M129: 190
A130: —39—
A131: √ | B131: 45766 | C131: 甲状腺功能二项 | D131: 三碘甲腺原氨酸（T3）、甲状腺素（T4） | E131: ★ | F131: ★ | G131: ★ | H131: 用于评价甲状腺功能及甲状腺疾病 | K131: 130 | L131: 130 | M131: 130
A132: √ | B132: 451085 | C132: 甲状腺功能 | D132: 促甲状腺素(TSH) | E132: ★ | F132: ★ | G132: ★ | H132: 检查甲状腺功能，甲亢、甲低的辅助诊断 | K132: 65 | L132: 65 | M132: 65
A133: √ | B133: 451098 | C133: 甲状腺功能 | D133: 游离三碘甲状原氨酸(FT3) | E133: ★ | F133: ★ | G133: ★ | H133: 检查甲状腺功能，甲亢、甲低的辅助诊断 | K133: 65 | L133: 65 | M133: 65
A134: √ | B134: 451097 | C134: 甲状腺功能 | D134: 游离甲状腺素检测(FT4) | E134: ★ | F134: ★ | G134: ★ | H134: 检查甲状腺功能，甲亢、甲低的辅助诊断 | K134: 65 | L134: 65 | M134: 65
A135: √ | B135: 66471 | C135: 甲状腺球蛋白（TG) | D135: 甲状腺球蛋白(TG) | E135: ★ | F135: ★ | G135: ★ | H135: 见于桥本氏病，甲状腺癌术后转移，甲状腺功能亢进、，甲状腺功能减退、突眼甲状腺炎、亚急性甲状腺炎活动期等，TG升高 | K135: 46 | L135: 46 | M135: 46
A136: √ | B136: 肝炎标志物
A137: √ | B137: 451142 | C137: 乙肝表面抗原(HBsAg)定性（自选项目） | D137: 乙肝表面抗原(HBsAg) | E137: ★ | F137: ★ | G137: ★ | H137: HBsAg阳性是感染乙肝病毒的指标 | K137: 7 | L137: 7 | M137: 7
A138: √ | B138: 451144 | C138: 乙肝表面抗体(HBsAb)定性（自选项目） | D138: 乙肝表面抗体(HBsAb) | E138: ★ | F138: ★ | G138: ★ | H138: 检测体内是否有乙肝病毒保护性抗体 | K138: 7 | L138: 7 | M138: 7
A139: √ | B139: 451103 | C139: 乙肝e抗原(HBeAg)定性（自选项目） | D139: 乙肝e抗原(HBeAg) | E139: ★ | F139: ★ | G139: ★ | H139: 是乙型肝炎病毒感染和传染性大小的指标；也是乙型肝炎治疗后观察疗效的指标。 | K139: 7 | L139: 7 | M139: 7
A140: √ | B140: 45978 | C140: 乙肝六项定性（自选项目） | D140: 乙肝表面抗原(HBsAg)、乙肝表面抗体(HBsAb)、乙肝e抗原(HBeAg)、乙肝e抗体(HBeAb)、乙肝核心抗体(HBcAb)、乙肝核心IgM抗体定性 | E140: ★ | F140: ★ | G140: ★ | H140: 检测急性乙型肝炎，慢性迁延性肝炎，慢性活动性肝炎，HBsAg携带者，乙肝疫苗接种后是否出现抗体。 | K140: 65 | L140: 65 | M140: 65
A141: √ | B141: 278 | C141: 乙肝五项定性（自选项目） | D141: 乙肝表面抗原(HBsAg、乙肝表面抗体(HBsAb)、乙肝e抗原(HBeAg)、乙肝e抗体(HBeAb)、乙肝核心抗体(HBcAb) | E141: ★ | F141: ★ | G141: ★ | H141: 检测急性乙型肝炎，慢性迁延性肝炎，慢性活动性肝炎，HBsAg携带者，乙肝疫苗接种后是否出现抗体。 | K141: 40 | L141: 40 | M141: 40
A142: √ | B142: 45977 | C142: 乙肝二项定性（自选项目） | D142: 乙肝表面抗原(HBsAg)、乙肝表面抗体(HBsAb) | E142: ★ | F142: ★ | G142: ★ | H142: 检测体内是否感染乙肝病毒或体内是否产生乙肝病毒保护性抗体 | K142: 14 | L142: 14 | M142: 14
A143: √ | B143: 441235 | C143: 乙肝表面抗原(HBsAg)定量（自选项目） | D143: 乙肝表面抗原(HBsAg) | E143: ★ | F143: ★ | G143: ★ | H143: 是检测乙肝病毒在体内的含量 | K143: 80 | L143: 80 | M143: 80
A144: √ | B144: 441236 | C144: 乙肝表面抗体(HBsAb)定量（自选项目） | D144: 乙肝表面抗体(HBsAb) | E144: ★ | F144: ★ | G144: ★ | H144: 检测乙肝病毒保护性抗体在体内的含量 | K144: 80 | L144: 80 | M144: 80
A145: √ | B145: 451102 | C145: 乙肝e抗原(HBeAg)定量（自选项目） | D145: 乙肝e抗原(HBeAg) | E145: ★ | F145: ★ | G145: ★ | H145: 是乙型肝炎病毒感染和传染性大小的指标；也是乙型肝炎治疗后观察疗效的指标定量检测。 | K145: 80 | L145: 80 | M145: 80
A146: √ | B146: 45801 | C146: 乙肝标志物定量（五项）（自选项目） | D146: 乙肝表面抗原定量(HBsAg)、乙肝表面抗体定量(HBsAb)、乙肝e抗原(HBeAg)定量、乙肝e抗体(HBeAb)定量、乙肝核心抗体(HBcAb)定量 | E146: ★ | F146: ★ | G146: ★ | H146: 是急性乙型肝炎，慢性迁延性肝炎，慢性活动性肝炎，HBsAg携带者，乙肝疫苗接种后是否出现抗体的定量检测，也是乙型肝炎病毒传染性大小及治疗后观察疗效的指标。 | K146: 300 | L146: 300 | M146: 300
A147: √ | B147: 45811 | C147: 乙肝标志物定量检测（1.3.5） | D147: 乙肝表面抗原定量(HBsAg)、乙肝e抗原(HBeAg)定量、乙肝核心抗体(HBcAb)定量 | E147: ★ | F147: ★ | G147: ★ | H147: 是急性乙型肝炎，慢性活动性肝炎的定量检测，也是乙型肝炎病毒传染性大小及治疗后观察疗效的指标。 | K147: 180 | L147: 180 | M147: 180
A148: √ | B148: 451105 | C148: 乙肝标志物定量检测（1.4.5） | D148: 乙肝表面抗原定量(HBsAg)、乙肝e抗体(HBeAb)定量、乙肝核心抗体(HBcAb)定量 | E148: ★ | F148: ★ | G148: ★ | H148: 是慢性迁延性肝炎，慢性活动性肝炎的定量检测，也是乙型肝炎病毒传染性大小及治疗后观察疗效的指标。 | K148: 180 | L148: 180 | M148: 180
A149: √ | B149: 45812 | C149: 乙肝标志物定量检测（1.2.5） | D149: 乙肝表面抗原定量(HBsAg)、乙肝表面抗体定量(HBsAb)、乙肝核心抗体(HBcAb)定量 | E149: ★ | F149: ★ | G149: ★ | H149: 是检测体内乙肝病毒或乙肝病毒保护性抗体及核心抗体的含量 | K149: 180 | L149: 180 | M149: 180
A150: √ | B150: 451005 | C150: 乙肝DNA定量（自选项目） | D150: 乙肝DNA定量 | E150: ★ | F150: ★ | G150: ★ | H150: 通过基因检测了解乙肝病毒在体内的复制情况和传染程度 | K150: 180 | L150: 180 | M150: 180
A151: √ | B151: 229 | C151: 甲肝抗体定性 | D151: 甲肝抗体检测IgM(HAV-Ab-IgM) | E151: ★ | F151: ★ | G151: ★ | H151: 是急性甲型病毒感染的重要标志物 | K151: 20 | L151: 20 | M151: 20
A152: √ | B152: 230 | C152: 丙肝抗体定性 | D152: 丙肝抗体检测(HCV-Ab) | E152: ★ | F152: ★ | G152: ★ | H152: 是诊断丙型肝炎病毒感染的重要标志物 | K152: 36 | L152: 36 | M152: 36
A153: √ | B153: 451120 | C153: 戊肝抗体定性(HEV-Ab：IgM) | D153: 戊肝抗体检测(HEV-Ab) | E153: ★ | F153: ★ | G153: ★ | H153: 是诊断戊型肝炎病毒感染的重要标志物 | K153: 60 | L153: 60 | M153: 60
B154: 451120 | C154: 戊肝抗体定性(HEV-Ab：IgG) | D154: 戊肝抗体检测(HEV-Ab) | E154: ★ | F154: ★ | G154: ★ | H154: 是诊断戊型肝炎病毒感染的重要标志物 | K154: 60 | L154: 60 | M154: 60
A155: √ | B155: 451121 | C155: 丁肝抗体定性检测(HDV-Ab：IgM) | D155: 丁肝抗体检测(HDV-Ab) | E155: ★ | F155: ★ | G155: ★ | H155: 是诊断丁型肝炎病毒感染的重要标志物 | K155: 45 | L155: 45 | M155: 45
A156: √ | B156: 451154 | C156: 丙肝病毒定量RNA | D156: 丙肝病毒定量(HCV-RNA) | E156: ★ | F156: ★ | G156: ★ | H156: 用于确定感染、指导治疗和判断应答 | K156: 160 | L156: 160 | M156: 160
A157: √ | B157: 45967 | C157: 肝病毒抗体定性四项 | D157: 甲肝抗体检测IgM(HAV-Ab-IgM)、丙肝抗体检测(HCV-Ab)、戊肝抗体定性检测(HEV-Ab：IgM)、丁肝抗体定性检测(HDV-Ab：IgM) | E157: ★ | F157: ★ | G157: ★ | H157: 甲、丙、丁、戊型肝炎的筛查及诊断 | K157: 160 | L157: 160 | M157: 160
A158: √ | B158: 糖尿病检测及胰功能检测
A159: √ | B159: 45924 | C159: 糖尿病三项 | D159: 血糖(Glu)、糖化血红蛋白（GHB）、尿微量白蛋白（U-ALb） | E159: ★ | F159: ★ | G159: ★ | H159: 用于签别糖尿病及糖尿病患者病症状况。尿微量白蛋白是预测糖尿病、高血压、心血管疾病、肾脏损伤的敏感指标 | K159: 180 | L159: 180 | M159: 180
A160: √ | B160: 45988 | C160: 糖耐量试验 | D160: 血糖、血糖(餐后30分钟)、血糖(餐后1小时)、血糖(餐后2小时)、血糖(餐后3小时) | E160: ★ | F160: ★ | G160: ★ | H160: 用以了解胰岛β细胞功能和机体对血糖的调节能力，是诊断糖尿病的确诊试验 | K160: 50 | L160: 50 | M160: 50
A161: √ | B161: 441277 | C161: 血淀粉酶（有单请提前通知医务部） | D161: 血清淀粉酶（AMY） | H161: 主要用于急性胰腺炎的诊断。口服避孕药、可待因、吗啡、麻醉药、磺胺以及唾液污染标本会使标本测定结果偏低 | K161: 30 | L161: 30 | M161: 30
A162: √ | B162: 046 | C162: 血糖 | D162: 血糖②(GLU) | E162: ★ | F162: ★ | G162: ★ | H162: 从血糖水平了解是否有低血糖、糖尿病.了解血糖控制情况等 | K162: 10 | L162: 10 | M162: 10
A163: —40—
A164: √ | B164: 451126 | C164: 血糖(餐后30分) | D164: 血糖(餐后30分钟) | E164: ★ | F164: ★ | G164: ★ | H164: 是诊断和发现糖尿病的另一种重要辅助诊断方法。 | K164: 10 | L164: 10 | M164: 10
A165: √ | B165: 451127 | C165: 血糖(餐后1小时) | D165: 血糖(餐后1小时) | E165: ★ | F165: ★ | G165: ★ | H165: 是诊断和发现糖尿病的另一种重要辅助诊断方法。 | K165: 10 | L165: 10 | M165: 10
A166: √ | B166: 451128 | C166: 血糖(餐后2小时) | D166: 血糖(餐后2小时) | E166: ★ | F166: ★ | G166: ★ | H166: 是诊断和发现糖尿病的另一种重要辅助诊断方法。 | K166: 10 | L166: 10 | M166: 10
A167: √ | B167: 451129 | C167: 血糖(餐后3小时) | D167: 血糖(餐后3小时) | E167: ★ | F167: ★ | G167: ★ | H167: 是诊断和发现糖尿病的另一种重要辅助诊断方法。 | K167: 10 | L167: 10 | M167: 10
A168: √ | B168: 451115 | C168: 糖化血红蛋白(GHB) | D168: 糖化血红蛋白②(GHb) | E168: ★ | F168: ★ | G168: ★ | H168: 是糖尿病诊断和监控的评价指标，通常可以反映糖尿病患者近8～12周的血糖控制情况。 | K168: 90 | L168: 90 | M168: 90
A169: √ | B169: 451095 | C169: 胰岛素(Ins) | D169: 胰岛素测定(INS) | E169: ★ | F169: ★ | G169: ★ | H169: 空腹胰岛素测定，是用于糖尿病类型鉴别诊断的指标 | K169: 70 | L169: 70 | M169: 70
A170: √ | B170: 451134 | C170: 胰岛素抗体(INS-Ab) | D170: 胰岛素抗体(INS-Ab) | E170: ★ | F170: ★ | G170: ★ | H170: 指导选用胰岛素的剂型和用量 | K170: 40 | L170: 40 | M170: 40
A171: √ | B171: 45927 | C171: C肽 | D171: C-肽测定(C-P) | E171: ★ | F171: ★ | G171: ★ | H171: 用于糖尿病分型，评估胰岛β细胞功能等 | K171: 50 | L171: 50 | M171: 50
A172: √ | B172: 451161 | C172: C肽(餐后两小时) | D172: C肽(餐后两小时) | E172: ★ | F172: ★ | G172: ★ | H172: 用于糖尿病分型，评估胰岛β细胞功能等 | K172: 50 | L172: 50 | M172: 50
A173: √ | B173: 451162 | C173: 果糖胺(FMN) | D173: 果糖胺(FMN) | E173: ★ | F173: ★ | G173: ★ | H173: 果糖胺是测定可反映患者过去1-2周内平均血糖水平 | K173: 60 | L173: 60 | M173: 60
A174: √ | B174: 45828 | C174: 胰功能三项 | D174: 胰岛素测定(INS)、胰岛素抗体(INS-Ab)、C-肽测定(C-P) | E174: ★ | F174: ★ | G174: ★ | H174: 了解胰脏的功能状态 | K174: 153 | L174: 153 | M174: 153
A175: √ | B175: 心功能检测
A176: √ | B176: 45911 | C176: 心功能二项 | D176: 乳酸脱氢酶(LDH)、肌酸激酶(CK) | E176: ★ | F176: ★ | G176: ★ | H176: 用于心肌梗塞、心肌炎、皮肌炎等的辅助诊断 | K176: 25 | L176: 25 | M176: 25
A177: √ | B177: 45899 | C177: 心功能六项 | D177: 天门冬氨酸氨基转移酶②(AST)、乳酸脱氢酶(LDH)、肌酸激酶(CK)、肌酸激酶同工酶(CK-MB)、乳酸脱氢酶同工酶(LDH-1)、α-羟丁酸脱氢酶(α-HBDH) | E177: ★ | F177: ★ | G177: ★ | H177: 用于心肌梗塞、心肌炎、皮肌炎等的辅助诊断 | K177: 100 | L177: 100 | M177: 100
A178: √ | B178: 66422 | C178: 肌酸激酶 | D178: 肌酸激酶(CK) | E178: ★ | F178: ★ | G178: ★ | H178: 常用于骨骼肌、心肌、脑组织这些疾病的诊断。 | K178: 15 | L178: 15 | M178: 15
A179: √ | B179: 451000 | C179: 肌酸激酶同工酶 | D179: 肌酸激酶同工酶(CK-MB) | E179: ★ | F179: ★ | G179: ★ | H179: 诊断及监测AMI病人病情敏感而特异的指标。 | K179: 30 | L179: 30 | M179: 30
A180: √ | B180: 451131 | C180: 心肌酶谱 | D180: 乳酸脱氢酶(LDH) | E180: ★ | F180: ★ | G180: ★ | H180: 用于心肌梗塞、心肌炎、肌肉损伤等辅助诊断。 | K180: 10 | L180: 10 | M180: 10
A181: √ | B181: 451132 | C181: 心肌酶谱 | D181: α-羟丁酸脱氢酶(α-HBDH) | E181: ★ | F181: ★ | G181: ★ | H181: 用于心肌梗塞、心肌炎、肌肉损伤等辅助诊断。 | K181: 11 | L181: 11 | M181: 11
A182: √ | B182: 心脑功能检测
A183: √ | B183: 66447 | C183: 肌红蛋白 | D183: 肌红蛋白(Mb) | E183: ★ | F183: ★ | G183: ★ | H183: 判断有无再灌的较敏感而准确的指标,是AMI的早期诊断标志物,能用于判断再梗死。 | K183: 140 | L183: 140 | M183: 140
B184: 441384 | C184: 肌钙蛋白 | D184: 肌钙蛋白（TPI) | E184: ★ | F184: ★ | G184: ★ | H184: 是AMI最理想的标志物,当心肌损伤，TPI在4-6小时后在血液中升高，在体内可持续6-10天，有较高的特异性与敏感性。 | K184: 69 | L184: 69 | M184: 69
A185: √ | B185: 66445 | C185: 心脑血管危险因子一项 | D185: 同型半胱氨酸（HCY） | E185: ★ | F185: ★ | G185: ★ | H185: 用于冠心病、动脉硬化、心梗、脑梗等的早期预警。 | K185: 100 | L185: 100 | M185: 100
A186: √ | B186: 66446 | C186: 心脑血管危险因子一项 | D186: 脂蛋白a(LP-a) | E186: ★ | F186: ★ | G186: ★ | H186: 可评定动脉粥样硬化。 | K186: 50 | L186: 50 | M186: 50
A187: √ | B187: 254 | C187: 心脑血管危险因子二项 | D187: 同型半胱氨酸（HCY）、脂蛋白a(LP-a) | E187: ★ | F187: ★ | G187: ★ | H187: 对预防中风、冠心病、栓塞、动脉粥样硬化等老年易发病等具有重要作用。 | K187: 150 | L187: 150 | M187: 150
A188: √ | B188: 441280 | C188: 髓过氧化物酶（MPO) | D188: 髓过氧化物酶（MPO) | H188: MPO水平的升高不仅与患冠状动脉疾病易感性相关，还可以预测早期患心肌梗死的危险性及将来发生心血管事件危险性较高的患者。 | K188: 180 | L188: 180 | M188: 180
A189: √ | B189: 无单项 | C189: 脂蛋白相关磷脂酶 A 2 （Lp-PLA 2 ） | D189: 脂蛋白相关磷脂酶 A 2 （Lp-PLA 2 ） | E189: ★ | F189: ★ | G189: ★ | H189: 检测心脑血管疾病的中、短期指标，能够直接反映动脉粥样硬化斑块的不稳定性；预警/预测斑块的形成与破裂，是心血管不良事件的独立危险因子；不受其它炎症性疾病的影响。另外，这项检测对患者的治疗与复发有预后评估的功能。 | K189: 270 | L189: 270 | M189: 270
A190: √ | B190: 441462 | C190: 超敏 C 反应蛋白 （hs-CRP） | D190: 超敏 C 反应蛋白 （hs-CRP） | E190: ★ | F190: ★ | G190: ★ | H190: 作为炎症标志物，能反映心血管疾病的严重性和致命性；用以评价冠状血管炎症病变造成的心肌缺血程度；预示动脉粥样斑块是否稳定。 | K190: 40 | L190: 40 | M190: 40
A191: √ | B191: 441442 | C191: 心脑血管危险因子三项 | D191: Lp-PLA2、MPO、hs-CRP | E191: ★ | F191: ★ | G191: ★ | H191: 在心脑血管炎症的发生、斑块的形成、稳定斑块演变成易损斑块、易损斑块破裂形成血栓的过程中，脂蛋白相关磷脂酶 A 2 及髓过氧化物酶直接反映斑块的不稳定性；超敏 C 反应蛋白出现在一个相对较早期的阶段，反映炎症的严重度，对易损斑块的形成有着预示作用；对于心梗、脑梗的预警、预防和预后评估可增加准确性和实用意义，显著地大于仅做了三项检测中的任何单项检测的结果。 | K191: 450 | L191: 450 | M191: 450
A192: √ | B192: 风湿、类风湿疾病
A193: √ | B193: 451020 | C193: 风湿、类风湿疾病 | D193: 血沉①(ESR) | E193: ★ | F193: ★ | G193: ★ | H193: 又称红细胞沉降率，严重贫血、结核和风湿活动期、炎性疾病或急性感染、恶性肿瘤等可使血沉值增高。 | K193: 10 | L193: 10 | M193: 10
A194: √ | B194: 451143 | C194: 风湿、类风湿疾病 | D194: 抗'O'定量 | E194: ★ | F194: ★ | G194: ★ | H194: 抗链“O”增高提示链球菌感染 | K194: 40 | L194: 40 | M194: 40
A195: √ | B195: 414 | C195: 风湿、类风湿疾病 | D195: C反应蛋白(CRP)定量 | E195: ★ | F195: ★ | G195: ★ | H195: 用于各种急慢性感染、组织坏死、恶性肿瘤等筛查。 | K195: 40 | L195: 40 | M195: 40
A196: √ | B196: 400 | C196: 风湿、类风湿疾病 | D196: 类风湿因子(RF)定量 | E196: ★ | F196: ★ | G196: ★ | H196: 类风湿性关节炎的筛查。 | K196: 30 | L196: 30 | M196: 30
A197: —41—
A198: √ | B198: 241 | C198: 风湿三项定量 | D198: 抗链“O”定量（ASO）、C反应蛋白定量（CRP）、类风湿因子定量（RF） | E198: ★ | F198: ★ | G198: ★ | H198: 检查是否有风湿活动和类风湿性病变 | K198: 110 | L198: 110 | M198: 110
A199: √ | B199: 451176 | C199: 风湿四项 | D199: 血沉（ESR）、抗链“O”定量（ASO）、C反应蛋白定量（CRP）、类风湿因子定量（RF） | E199: ★ | F199: ★ | G199: ★ | H199: 检查是否有风湿活动和类风湿性病变 | K199: 120 | L199: 120 | M199: 120
A200: √ | B200: 骨检测
... 275 more rows

Sheet 附件9福华套餐
A1: 附件9
A2: 2018年福华健康管理中心律师体检套餐
A4: 序号 | B4: 项目类别 | C4: 编码 | D4: 体检项目 | E4: 体检内容 | F4: 临床意义 | G4: 男性 | H4: 未婚 女性 | I4: 已婚 女性
A5: 1 | B5: 常规检查 | C5: 1002 | D5: 身高、体重、体重指数 | E5: 身高、体重、体重指数 | F5: 检查有无发育不良，超重，肥胖等。 | G5: 10 | H5: 10 | I5: 10
A6: 2 | C6: 2001 | D6: 常规检查（含内、外科）（男） | E6: 既往病史、心脏(内科)、肺部、腹部、甲状腺(外科)、浅表淋巴结、皮肤、脊柱、神经反射：膝反射、四肢关节、肛门、直肠指诊、外生殖器、其它 | F6: 通过视、触、叩、听体格检查方法，检查心、肺、肝、脾等重要脏器及神经系统基本状况，发现内科常见疾病的重要征兆，或初步排除常见疾病。 | G6: 10 | H6: - | I6: -
A7: 3 | C7: 2004 | D7: 常规检查（含内、外科）（女） | E7: 既往病史、心脏(内科)、肺部、腹部、乳房、甲状腺(外科)、浅表淋巴结、皮肤、脊柱、神经反射：膝反射、四肢关节、肛门、直肠指诊、其它 | F7: 通过视、触、叩、听体格检查方法，检查心、肺、肝、脾等重要脏器及神经系统基本状况，发现内科常见疾病的重要征兆，或初步排除常见疾病， 了解是否有乳腺疾病。 | G7: - | H7: 10 | I7: 10
A8: 4 | C8: 3006 | D8: 视力 色觉 | E8: 裸视力(左)、裸视力(右)、矫正视力(左)、矫正视力(右)、色觉、眼科其它 | F8: 主要是检查有无屈光不正及色盲或色弱等 | G8: 5 | H8: 5 | I8: 5
A9: 5 | C9: 3007 | D9: 眼科常规检查 | E9: 外眼、眼科其它 | F9: 主要了解眼部疾患，如眼球运动、眼睑、结膜、角膜等眼表疾病。 | G9: 10 | H9: 10 | I9: 10
A10: 6 | C10: 3004 | D10: 裂隙灯检查 | E10: 裂隙灯检查 | F10: 通过裂隙灯显微镜可以清楚地观察眼睑、结膜、巩膜、角膜、前房、虹膜、瞳孔、晶状体及玻璃体前1/3，可确定病变的位置、性质、大小及其深度。 | G10: 15 | H10: 15 | I10: 15
A11: 7 | B11: 彩超检查 | C11: 7013 | D11: 腹部（肝胆脾胰双肾）彩超 | E11: 肝、胆、脾、胰、双肾 | F11: 对人体腹部内脏器官（肝、胆、脾、胰、双肾）的状况和各种病变（如肿瘤、结石、积水、脂肪肝等）提供高清晰度的彩色动态超声断层图像判断，依病灶周围血管情况、病灶内血流血供情况-良恶性病变鉴别。 | G11: 180 | H11: 180 | I11: 180
A12: 8 | C12: 7011 | D12: 膀胱 子宫附件彩超（含图文片） | E12: 膀胱、附件、子宫 | F12: 通过彩超检查，发现膀胱，子宫附件的病变。 | G12: - | H12: 120 | I12: 120
A13: 8 | C13: 7011 | D13: 膀胱 前列腺彩超（含图文片） | E13: 膀胱、前列腺 | F13: 通过彩超检查，发现膀胱，前列腺的病变。 | G13: 120 | H13: - | I13: -
A14: 9 | C14: 6011 | D14: 胸部正位（DR机、无激光片） | E14: 胸部 | F14: 检查心肺疾病，如心脏增大，各种肺结核，各种肺炎，肺癌，纵膈肿瘤等 | G14: 70 | H14: 70 | I14: 70
A15: 10 | B15: 仪器检测 | C15: 4003 | D15: 骨密度检查 | E15: 骨密度 | F15: 1、检测骨矿含量，协助钙等营养缺乏的诊断，指导营养干预、治疗; 2、根据年龄相对应骨密度的状况，预测骨营养状态及生长速度; 3、骨质疏松症的诊断， 医生利用骨密度测量判断患者是否患有骨质疏松症。 4、骨折风险评估 骨密度(BMD)能够预测骨折风险 | G15: 80 | H15: 80 | I15: 80
A16: 11 | C16: 4004 | D16: 静息心电图 | E16: 心电图 | F16: 心电图是临床最常用的检查之一，应用广泛。应用范围包括：1.记录人体正常心脏的电活动。2.帮助诊断心律失常。3.帮助诊断心肌缺血、心肌梗死、判断心肌梗死的部位。4.诊断心脏扩大、肥厚。5.判断药物或电解质情况对心脏的影响。6.判断人工心脏起搏状况。 | G16: 25 | H16: 25 | I16: 25
A17: 12 | C17: 1013 | D17: ●人体成分均衡分析检测项目 | E17: 人体成分均衡分析 | F17: 可以测量出人体体重、脂肪量和肌肉量的分布情况。 | G17: 60 | H17: 60 | I17: 60
A18: —52—
A19: 13 | B19: 血液检测 | C19: 8277 | D19: 肾功四项二组 | E19: 尿素氮/肌酐（UREA/CREA）、尿素氮（UREA）、肌酐（CREA）、尿酸（UA） | F19: 增高：肾灌注减少，（失水、低血容量性休克、充血性心衰等）尿路阻塞性病变，高蛋白等，分解代谢亢进状态，肾小球病变，应用糖皮质类固醇激素等。降低：急性肾小管坏死 | G19: 24 | H19: 24 | I19: 24
A20: 14 | C20: 8147 | D20: 肝功六项 | E20: 丙氨酸氨基转移酶、天门冬氨酸氨基转移酶、γ-谷氨酰转移酶、总胆红素、直接胆红素、间接胆红素 | F20: 评价肝功能情况。 | G20: 38 | H20: 38 | I20: 38
A21: 15 | C21: 8016 | D21: 血脂四项 | E21: 总胆固醇、甘油三酯、低密度脂蛋白胆固醇、高密度脂蛋白胆固醇 | F21: 测定血清中血脂含量，它们的增高或降低与动脉粥样硬化的形成有很大的关系。用于评价受检者的脂肪代谢水平，血脂代谢紊乱评价、动脉粥样硬化性疾病危险性预测和营养学评价。 | G21: 46 | H21: 46 | I21: 46
A22: 16 | C22: 8039 | D22: 空腹血糖（FPG）（店检） | E22: 空腹血糖 | F22: 评价人体空腹状态下糖代谢是否正常，评估糖尿病患者空腹血糖控制是否达标。空腹血糖是诊断糖代谢紊乱的最常用和最重要指标。 | G22: 8 | H22: 8 | I22: 8
A23: 17 | C23: 8078 | D23: 血常规（五分类） | E23: 白细胞计数、中性粒细胞百分比、淋巴细胞百分比、单核细胞百分比、嗜酸性细胞百分比、嗜碱性细胞百分比、中性粒细胞绝对值、淋巴细胞绝对值、单核细胞绝对值、嗜酸性细胞绝对值、嗜碱性细胞绝对值、红细胞计数、血红蛋白、红细胞比积、平均红细胞体积、平均红细胞血红蛋白含量、平均红细胞血红蛋白浓度、红细胞分布宽度-变异系数、红细胞分布宽度-标准差、血小板计数、平均血小板体积、血小板分布宽度、血小板比积 | F23: 通过血常规检查发现血液方面的问题，评价骨髓功能，有助于临床急慢性感染，病毒性疾病的判断；有助于了解有无贫血及贫血分类；有助于出血性疾病的诊断等。 | G23: 23 | H23: 23 | I23: 23
A24: 18 | B24: 尿液检查 | C24: 8108 | D24: 尿常规 | E24: 尿液颜色、尿蛋白质、尿糖、尿胆原、尿胆红素、尿酮体、尿亚硝酸盐、尿隐血、尿酸碱度、尿白细胞、尿比重、尿液镜检 | F24: 用于检查泌尿系统疾病，如泌尿系统感染、肿瘤、结石及了解肾功能，还可用于协助检查其他系统疾病，如糖尿病、高血压、肝炎等。 | G24: 15 | H24: 15 | I24: 15
A25: 19 | B25: 肿瘤检测 | C25: 8080 | D25: 甲胎蛋白定量（AFP） | E25: 甲胎蛋白定量（AFP） | F25: 对原发性肝癌的诊断、疗效观察和预后评估有重要的临床意义。在卵巢、胃、胰腺癌、睾丸癌等肿瘤及肝炎、肝硬化等疾病也有异常发现 | G25: 50 | H25: 50 | I25: 50
A26: 20 | C26: 8076 | D26: 癌胚抗原定量（CEA） | E26: 癌胚抗原定量（CEA） | F26: 系广谱性肿瘤标志物，对大肠癌、胰腺癌的筛查、疗效观察和预后评估有重要的临床意义。在胃、乳腺、肺癌等也可升高。 | G26: 50 | H26: 50 | I26: 50
A27: 21 | C27: 8228 | D27: ★▲总前列腺特异性抗原PSA（华大） | E27: 总前列腺特异性抗原（PSA） | F27: f-PSA主要相关肿瘤：前列腺癌敏感度90%. | G27: 138 | H27: - | I27: -
A28: 22 | C28: 8229 | D28: ★▲糖类抗原CA125（华大） | E28: 糖类抗原125（CA125）（华大） | F28: CA125：主要相关肿瘤：卵巢癌。其它相关肿瘤：肺癌、胰腺癌、乳腺癌、肝癌、胃肠道恶性肿瘤、子宫癌。 | G28: - | H28: 138 | I28: -
A29: 23 | B29: 妇科项目 | C29: 5001 | D29: 妇科检查 | E29: 外阴、阴道、宫颈、子宫、附件、妇科其它 | F29: 通过各种检查了解女性生殖系统有无异常，以发现可能存在的各种炎症、肿瘤等病变。 | G29: - | H29: - | I29: 10
A30: 24 | C30: 8059 | D30: 白带常规 | E30: 白带清洁度、白细胞(白带)、真菌、滴虫 | F30: 用于诊断妇科炎症，及部分病原体的检查。 | G30: - | H30: - | I30: 10
A31: 25 | C31: 8057 | D31: ★▲宫颈TCT | E31: 宫颈TCT | F31: 是子宫颈癌及其癌前病变较先进的筛查方法. | G31: - | H31: - | I31: 200
A32: 26 | B32: 赠送服务 | C32: 9001 | D32: 总检评估 | E32: 个检报告 | F32: 根据个人健康状况及疾病发展趋势，由专家分析主要健康问题，确定相关危险因素，并提供一份完整的个性化的体检报告解读及基本健康改善指导原则。 | G32: 0 | H32: 0 | I32: 0
A33: —53—
A34: 27 | B34: 赠送服务 | C34: 8581 | D34: 健康档案 | E34: 个人健康档案建立 | G34: 5 | H34: 5 | I34: 5
A35: 28 | C35: 9020 | D35: ●“一对一”体检报告的讲解与分析 | E35: ●“一对一”体检报告的讲解与分析 | G35: 50 | H35: 50 | I35: 50
A36: 29 | C36: 9022 | D36: ●《历年体检异常结果对比分析报告》 | E36: ●《体检历史资料对比分析报告》制作与讲解 | G36: 30 | H36: 30 | I36: 30
A37: 30 | C37: 9017 | D37: 专家咨询 | G37: 80 | H37: 80 | I37: 80
A38: 31 | C38: 9002 | D38: 早餐 | E38: 营养早餐 | F38: 燕麦粥 牛奶 水果 中粮包 | G38: 10 | H38: 10 | I38: 10
A39: 套餐合计： | G39: =SUM(G5:G38) -> 1152 | H39: =SUM(H5:H38) -> 1152 | I39: =SUM(I5:I38) -> 1234
A40: 售价合计： | G40: 400 | H40: 400 | I40: 400
A90: —54—

Sheet 附件9福华自选项目
A1: 2018年福华健康管理中心自选体检项目及报价
A2: 带“★”项目不享受团体7折优惠 体检负责人：陈小姐13412130777
A3: 项目分类 | B3: 编码 | C3: 项目名称 | D3: 适用性别 | E3: 临床意义 | F3: 价格 | G3: 优惠价 | H3: 勾选
A4: 常规检查 | B4: 1001 | C4: 身高、体重、体重指数、血压、脉搏 | D4: 全部 | E4: 通过仪器测量人体基本健康指标。例如：血压是否正常，有无体重偏低、超重或肥胖。 | F4: 10 | G4: =F4*0.7 -> 7 | H4: □
B5: 3002 | C5: 眼底镜检查 | D5: 全部 | E5: 主要是玻璃体，视网膜，黄斑，视盘，视神经，眼底血管的检查 | F5: 15 | G5: 10.5 | H5: □
B6: 3003 | C6: 非接触性眼压测量 | D6: 全部 | E6: 用于原发性青光眼的早期诊断，病情评估；疗法选择、疗效评价。以可控空气脉冲力测量眼压，可避免眼压计接触角膜所致的交叉感染与对角膜表面麻醉剂的过敏可能性。 | F6: 25 | G6: 17.5 | H6: □
B7: 3004 | C7: 裂隙灯检查 | D7: 全部 | E7: 裂隙灯可检查结膜、角膜、虹膜、晶状体、瞳孔、玻璃体的情况及青光眼疾病的检查。 | F7: 15 | G7: 10.5 | H7: □
B8: 3005 | C8: 耳鼻喉科常规检查 | D8: 全部 | E8: 对耳鼻喉科的检查，从而发现耳鼻喉科常见的疾病。 | F8: 10 | G8: 7 | H8: □
B9: 3006 | C9: 视力 色觉 | D9: 全部 | E9: 主要是检查有无屈光不正及色盲或色弱等 | F9: 5 | G9: 3.5 | H9: □
B10: 3007 | C10: 眼科常规检查 | D10: 全部 | E10: 主要了解眼部疾患，如眼球运动、眼睑、结膜、角膜等眼表疾病。 | F10: 5 | G10: 3.5 | H10: □
B11: 3009 | C11: 眼底照相 | D11: 全部 | E11: 主要是玻璃体，视网膜，黄斑，视盘，视神经，眼底血管的检查 | F11: 80 | G11: 56 | H11: □
B12: 2001 | C12: 常规检查（含内、外科）（男） | D12: 男 | E12: 通过视、触、叩、听体格检查方法，检查心、肺、肝、脾等重要脏器及神经系统基本状况，发现内科常见疾病的重要征兆，或初步排除常见疾病。 | F12: 10 | G12: 7 | H12: □
B13: 2005 | C13: 常规检查-外科(男) | D13: 男 | E13: 通过外科医生检查，发现脊柱，四肢，淋巴结，外生殖器等的病变和男性乳腺增生。 | F13: 5 | G13: 3.5 | H13: □
B14: 2006 | C14: 常规检查-内科(男) | D14: 男 | E14: 通过内科医生的检查，发现心，肺，腹部等的病变。 | F14: 5 | G14: 3.5 | H14: □
B15: 2004 | C15: 常规检查（含内、外科）（女） | D15: 女 | E15: 通过视、触、叩、听体格检查方法，检查心、肺、肝、脾等重要脏器及神经系统基本状况，发现内科常见疾病的重要征兆，或初步排除常见疾病， 了解是否有乳腺疾病。 | F15: 10 | G15: 7 | H15: □
B16: 2007 | C16: 常规检查-外科(女) | D16: 女 | E16: 通过外科医生检查，发现脊柱，四肢，淋巴结，肛门等的病变。 | F16: 5 | G16: 3.5 | H16: □
B17: 2008 | C17: 常规检查-内科(女) | D17: 女 | E17: 通过内科医生的检查，发现心，肺，腹部等的病变。 | F17: 5 | G17: 3.5 | H17: □
A18: 超声检查 | B18: 7007 | C18: 膀胱 前列腺彩超(含图文片） | D18: 男 | E18: 通过彩超检查，发现膀胱，前列腺的病变。 | F18: 120 | G18: 84 | H18: □
B19: 7001 | C19: 前列腺彩超(含图文片） | D19: 男 | E19: 在膀胱充盈时通过彩色超声仪器检查。更清晰地观察前列腺大小、形态、结构等情况，判断有无前列腺增大、囊肿、结石，恶性病变等。 | F19: 100 | G19: 70 | H19: □
B20: 7011 | C20: 膀胱子宫附件彩超(含图文片） | D20: 女 | E20: 通过彩超检查，发现膀胱，子宫附件的病变。 | F20: 120 | G20: 84 | H20: □
B21: 7008 | C21: 阴式子宫附件彩超(含图文片） | D21: 女 | E21: 通过彩超检查，发现子宫附件的病变。 | F21: 150 | G21: 105 | H21: □
B22: 7004 | C22: 腹部（肝胆脾肾）彩超(含图文片） | D22: 全部 | E22: 对人体腹部内脏器官（肝、胆、脾、胰、双肾）的状况和各种病变（如肿瘤、结石、积水、脂肪肝等）提供高清晰度的彩色动态超声断层图像判断，依病灶周围血管情况、病灶内血流血供情况-良恶性病变鉴别。 | F22: 180 | G22: 126 | H22: □
B23: 7010 | C23: 肝胆脾彩超(含图文片） | D23: 全部 | E23: 通过彩超检查，发现肝胆脾脏的病变。 | F23: 120 | G23: 84 | H23: □
B24: 7012 | C24: 双肾彩超(含图文片） | D24: 全部 | E24: 通过彩超检查，发现双肾的病变。 | F24: 100 | G24: 70 | H24: □
B25: 7002 | C25: 甲状腺彩超(含图文片） | D25: 全部 | E25: 通过彩色超声仪器更清晰地观察甲状腺肿物、结节、肿大、炎症；可发现甲状腺肿、甲状腺囊肿、甲状腺炎、甲状腺瘤、甲状腺癌等疾病。 | F25: 150 | G25: 105 | H25: □
B26: 7003 | C26: 颈动脉彩超(含图文片） | D26: 全部 | E26: 通过彩色超声仪器采用无创性检查方法，检测颈动脉结构和动脉粥样硬化斑形态、范围、性质、动脉狭窄程度等；早期发现动脉血管病变，为有效预防和减少冠心病、缺血性脑血管病等心脑血管疾病发病提供客观的血流动力学依据。 | F26: 170 | G26: 119 | H26: □
B27: 7005 | C27: 心脏彩超(含图文片） | D27: 全部 | E27: 超声心动图是应用超声波扫描技术观察心血管结构、血流动力学状况及心功能的一种无创伤性检查方法，它可了解心脏各组成部分的形态以及功能状态，了解心脏内畸形位置、大小、大血管的关系以及其他畸形情况和病变程度。 | F27: 280 | G27: 196 | H27: □
B28: 7006 | C28: 乳腺彩超(含图文片） | D28: 女 | E28: 通过彩色超声仪器检查乳腺，发现乳腺增生、肿物、结节、囊肿、腺瘤、乳腺癌等病变。 | F28: 150 | G28: 105 | H28: □
B29: 7027 | C29: 胃造影彩超(含图文片） | D29: 全部 | E29: 胃部彩超：对胃部诊断 | F29: 265 | G29: 185.5
A30: 仪器项目 | B30: 4001 | C30: 无创动脉硬化检测 | D30: 全部 | E30: 通过无创动脉检测仪检测全身动脉有无硬化、弹性减退等。 | F30: 80 | G30: 56 | H30: □
B31: 4002 | C31: 经颅多普勒 | D31: 全部 | E31: 以超声波多普勒效应进行颅内血管检测，无创伤和痛苦；了解颅内及颅外各血管、脑动脉环血管及其分支的血流情况，判断有无硬化、狭窄、缺血、痉挛等血管病变。可对脑血管疾病进行动态监测。 | F31: 180 | G31: 126 | H31: □
A32: —55—
A33: 仪器项目 | B33: 4003 | C33: 骨密度检查 | D33: 全部 | E33: 通过检查跟骨或手部骨量测定，可早期发现骨量减少及估计骨质疏松的程度，及时进行有效防治。 | F33: 80 | G33: =F33*0.7 -> 56 | H33: □
B34: 4004 | C34: 静息心电图 | D34: 全部 | E34: 通过在体表特定部位同步记录和分析心脏每一个心动周期所产生电活动变化的曲线图形，为心脏疾病诊断、疗效评价、预后评估提供重要的依据。 | F34: 25 | G34: 17.5 | H34: □
B35: 4005 | C35: 肺功能检查 | D35: 全部 | E35: 通过肺功能检查仪检查肺功能的情况。 | F35: 55 | G35: 38.5 | H35: □
B36: 4006 | C36: 红外线乳透检查 | D36: 女 | E36: 检查乳腺的病变，如乳腺炎、结节、增生等。 | F36: 50 | G36: 35 | H36: □
B37: 4007 | C37: 半小时心率变异分析 | D37: 全部 | E37: 有助于判断是否有心律失常、各种心脏病引起的心房或心室肥大、心肌炎、心肌缺血、心肌梗塞及全身性疾病引起心脏病变。动态心电图更易发现上述病变或更小病变。 | F37: 100 | G37: 70 | H37: □
B38: 4009 | C38: 骨龄 | D38: 全部 | E38: 检测骨质发育情况，预测成年后身高高度。 | F38: 80 | G38: 56 | H38: □
A39: 胃部 检测 | B39: 1048 | C39: ★碳14 | D39: 全部 | E39: 用于检测幽门螺旋杆菌，幽门螺旋杆菌是导致胃炎、胃溃疡、胃癌的重要致病菌。 | F39: 120 | G39: 120 | H39: □
A40: 女性项目 | B40: 5001 | C40: 妇科检查 | D40: 已婚女 | E40: 通过各种检查了解女性生殖系统有无异常，以发现可能存在的各种炎症、肿瘤等病变。 | F40: 10 | G40: =F40*0.7 -> 7 | H40: □
B41: 8057 | C41: ★宫颈TCT | D41: 已婚女 | E41: 是子宫颈癌及其癌前病变较先进的筛查方法，并能筛查滴虫、霉菌性阴道炎及人乳头瘤病毒和疱疹病毒的感染。 | F41: 200 | G41: 200 | H41: □ | I41: 妇科采样项目默认与（5001）妇科检查为组合项目。
B42: 8058 | C42: 宫颈涂片 | D42: 已婚女 | E42: 可以检测到宫颈病变的早期变化，是目前广泛检查子宫颈癌简便有效的筛查方法。 | F42: 50 | G42: 35 | H42: □
B43: 8059 | C43: 白带常规 | D43: 已婚女 | E43: 用于诊断妇科炎症，及部分病原体的检查。 | F43: 10 | G43: 7 | H43: □
B44: 8210 | C44: 白带常规+BV | D44: 已婚女 | E44: 妇科病辅助诊断 | F44: 40 | G44: 28 | H44: □
B45: 8170 | C45: 阴道病五联检 | D45: 已婚女 | E45: 用于女性阴道微生态评估，感染性疾病的筛查辅助诊断和疗效评估。 | F45: 80 | G45: 56 | H45: □
B46: 8118 | C46: ★沙眼衣原体DNA定量（女）（CT-DNA） | D46: 女 | E46: 用于诊断沙眼衣原体感染，也有作为疗效监测的标准。 | F46: 180 | G46: 180 | H46: □
B47: 8119 | C47: ★沙眼衣原体DNA定性（女）（CT-DNA） | D47: 女 | E47: 用于诊断沙眼衣原体感染，直接反应人体内沙眼衣原体是否存在。 | F47: 130 | G47: 130 | H47: □
B48: 8120 | C48: ★淋球菌DNA定性（女）（NGH-DNA） | D48: 女 | E48: 用于诊断淋病。 | F48: 130 | G48: 130 | H48: □
B49: 8121 | C49: ★解脲支原体DNA定量（女）（UU-DNA） | D49: 女 | E49: 用于诊断解脲支原体感染，直接反应人体内解脲支原体是否存在。 | F49: 180 | G49: 180 | H49: □
B50: 8122 | C50: ★解脲支原体DNA定性（女）（UU-DNA） | D50: 女 | E50: 用于诊断解脲支原体感染，直接反应人体内解脲支原体是否存在。 | F50: 130 | G50: 130 | H50: □
B51: 8123 | C51: ★淋球菌DNA定量（女）（NGH-DNA） | D51: 女 | E51: 用于诊断淋病。 | F51: 180 | G51: 180 | H51: □
B52: 8194 | C52: ★HPV人乳头瘤病毒分型(全套) | D52: 女 | E52: 用于诊断尖锐湿疣，和宫颈癌的筛查。 | F52: 345 | G52: 345 | H52: □
B53: 8090 | C53: ★人乳头瘤病毒6、11型DNA测定 | D53: 女 | E53: 用于诊断尖锐湿疣。 | F53: 165 | G53: 165 | H53: □
B54: 8094 | C54: ★人乳头瘤病毒16、18型DNA测定 | D54: 女 | E54: 用于宫颈癌的筛查。 | F54: 165 | G54: 165 | H54: □
A55: 检验项目 | B55: 8108 | C55: 尿常规 | D55: 全部 | E55: 用于检查泌尿系统疾病，如泌尿系统感染、肿瘤、结石及了解肾功能，还可用于协助检查其他系统疾病，如糖尿病、高血压、肝炎等。 | F55: 15 | G55: =F55*0.7 -> 10.5 | H55: □
B56: 8011 | C56: 大便隐血 | D56: 全部 | E56: 检查粪便中隐藏的红细胞或血红蛋白的一项实验。这对检出引起消化道出血的疾病：如急慢性胃炎、胃十二指肠溃疡、胃癌、肠癌等是非常有用的。 | F56: 10 | G56: 7 | H56: □
B57: 8001 | C57: 大便常规 | D57: 全部 | E57: 对了解胃肠道及肝、胆、胰腺等器官病变；判断胃肠、胰腺、肝胆系统功能有重要价值。 | F57: 10 | G57: 7 | H57: □
B58: 8169 | C58: ★大便培养 | D58: 全部 | E58: 主要检查有无寄生虫感染。 | F58: 75 | G58: 75 | H58: □
B59: 8060 | C59: 尿妊娠定性试验 | D59: 女 | E59: 用于早孕的检测。 | F59: 15 | G59: =F59*0.7 -> 10.5 | H59: □
B60: 8129 | C60: ★尿微量白蛋白定量 | D60: 全部 | E60: 尿微量白蛋白定量增高提示肾小球受损早期。 | F60: 60 | G60: 60 | H60: □
A61: —56—
A62: 血液 项目 | B62: 8078 | C62: 血常规(五分类) | D62: 全部 | E62: 通过血常规检查发现血液方面的问题，评价骨髓功能，有助于临床急慢性感染，病毒性疾病的判断；有助于了解有无贫血及贫血分类；有助于出血性疾病的诊断等。 | F62: 23 | G62: =F62*0.7 -> 16.1 | H62: □
B63: 8050 | C63: 血流变(需做血常规) | D63: 全部 | E63: 主要用于检查血液粘稠性况，从而评估心脑血管风险。 | F63: 70 | G63: 49 | H63: □
B64: 8005 | C64: ABO血型 | D64: 全部 | E64: 血型分O、A、B、AB四型；平时作出血型鉴定是保证紧急状态下输血安全的必要措施；对遗传、法医学也有很大价值。 | F64: 15 | G64: 10.5 | H64: □
B65: 8211 | C65: 血型二项（ABO血型、Rh血型） | D65: 全部 | E65: 辅助血型诊断 | F65: 40 | G65: 28 | H65: □
B66: 8131 | C66: Rh血型 | D66: 全部 | E66: 熊猫血检查 | F66: 30 | G66: 21 | H66: □
B67: 8006 | C67: 肾功三项（尿酸、肌酐、尿素） | D67: 全部 | E67: 用于肾功能评价，测定肾功能损害程度及估计预后。 | F67: 24 | G67: 16.8 | H67: □
B68: 8026 | C68: 肾功四项（血清胱抑素C、尿酸、肌酐、尿素） | D68: 全部 | E68: 用于评估肾功能。 | F68: 84 | G68: 58.8 | H68: □
B69: 8008 | C69: ★性激素六项（雌二醇、卵泡刺激素、孕酮、泌乳素、促黄体生成激素、睾酮） | D69: 全部 | E69: 通过女性激素六项检测，对女性内分泌疾病、不孕症、下丘脑或垂体病变筛查具有重要意义。 | F69: 360 | G69: 360 | H69: □
B70: 8017 | C70: 心肌酶四项（α-羟丁酸脱氢酶、肌酸激酶、肌酸激酶同工酶、乳酸脱氢酶） | D70: 全部 | E70: 主要存在于心肌、脑、肝、组织及骨骼；在急性心肌梗死、心肌损害时肌酸激酶、尤其CK-MB升高，另外，重症肺炎、心衰、尿毒症、急性颅脑损伤等均可升高。 | F70: 58 | G70: =F70*0.7 -> 40.6 | H70: □
B71: 8025 | C71: 丙肝病毒抗体(HCV-Ab) | D71: 全部 | E71: 对了解有无丙肝病毒感染，有重要临床意义。 | F71: 33 | G71: 23.1 | H71: □
B72: 8031 | C72: 肝功二项 （天门冬氨酸氨基转移酶、丙氨酸氨基转移酶） | D72: 全部 | E72: 可较好地了解肝脏功能状况。ALT、 AST主要存在于肝心脑肾组织细胞内，肝细胞损伤越大ALT、 AST就越高。急慢性肝炎、脂肪肝、肝硬化、肝癌等疾病均可引起ALT、 AST升高。 | F72: 12 | G72: 8.4 | H72: □
B73: 8206 | C73: 肝功三项 | D73: 全部 | E73: 评价肝功能。（丙氨酸氨基转移酶、天门冬氨酸氨基转移酶、谷草/谷丙） | F73: 12 | G73: 8.4 | H73: □
B74: 8128 | C74: 肝功四项1组 | D74: 全部 | E74: 初步了解肝脏功能状况，是否有肝功能减退、异常等。 （总胆红素、γ-谷氨酰转移酶、天门冬氨酸氨基转移酶、丙氨酸氨基转移酶） | F74: 26 | G74: 18.2 | H74: □
B75: 8209 | C75: 肝功四项2组 | D75: 全部 | E75: 评价肝功能 （丙氨酸氨基转移酶、天门冬氨酸氨基转移酶、总胆红素、总蛋白） | F75: 22 | G75: 15.4 | H75: □
B76: 8147 | C76: 肝功六项 | D76: 全部 | E76: 评价肝功能情况。 （丙氨酸氨基转移酶、天门冬氨酸氨基转移酶、γ-谷氨酰转移酶、总胆红素、直接胆红素、间接胆红素） | F76: 38 | G76: 26.6 | H76: □
B77: 8150 | C77: 肝功八项 | D77: 全部 | E77: 有于评估肝功能 。 （丙氨酸氨基转移酶、天门冬氨酸氨基转移酶、γ-谷氨酰转移酶、碱性磷酸酶、乳酸脱氢酶、总胆红素、直接胆红素、间接胆红素） | F77: 50 | G77: 35 | H77: □
B78: 8125 | C78: 肝功十二项 （全项） | D78: 全部 | E78: 初步了解肝脏功能状况，是否有肝功能减退、异常等。 （丙氨酸氨基转移酶、天门冬氨酸氨基转移酶、γ-谷氨酰转移酶、碱性磷酸酶、总胆红素、直接胆红素、间接胆红素、总蛋白、白蛋白、球蛋白、白蛋白/球蛋白比值、乳酸脱氢酶） | F78: 75 | G78: 52.5 | H78: □
B79: 8207 | C79: 血清蛋白四项 | D79: 全部 | E79: 肝脏分泌指标；急慢性肝病营养式吸收不良，消耗性疾病等； | F79: 18 | G79: 12.6 | H79: □
B80: 8208 | C80: 胆红素四项 | D80: 全部 | E80: 肝脏分泌功能指标，用于黄疸诊断鉴别诊断。 | F80: 20 | G80: 14 | H80: □
B81: 8035 | C81: 血脂二项（总胆固醇、甘油三酯） | D81: 全部 | E81: 测定血清中血脂含量，它们的增高或降低与动脉粥样硬化的形成有很大的关系。用于评价受检者的脂肪代谢水平。 | F81: 16 | G81: 11.2 | H81: □
B82: 8016 | C82: 血脂四项 （高密度脂蛋白胆固醇、总胆固醇、低密度脂蛋白胆固醇、甘油三酯） | D82: 全部 | E82: 测定血清中血脂含量，它们的增高或降低与动脉粥样硬化的形成有很大的关系。用于评价受检者的脂肪代谢水平，血脂代谢紊乱评价、动脉粥样硬化性疾病危险性预测和营养学评价。 | F82: 46 | G82: 32.2 | H82: □
B83: 8077 | C83: 血脂七项 | D83: 全部 | E83: 测定血清中血脂含量，它们的增高或降低与动脉粥样硬化的形成有很大的关系。用于评价受检者的脂肪代谢水平，血脂代谢紊乱评价、动脉粥样硬化性疾病危险性预测和营养学评价。 | F83: 116 | G83: 81.2 | H83: □
B84: 8036 | C84: 血沉(ESR) | D84: 全部 | E84: 各种炎症性疾病、组织损伤、心肝肾血液代谢疾病、恶性肿瘤等可见增快。 | F84: 20 | G84: 14 | H84: □
B85: 8037 | C85: 类风湿因子(RF) | D85: 全部 | E85: 阳性示类风湿性疾病；其他自身免疫性疾病和某些感染性疾病也可见阳性反应。 | F85: 38 | G85: 26.6 | H85: □
B86: 8038 | C86: 超敏C反应蛋白(HS-CRP) | D86: 全部 | E86: 高敏C-反应蛋白对心血管疾病的风险预测有重要意义。C-反应蛋白也是细菌感染和严重组织损伤的一项诊断指标，其升高可见于组织损伤、细菌感染、心肌梗死及结缔组织病等。 | F86: 40 | G86: 28 | H86: □
A87: —57—
A88: 血液 项目 | B88: 8039 | C88: 空腹血糖.（FPG） | D88: 全部 | E88: 评价人体空腹状态下糖代谢是否正常，评估糖尿病患者空腹血糖控制是否达标。空腹血糖是诊断糖代谢紊乱的最常用和最重要指标。 | F88: 8 | G88: =F88*0.7 -> 5.6 | H88: □
B89: 8040 | C89: ★糖化血红蛋白(HbA1C) | D89: 全部 | E89: 检测HbA1c对高血糖、尤在血糖和尿糖波动较大时有特殊诊断意义；反映近2-3个月的平均血糖水平；用于筛检糖尿病、预测血管并发症、鉴别高血糖原因，评价糖尿病控制程度。 | F89: 98 | G89: 98 | H89: □
B90: 8048 | C90: 餐后2小时血糖（Glu/2h） | D90: 全部 | E90: 主要用于糖尿病的诊断和治疗评估。 | F90: 8 | G90: =F90*0.7 -> 5.6 | H90: □
B91: 8138 | C91: 胃蛋白酶原三项（PGI、PGII、PGI/PGII） | D91: 全部 | E91: 1：PGⅠ≥70ng/ml或者PGⅠ/Ⅱ比值>3：。提示胃部正常或良性疾病改变 2: PGⅠ<70ng/ml并且PGⅠ/Ⅱ比值<3:阳性（+），胃部轻度萎缩 。 3： PGⅠ<50ng/ml并且PGⅠ/Ⅱ比值<3:中度阳性（++），胃部中度萎缩。 4： PGⅠ<30ng/ml并且PGⅠ/Ⅱ比值<2:强阳性（+++），高度萎缩。 | F91: 168 | G91: 117.6 | H91: □
B92: 8083 | C92: 抗链球菌溶血素“O”（ASO） | D92: 全部 | E92: “ASO”或抗“0”阳性表示受检者近期内有A群溶血性链球菌感染，常见于活动性风湿热、急性肾炎、上呼吸道感染、皮肤和软组织的感染等。 | F92: 34 | G92: 23.8 | H92: □
B93: 8073 | C93: 幽门螺旋杆菌抗体.(Hp-Ab) | D93: 全部 | E93: 幽门螺杆菌抗体阳性提示既往感染过或正在感染幽门螺杆菌，它与胃十二指肠溃疡、胃部炎症、胃癌的发生密切关联。 | F93: 60 | G93: 42 | H93: □
B94: 8107 | C94: ★乙型肝炎病毒表面抗原定量（HBsAg） | D94: 全部 | E94: 乙肝病毒的活跃情况，是已感染乙肝病毒的标志之一。 | F94: 40 | G94: 40 | H94: □
B95: 8092 | C95: ★乙型肝炎病毒表面抗体定量（HBsAb） | D95: 全部 | E95: 本定量对是否要注射疫苗有参考作用。 | F95: 40 | G95: 40 | H95: □
B96: 8079 | C96: 乙型肝炎病毒两对半定性 | D96: 全部 | E96: 用于评价是否感染乙肝病毒和目前处于一种什么样的状态，同时可以了解对乙肝是否有免疫力、有无传染性、是否需要进一步深入检查及治疗。 | F96: 46 | G96: =F96*0.7 -> 32.2 | H96: □
B97: 8067 | C97: ★乙型肝炎病毒DNA定量（HBV-DNA） | D97: 全部 | E97: 乙肝病毒DNA是乙肝病毒的基因物质，也是乙肝的直接诊断证据；阳性表明乙肝病毒复制及有传染性。 | F97: 182 | G97: 182 | H97: □
B98: 8064 | C98: ★乙型肝炎病毒两对半定量测定 | D98: 全部 | E98: 能更准确地评价是否感染乙肝病毒和目前处于一种什么样的状态，同时可以了解对乙肝是否有免疫力、有无传染性、是否需要进一步深入检查及治疗。 | F98: 200 | G98: 200 | H98: □
B99: 8237 | C99: ★人绒毛膜促性腺激素(β-HCG) | D99: 全部 | E99: 对早期妊娠诊断有重要意义，对与妊娠相关疾病、滋养细胞肿瘤等疾病的筛查等有一定价值。 | F99: 138 | G99: 138 | H99: □
B100: 8066 | C100: ★糖类抗原50测定（CA50）(化学发光法) | D100: 全部 | E100: 是一种广谱的肿瘤标志物，主要用于消化道肿瘤的筛查，如胰腺癌，结肠癌 | F100: 138 | G100: 138 | H100: □
B101: 8069 | C101: ★微量元素五项（镁、钙、铁、锌、铜） | D101: 全部 | E101: 通过对人体微量和常量元素的检测，了解机体微量营养素的代谢情况，对了解机体组构成分、生理功能正常与否有重要意义。 | F101: 60 | G101: 60 | H101: □
B102: 8072 | C102: ★C-肽(测定)(C-P) | D102: 全部 | E102: 用于评价胰岛B细胞分泌、储备功能，可真实反映实际胰岛素水平；用于糖尿病分型诊断。降低见于糖尿病。 | F102: 69 | G102: 69 | H102: □
B103: 8074 | C103: 甲肝病毒抗体-IgM | D103: 全部 | E103: 对了解有无甲肝病毒感染，有重要临床意义。 | F103: 15 | G103: =F103*0.7 -> 10.5 | H103: □
B104: 8075 | C104: ★人免疫缺陷病毒抗体(HIV-Ab) | D104: 全部 | E104: 用于对艾滋病的初筛。 | F104: 40 | G104: 40 | H104: □
B105: 8082 | C105: ★结核杆菌抗体（TB-Ab） | D105: 全部 | E105: 阳性表示有结核分枝杆菌感染。 | F105: 53 | G105: 53 | H105: □
B106: 8084 | C106: ★甲型肝炎病毒抗体IgG （HAV-IgG） | D106: 全部 | E106: 检查是否有对甲肝的免役力。 | F106: 23 | G106: 23 | H106: □
B107: 8086 | C107: ★丁型肝炎病毒IgM抗体（HDV-IgM） | D107: 全部 | E107: 检查丁肝病毒感染的早期。 | F107: 22 | G107: 22 | H107: □
B108: 8093 | C108: ★单纯疱疹病毒Ⅱ型DNA测定 | D108: 全部 | E108: 用于怀孕前检测。 | F108: 130 | G108: 130 | H108: □
B109: 8095 | C109: ★优生优育检测十项 | D109: 全部 | E109: 用于怀孕前检测。 | F109: 464 | G109: 464 | H109: □
B110: 8096 | C110: ★地中海贫血筛查试验（血红蛋白电泳、红细胞渗透脆性试验、G6PD活性） | D110: 全部 | E110: 用于筛查地中海贫血。 | F110: 85 | G110: 85 | H110: □
B111: 8097 | C111: ★甲状腺球蛋白（TG） | D111: 全部 | E111: 用于部分早状腺疾病的鉴别诊断。 | F111: 46 | G111: 46 | H111: □
B112: 8098 | C112: ★淋球菌DNA定性（男）（NGH-DNA） | D112: 男 | E112: 用于诊断淋病，直接反映人体内淋球菌是否存在 | F112: 130 | G112: 130 | H112: □
B113: 8099 | C113: ★铁蛋白(FER) | D113: 全部 | E113: 对贫血的辅助诊断。 | F113: 55 | G113: 55 | H113: □
B114: 8100 | C114: ★同型半胱氨酸（Hcy） | D114: 全部 | E114: 为心脑血管疾病的敏感指标之一。 | F114: 100 | G114: 100 | H114: □
A115: —58—
A116: 血液 项目 | B116: 8103 | C116: ★优生优育检测五项IgM | D116: 全部 | E116: 用于怀孕前检测。 | F116: 232 | G116: 232 | H116: □
B117: 8104 | C117: ★肺炎支原体抗体两项（Mp-IgM、IgG） | D117: 全部 | E117: 阳性有助于肺炎支原体感染的早期诊断 | F117: 100 | G117: 100 | H117: □
B118: 8105 | C118: ★解脲支原体DNA定量（男）（UU-DNA） | D118: 男 | E118: 其拷贝数直接反映解脲支原体是否存在及病毒复制活跃程度 | F118: 180 | G118: 180 | H118: □
B119: 8106 | C119: ★过敏源检测（PANEL6综合组） | D119: 全部 | E119: 用于检测过敏源。 | F119: 700 | G119: 700 | H119: □
B120: 8112 | C120: ★微量元素六项（镁、钙、铅、铁、锌、铜） | D120: 全部 | E120: 检查人体有无缺乏微量元素。 | F120: 88 | G120: 88 | H120: □
B121: 8130 | C121: ★免疫球蛋白(IgG) | D121: 全部 | E121: 检测免疫球蛋白可了解机体的体液免疫功能状态。IgG是对再次感染的免疫应答抗体；对病毒、细菌、寄生虫等都有抗体活性；结合临床表现，有助于感染性、免疫增生性疾病和免疫缺陷病等鉴别诊断、疾病监控。 | F121: 26 | G121: 26 | H121: □
B122: 8140 | C122: ★戊型肝炎病毒IgM抗体（HEV-IgM） | D122: 全部 | E122: 用于检查有无戊肝。 | F122: 79 | G122: 79 | H122: □
B123: 8141 | C123: ★过敏原食入组 | D123: 全部 | F123: 430 | G123: 430 | H123: □
B124: 8142 | C124: ★抗甲状腺微粒体抗体（TM-Ab） | D124: 全部 | E124: 用于甲状腺疾病的辅助检查。 | F124: 46 | G124: 46 | H124: □
B125: 8143 | C125: ★肝吸虫IgG抗体(加选) | D125: 全部 | F125: 30 | G125: 30 | H125: □
B126: 8144 | C126: 胱抑素C（CysC） | D126: 全部 | E126: 血清胱抑素C较血清肌酶有更多的敏感性和特异性，是早期较为理想的反映肾小球滤过率(GFR)的内源性标志物。 | F126: 60 | G126: =F126*0.7 -> 42 | H126: □
B127: 8146 | C127: ★过敏原吸入组 | D127: 全部 | E127: 用于过敏性疾病的诊断和治疗。 | F127: 310 | G127: 310 | H127: □
B128: 8148 | C128: 风湿三项（超敏C反应蛋白、抗链球菌溶血素“O”、类风湿因子） | D128: 全部 | E128: 用于风湿性疾病的诊断和治疗观察。 | F128: 112 | G128: =F128*0.7 -> 78.4 | H128: □
B129: 8162 | C129: ★骨型碱性磷酸酶测定（BAP） | D129: 全部 | E129: 用于血钙水平检测，指导科学补钙。 | F129: 70 | G129: 70 | H129: □
B130: 8163 | C130: ★电解质4项（钾、钠、氯、钙） | D130: 全部 | E130: 用于检查电解质是否平衡。 | F130: 35 | G130: 35 | H130: □
B131: 8166 | C131: ★抗甲状腺球蛋白抗体（TG-Ab）（化学发光法） | D131: 全部 | E131: 用于甲状腺疾病的辅助诊断。 | F131: 80 | G131: 80 | H131: □
B132: 8174 | C132: ★支原体培养+药敏 | D132: 全部 | F132: 130 | G132: 130 | H132: □
B133: 8175 | C133: ★α-L-岩藻糖苷酶（AFU） | D133: 全部 | E133: α-L-岩藻糖苷酶，是原发性肝癌的标志物之一。 | F133: 40 | G133: 40 | H133: □
B134: 8176 | C134: ★胆碱酯酶（CHE） | D134: 全部 | E134: 检测血清CHE主要用于诊断肝脏疾病和有机磷中毒。 | F134: 10 | G134: 10 | H134: □
B135: 8177 | C135: ★抗可溶性抗原(风湿七项) | D135: 全部 | E135: 辅助诊断自身免疫性疾病。 | F135: 150 | G135: 150 | H135: □
B136: 8179 | C136: 梅毒血清试验(TRUST) | D136: 全部 | E136: 梅毒感染初筛实验，辅助诊断梅毒。 | F136: 30 | G136: =F136*0.7 -> 21 | H136: □
B137: 8180 | C137: ★梅毒螺旋体特异抗体测定(TPPA) | D137: 全部 | E137: 梅毒螺旋体特异抗体测定 | F137: 60 | G137: 60 | H137: □
B138: 8023 | C138: ★甲功五项(TSH、T3、T4、FT3、FT4） | D138: 全部 | E138: 用于甲状腺功能亢进或甲状腺功能减低等筛查。 | F138: 260 | G138: 260 | H138: □
B139: 8068 | C139: ★甲功三项（TSH、TT3、TT4) | D139: 全部 | E139: 用于甲状腺功能评价、甲状腺疾病诊断及治疗监测。 | F139: 154 | G139: 156 | H139: □
B140: 8184 | C140: ★甲功三项（TSH、FT3、FT4） | D140: 全部 | E140: 用于甲状腺功能评价、甲状腺疾病的诊断和治疗监测。 | F140: 154 | G140: 156 | H140: □
B141: 8189 | C141: ★唐氏综合症Ⅰ期筛查(孕早期) | D141: 女 | E141: 运用风险评估软件结合年龄、体重、身高、孕周、吸烟史、糖尿病史等资料评估出胎儿患病的危险度，筛查21-三体综合症。 | F141: 177 | G141: 177 | H141: □
B142: 8190 | C142: ★唐氏综合症Ⅱ期筛查(孕中期) | D142: 女 | E142: 运用风险评估软件结合年龄、体重、身高、孕周、吸烟史、糖尿病史等资料评估出胎儿患病的危险度，筛查21-三体综合症、神经管畸形等。 | F142: 178 | G142: 178 | H142: □
B143: 8193 | C143: ★总IgE测定 | D143: 全部 | E143: 常见于超敏反应性疾病；寄生虫感染及高IgE型多发性骨髓瘤、AIDS、高IgE综合征患者；过敏反应诊断指标。 | F143: 70 | G143: 70 | H143: □
B144: 8203 | C144: ★总胆汁酸测定(TBA) | D144: 全部 | E144: 辅助诊断肝功能 | F144: 30 | G144: 30 | H144: □
B145: 8204 | C145: ★乳酸脱氢同工酶1测定(LDH-1) | D145: 全部 | F145: 5 | G145: 5 | H145: □
B146: 8212 | C146: ★免疫球蛋白三项测定 | D146: 全部 | E146: 辅助诊断免疫系统疾病 | F146: 60 | G146: 60 | H146: □
A147: —59—
A148: 放 射 项 目 | B148: 6011 | C148: 胸部正位（DR机、无激光片)怀孕或可能怀孕者禁检 | D148: 全部 | E148: 检查心肺疾病，如心脏增大，各种肺结核，各种肺炎，肺癌，纵膈肿瘤等 | F148: 70 | G148: =F148*0.7 -> 49 | H148: □
B149: 6006 | C149: 颈椎侧位（DR机、无激光片) | D149: 全部 | E149: 检查有无颈椎病、骨质增生、退行性变等。 | F149: 45 | G149: 31.5 | H149: □
B150: 6015 | C150: 腰椎侧位（DR机、无激光片) | D150: 全部 | E150: 检查有无腰椎间盆突出、骨质增生、退行性变等。 | F150: 70 | G150: 49 | H150: □
B151: 6001 | C151: 左侧膝关节正侧位（DR机、无激光片) | D151: 全部 | E151: 用于膝关节病变的检查。 | F151: 90 | G151: 63 | H151: □
B152: 6002 | C152: 胸部侧位（DR机、无激光片) | D152: 全部 | E152: 检查心肺疾病，如心脏增大，各种肺结核，各种肺炎，肺癌，纵膈肿瘤等 | F152: 70 | G152: 49 | H152: □
B153: 6003 | C153: 颈椎正侧位（DR机、无激光片) | D153: 全部 | E153: 检查有无颈椎病、骨质增生、退行性变等。 | F153: 90 | G153: 63 | H153: □
B154: 6004 | C154: 右侧肘关节正侧位（DR机、无激光片) | D154: 全部 | E154: 用于肘关节病变的检查。 | F154: 90 | G154: 63 | H154: □
B155: 6005 | C155: 胸部正侧位（DR机、无激光片) | D155: 全部 | E155: 检查心肺疾病，如心脏增大，各种肺结核，各种肺炎，肺癌，纵膈肿瘤等 | F155: 130 | G155: 91 | H155: □
B156: 6007 | C156: 颈椎双斜位（DR机、无激光片) | D156: 全部 | E156: 检查有无颈椎病、骨质增生、退行性变等。 | F156: 90 | G156: 63 | H156: □
B157: 6008 | C157: 颈椎正侧双斜位（DR机、无激光片) | D157: 全部 | E157: 检查有无颈椎病、骨质增生、退行性变等。 | F157: 180 | G157: 126 | H157: □
B158: 6009 | C158: 腰椎正侧位（DR机、无激光片) | D158: 全部 | E158: 检查有无腰椎间盆突出、骨质增生、退行性变等。 | F158: 130 | G158: 91 | H158: □
B159: 6010 | C159: 左侧肘关节正侧位（DR机、无激光片) | D159: 全部 | E159: 用于肘关节病变的检查。 | F159: 90 | G159: 63 | H159: □
B160: 6012 | C160: 左侧腕关节正侧位（DR机、无激光片) | D160: 全部 | E160: 用于腕关节病变的检查。 | F160: 90 | G160: 63 | H160: □
B161: 6013 | C161: 右侧膝关节正侧位（DR机、无激光片) | D161: 全部 | E161: 用于膝关节病变的检查。 | F161: 90 | G161: 63 | H161: □
B162: 6014 | C162: 右侧腕关节正侧位（DR机、无激光片) | D162: 全部 | E162: 用于腕关节病变的检查。 | F162: 90 | G162: 63 | H162: □
B163: 6016 | C163: 胸透 | D163: 全部 | E163: 主要检查心肺疾患。 | F163: 12 | G163: 8.4 | H163: □
B164: 6017 | C164: 节育环透视 | D164: 女 | E164: 用于检查节育环形态及位置。 | F164: 12 | G164: 8.4 | H164: □
B165: 6018 | C165: 颈椎正位（DR机、无激光片) | D165: 全部 | E165: 检查有无颈椎病、骨质增生、退行性变等。 | F165: 45 | G165: 31.5 | H165: □
B166: 6019 | C166: 颈椎侧斜位（DR机、无激光片) | D166: 全部 | E166: 检查有无颈椎病、骨质增生、退行性变等。 | F166: 45 | G166: 31.5 | H166: □
B167: 6020 | C167: 腰椎正位（DR机、无激光片) | D167: 全部 | E167: 检查有无腰椎间盆突出、骨质增生、退行性变等。 | F167: 70 | G167: 49 | H167: □
B168: 6021 | C168: 骨盆正位（DR机、无激光片) | D168: 全部 | E168: 用于骨盆病变 的检查。 | F168: 70 | G168: 49 | H168: □
B169: 6022 | C169: 胸椎侧位（DR机、无激光片) | D169: 全部 | E169: 用于胸椎变的检查。 | F169: 70 | G169: 49 | H169: □
B170: 6023 | C170: 胸椎正侧位（DR机、无激光片) | D170: 全部 | E170: 用于胸椎变的检查。 | F170: 130 | G170: 91 | H170: □
B171: 6024 | C171: 左侧肩关节正位（DR机、无激光片) | D171: 全部 | E171: 用于肩关节病变的检查。 | F171: 70 | G171: 49 | H171: □
B172: 6025 | C172: 右侧肩关节正位（DR机、无激光片) | D172: 全部 | E172: 用于肩关节病变的检查。 | F172: 70 | G172: 49 | H172: □
B173: 6026 | C173: 左侧踝关节正侧位（DR机、无激光片) | D173: 全部 | E173: 用于踝关节病变的检查。 | F173: 90 | G173: 63 | H173: □
B174: 6027 | C174: 右侧踝关节正侧位（DR机、无激光片) | D174: 全部 | E174: 用于踝关节病变的检查。 | F174: 90 | G174: 63 | H174: □
B175: 6028 | C175: 左足背正斜位（DR机、无激光片) | D175: 全部 | E175: 用于足背病变的检查。 | F175: 90 | G175: 63 | H175: □
B176: 6029 | C176: 右足背正斜位（DR机、无激光片) | D176: 全部 | E176: 用于足背病变的检查。 | F176: 90 | G176: 63 | H176: □
B177: 6030 | C177: 骶尾椎侧位（DR机、无激光片) | D177: 全部 | E177: 用于骶尾椎病变的检查。 | F177: 70 | G177: 49 | H177: □
A178: —60—
A179: 放 射 项 目 | B179: 6031 | C179: 双手正位（DR机、无激光片) | D179: 全部 | E179: 用于双手病变的检查。 | F179: 55 | G179: =F179*0.7 -> 38.5 | H179: □
B180: 6032 | C180: 左侧髋关节正位（DR机、无激光片) | D180: 全部 | E180: 用于髋关节病变的检查。 | F180: 70 | G180: 49 | H180: □
B181: 6033 | C181: 右侧髋关节正位（DR机、无激光片) | D181: 全部 | E181: 用于髋关节病变的检查。 | F181: 70 | G181: 49 | H181: □
B182: 6034 | C182: 左侧股骨正侧位（DR机、无激光片) | D182: 全部 | E182: 用于股骨病变的检查。 | F182: 130 | G182: 91 | H182: □
B183: 6035 | C183: 右侧股骨正侧位（DR机、无激光片) | D183: 全部 | E183: 用于股骨病变的检查。 | F183: 130 | G183: 91 | H183: □
B184: 6036 | C184: 左侧胫腓骨正侧位（DR机、无激光片) | D184: 全部 | E184: 用于胫腓骨病变的检查。 | F184: 130 | G184: 91 | H184: □
B185: 6037 | C185: 右侧胫腓骨正侧位（DR机、无激光片) | D185: 全部 | E185: 用于胫腓骨病变的检查。 | F185: 130 | G185: 91 | H185: □
B186: 6039 | C186: 左侧膝关节侧位（DR机、无激光片) | D186: 全部 | E186: 用于膝关节病变的检查。 | F186: 35 | G186: 24.5 | H186: □
B187: 6040 | C187: 右侧膝关节侧位（DR机、无激光片) | D187: 全部 | E187: 用于膝关节病变的检查。 | F187: 35 | G187: 24.5 | H187: □
A188: CT检查 | B188: 8868 | C188: 颅脑CT平扫（无激光片） | D188: 全部 | E188: 颅脑平扫 | F188: 380 | G188: 266 | H188: □
B189: 8869 | C189: 颅底薄层CT平扫（无激光片） | D189: 全部 | E189: 颅脑底薄层平扫 | F189: 380 | G189: 266 | H189: □
B190: 8870 | C190: 副鼻窦CT平扫（无激光片） | D190: 全部 | E190: 副鼻窦平扫 | F190: 380 | G190: 266 | H190: □
B191: 8871 | C191: 鼻骨CT平扫（无激光片） | D191: 全部 | E191: 鼻骨平扫 | F191: 380 | G191: 266 | H191: □
B192: 8872 | C192: 鼻咽部CT平扫（无激光片） | D192: 全部 | E192: 鼻咽部平扫 | F192: 380 | G192: 266 | H192: □
B193: 8873 | C193: 双眼CT平扫（无激光片） | D193: 全部 | E193: 双眼平扫 | F193: 380 | G193: 266 | H193: □
B194: 8874 | C194: 颈部CT平扫（无激光片） | D194: 全部 | E194: 颈部平扫 | F194: 380 | G194: 266 | H194: □
B195: 8875 | C195: 胸部CT平扫(无激光片） | D195: 全部 | E195: 胸部平扫 | F195: 380 | G195: 266 | H195: □
B196: 8876 | C196: 上腹部CT平扫（无激光片） | D196: 全部 | E196: 上腹部平扫 | F196: 380 | G196: 266 | H196: □
B197: 8877 | C197: 下腹部CT平扫（无激光片） | D197: 全部 | E197: 下腹部平扫 | F197: 380 | G197: 266 | H197: □
B198: 8878 | C198: 男性盆腔CT平扫（无激光片） | D198: 全部 | E198: 男性盆腔平扫 | F198: 380 | G198: 266 | H198: □
B199: 8879 | C199: 女性盆腔CT平扫（无激光片） | D199: 全部 | E199: 女性盆腔平扫 | F199: 380 | G199: 266 | H199: □
B200: 8880 | C200: 双肾CT平扫（无激光片） | D200: 全部 | E200: 双肾平扫 | F200: 380 | G200: 266 | H200: □
... 12 more rows

Sheet 附件10宏元套餐
A1: 附件10
A2: 2018年东莞宏元中医医院律师体检套餐（女已婚）
A3: 序号 | B3: 体检项目 | D3: 临床意义 | E3: 价格
A4: 1 | B4: 一般检查 | C4: 身高、体重、血压（BP） | D4: 身高 、体重、血压基本健康状态参数，了解体重是否正常，有无体重不足、超重或肥胖，为相关科室的诊断提供依据。 | E4: 25
A5: 2 | B5: 内科 | C5: 心、肺听诊，腹部触诊 | D5: 心肺有无异常，肝脾有无肿大、腹部有无包块等。 | E5: 10
A6: 3 | B6: 外科 | C6: 浅表淋巴结，甲状腺、乳房、脊柱、四肢、外生殖器、前列腺、肛肠指检、皮肤等 | D6: 淋巴结有无肿大，甲状腺、乳房、肛肠有无异常、四肢脊柱有无畸形等 | E6: 10
A7: 4 | B7: 中医脉诊 | C7: 搭脉，看舌苔 | D7: 中医辩证 | E7: 50
A8: 5 | B8: 中医体质辨识 | D8: 辨识九种体质。 | E8: 40
A9: 6 | B9: 血常规 | C9: 检查白细胞、红细胞、血小板等 | D9: 通过检测血液细胞的计数及不同种类细胞、成分的分类来反映身体状况，如：贫血、感染、血液系统疾病、物理化学因素损伤等。 | E9: 15
A10: 7 | B10: 血型 | C10: 血型，Rh定性 | D10: 可鉴别血型及定性 | E10: 18
A11: 8 | B11: 肝功能四项 | C11: 丙氨酸氨基转移酶(ALT)、血清白蛋白，血清总蛋白，血清胆红素 | D11: 可提示肝胆系统疾病。 | E11: 24
A12: 9 | B12: 肾功能四项 | C12: 尿素（Urea）、肌酐（CR）、尿酸（UA），葡萄糖 | D12: 主要用于了解肾功能异常，痛风，尿酸偏高等。 | E12: 30
A13: 10 | B13: 血脂四项 | C13: 甘油三酯(TG)、总胆固醇(CHOL)、高密度脂蛋白（HDL）、低密度脂蛋白（LDL） | D13: 用于评估受检者的脂肪代谢水平及血脂代谢紊乱评价、动脉粥样硬化性疾病危险性预测和营养学评价。 | E13: 36
A14: 11 | B14: 乙肝两对半 | C14: 表面抗原，表面抗体，e抗原，e抗体，核心抗体 | D14: 可提示有无肝炎 | E14: 40
A15: 12 | B15: 肿瘤标志检测 | C15: 甲胎蛋白定量(AFP) | D15: 可提示有无原发性肝癌，生殖腺胚胎性肿瘤，肝硬化等。 | E15: 11
A16: 13 | B16: 肿瘤标志检测 | C16: 癌胚抗原定量(CEA) | D16: 为广谱肿瘤标志物，可提示直肠癌、结肠癌、肺癌、乳腺癌、胰腺癌等。 | E16: 69
A17: 14 | B17: 尿常规 | C17: 颜色、比重、酸碱度、尿糖、隐血、尿胆素、尿胆原、胆红素、尿蛋白、亚硝酸盐、镜检 | D17: 可提示有无泌尿系统疾患：如急、慢性肾炎，肾盂肾炎，膀胱炎，尿道炎，肾病综合征，狼疮性肾炎，血红蛋白尿，肾梗塞、肾小管重金属盐及药物导致急性肾小管坏死，肾或膀胱肿瘤以及有无尿糖等。 | E17: 10
A18: —62—
A19: 15 | B19: 妇科（已婚项目） | C19: 妇科常规检查 | D19: 检查女性生殖器有无异常改变、有无宫颈及阴道异常病变。 | E19: 8
A20: 16 | B20: 妇科（已婚项目） | C20: 白带常规 | D20: 了解阴道分泌物的清洁度，阴道有无炎症、白细胞、霉菌、滴虫等。 | E20: 31
A21: 17 | B21: 心电图 | C21: 十二导心电图 | D21: 用于心肌梗死、心律失常、心肌缺血等心脏疾病的检查。 | E21: 26
A22: 18 | B22: 数字X光减影（DR） | C22: 颈椎正侧位 | D22: 有无颈椎骨质增生、椎管狭窄等 | E22: 110
A23: 19 | B23: 数字X光减影（DR） | C23: 腰椎正侧位 | D23: 有无腰椎骨质增生、椎管狭窄等 | E23: 110
A24: 20 | B24: 数字X光减影（DR） | C24: 胸部正位片 | D24: 有无肺部疾病及心脏、主动脉、纵膈、横膈疾病等。 | E24: 60
A25: 21 | B25: 彩色超声 | C25: 肝胆脾胰彩超 | D25: 更清晰的检查肝脏、胆囊、胆管、脾脏、胰腺等是否异常病变发生。 | E25: 120
A26: 22 | B26: 彩色超声 | C26: 泌尿系彩超 | D26: 检查能较好的显示前列腺、双肾、输尿管、膀胱的形态、大小，对于有无增生、结石、肥大、钙化等疾病具有诊断意义。 | E26: 120
A27: 23 | B27: 彩色超声 | C27: 子宫附件彩超 | D27: 更清晰的观察子宫、卵巢、盆腔等生殖器是否有病变发生。 | E27: 120
A28: 24 | B28: 图文报告费 | C28: 1次彩超报告，2次DR报告 | E28: 15
A29: 25 | B29: 静脉采血 | E29: 2.5
A30: 26 | B30: 材料费 | C30: 采血针，采血管 | E30: 6.5
A31: 27 | B31: 一次性材料 | C31: 材料 | E31: 10.23
A32: 费用共计：1127.00 折后价：400.00
A33: 赠送中医特色疗法一次 （三选一） | C33: 外治疗法 | D33: 推拿或正骨 | E33: 138
C34: 中医艾灸养生 | D34: 中药艾灸条保养 | E34: 60
C35: 生物能量治疗 | D35: 针对亚健康、多种慢性疾病（含中药外治酵素浴） | E35: 398
A36: 东莞宏元中医医院 地址：南城区众利路（艺展中心对面） 预约电话：0769-38959555
A39: 2018年东莞宏元中医医院律师体检套餐（女未婚）
A40: 序号 | B40: 体检项目 | D40: 临床意义 | E40: 价格
A41: 1 | B41: 一般检查 | C41: 身高、体重、血压（BP） | D41: 身高 、体重、血压基本健康状态参数，了解体重是否正常，有无体重不足、超重或肥胖，为相关科室的诊断提供依据。 | E41: 25
A42: 2 | B42: 内科 | C42: 心、肺听诊，腹部触诊 | D42: 心肺有无异常，肝脾有无肿大、腹部有无包块等。 | E42: 10
A43: 3 | B43: 外科 | C43: 浅表淋巴结，甲状腺、乳房、脊柱、四肢、外生殖器、前列腺、肛肠指检、皮肤等 | D43: 淋巴结有无肿大，甲状腺、乳房、肛肠有无异常、四肢脊柱有无畸形等 | E43: 10
A44: —63—
A45: 4 | B45: 中医脉诊 | C45: 搭脉，看舌苔 | D45: 中医辩证 | E45: 50
A46: 5 | B46: 中医体质辨识 | D46: 辨识九种体质。 | E46: 40
A47: 6 | B47: 血常规 | C47: 检查白细胞、红细胞、血小板等 | D47: 通过检测血液细胞的计数及不同种类细胞、成分的分类来反映身体状况，如：贫血、感染、血液系统疾病、物理化学因素损伤等。 | E47: 15
A48: 7 | B48: 血型 | C48: 血型，Rh定性 | D48: 可鉴别血型及定性 | E48: 18
A49: 8 | B49: 肝功能四项 | C49: 丙氨酸氨基转移酶(ALT)、血清白蛋白，血清总蛋白，血清胆红素 | D49: 可提示肝胆系统疾病。 | E49: 24
A50: 9 | B50: 肾功能四项 | C50: 尿素（Urea）、肌酐（CR）、尿酸（UA），葡萄糖 | D50: 主要用于了解肾功能异常，痛风，尿酸偏高等。 | E50: 30
A51: 10 | B51: 血脂四项 | C51: 甘油三酯(TG)、总胆固醇(CHOL)、高密度脂蛋白（HDL）、低密度脂蛋白（LDL） | D51: 用于评估受检者的脂肪代谢水平及血脂代谢紊乱评价、动脉粥样硬化性疾病危险性预测和营养学评价。 | E51: 36
A52: 11 | B52: 乙肝两对半 | C52: 表面抗原，表面抗体，e抗原，e抗体，核心抗体 | D52: 可提示有无肝炎 | E52: 40
A53: 12 | B53: 肿瘤标志检测 | C53: 甲胎蛋白定量(AFP) | D53: 可提示有无原发性肝癌，生殖腺胚胎性肿瘤，肝硬化等。 | E53: 11
A54: 13 | B54: 肿瘤标志检测 | C54: 癌胚抗原定量(CEA) | D54: 为广谱肿瘤标志物，可提示直肠癌、结肠癌、肺癌、乳腺癌、胰腺癌等。 | E54: 69
A55: 14 | B55: EB病毒检测 | C55: EBV-EA抗体 | D55: 检测鼻咽癌标志物 | E55: 20
A56: 15 | B56: 尿常规 | C56: 颜色、比重、酸碱度、尿糖、隐血、尿胆素、尿胆原、胆红素、尿蛋白、亚硝酸盐、镜检 | D56: 可提示有无泌尿系统疾患：如急、慢性肾炎，肾盂肾炎，膀胱炎，尿道炎，肾病综合征，狼疮性肾炎，血红蛋白尿，肾梗塞、肾小管重金属盐及药物导致急性肾小管坏死，肾或膀胱肿瘤以及有无尿糖等。 | E56: 10
A57: 16 | B57: 心电图 | C57: 十二导心电图 | D57: 用于心肌梗死、心律失常、心肌缺血等心脏疾病的检查。 | E57: 26
A58: 17 | B58: 数字X光减影（DR） | C58: 颈椎正侧位 | D58: 有无颈椎骨质增生、椎管狭窄等 | E58: 110
A59: 18 | B59: 数字X光减影（DR） | C59: 腰椎正侧位 | D59: 有无腰椎骨质增生、椎管狭窄等 | E59: 110
A60: 19 | B60: 数字X光减影（DR） | C60: 胸部正侧位 | D60: 有无肺部疾病及心脏、主动脉、纵膈、横膈疾病等。 | E60: 50
A61: 20 | B61: 彩色超声 | C61: 肝胆脾胰彩超 | D61: 更清晰的检查肝脏、胆囊、胆管、脾脏、胰腺等是否异常病变发生。 | E61: 120
A62: —64—
A63: 21 | B63: 彩色超声 | C63: 泌尿系彩超 | D63: 检查能较好的显示前列腺、双肾、输尿管、膀胱的形态、大小，对于有无增生、结石、肥大、钙化等疾病具有诊断意义。 | E63: 120
A64: 22 | B64: 彩色超声 | C64: 子宫附件彩超 | D64: 更清晰的观察子宫、卵巢、盆腔等生殖器是否有病变发生。 | E64: 120
A65: 23 | B65: 图文报告费 | C65: 1次彩超报告，2次DR报告 | E65: 45
A66: 24 | B66: 静脉采血 | E66: 2.5
A67: 25 | B67: 材料费 | C67: 采血针，采血管 | E67: 6.5
A68: 26 | B68: 一次性材料 | C68: 材料 | E68: 10.23
A69: 费用共计：1177.23 折后价：400.00
A70: 赠送中医特色疗法一次（三选一） | C70: 外治疗法 | D70: 推拿或正骨 | E70: 138
C71: 中医艾灸 | D71: 中药艾灸条保养 | E71: 60
C72: 生物能量治疗 | D72: 针对亚健康、多种慢性疾病（含中药外治酵素浴） | E72: 398
A73: 东莞宏元中医医院 地址：南城区众利路（艺展中心对面） 预约电话：0769-38959555
A79: 2018年东莞宏元中医医院律师体检套餐（男）
A80: 序号 | B80: 体检项目 | D80: 临床意义 | E80: 价格
A81: 1 | B81: 一般检查 | C81: 身高、体重、血压（BP） | D81: 身高 、体重、血压基本健康状态参数，了解体重是否正常，有无体重不足、超重或肥胖，为相关科室的诊断提供依据。 | E81: 25
A82: 2 | B82: 内科 | C82: 心、肺听诊，腹部触诊 | D82: 心肺有无异常，肝脾有无肿大、腹部有无包块等 | E82: 10
A83: 3 | B83: 外科 | C83: 浅表淋巴结，甲状腺、乳房、脊柱、四肢、外生殖器、前列腺、肛肠指检、皮肤等 | D83: 淋巴结有无肿大，甲状腺、乳房、肛肠有无异常、四肢脊柱有无畸形等。 | E83: 10
A84: 4 | B84: 中医脉诊 | C84: 搭脉，看舌苔 | D84: 中医辩证 | E84: 50
A85: 5 | B85: 中医体质辨识 | D85: 辨识九种体质。 | E85: 40
A86: 6 | B86: 血常规 | C86: 检查白细胞、红细胞、血小板等 | D86: 通过检测血液细胞的计数及不同种类细胞、成分的分类来反映身体状况，如：贫血、感染、血液系统疾病、物理化学因素损伤等。 | E86: 15
A87: —65—
A88: 7 | B88: 血型 | C88: 血型，Rh定性 | D88: 可鉴别血型及定性 | E88: 18
A89: 8 | B89: 肝功能九项 | C89: 丙氨酸氨基转移酶(ALT)、血清白蛋白，血清总蛋白，血清胆红素等 | D89: 可提示肝胆系统疾病。 | E89: 78
A90: 9 | B90: 血脂四项 | C90: 甘油三酯(TG)、总胆固醇(CHOL)、高密度脂蛋白（HDL）、低密度脂蛋白（LDL） | D90: 用于评估受检者的脂肪代谢水平及血脂代谢紊乱评价、动脉粥样硬化性疾病危险性预测和营养学评价。 | E90: 36
A91: 10 | B91: 肾功能四项 | C91: 尿素（Urea）、肌酐（CR）、尿酸（UA），葡萄糖 | D91: 主要用于了解肾功能异常，痛风，尿酸偏高等。 | E91: 30
A92: 11 | B92: 乙肝两对半 | C92: 表面抗原，表面抗体，e抗原，e抗体，核心抗体 | D92: 可提示有无肝炎 | E92: 40
A93: 12 | B93: 肿瘤标志检测 | C93: 癌胚抗原定量(CEA) | D93: 为广谱肿瘤标志物，可提示直肠癌、结肠癌、肺癌、乳腺癌、胰腺癌等。 | E93: 69
B94: 肿瘤标志检测 | C94: 甲胎蛋白定量(AFP) | D94: 可提示有无原发性肝癌，生殖腺胚胎性肿瘤，肝硬化等。 | E94: 11
A95: 13 | B95: 尿常规 | C95: 颜色、比重、酸碱度、尿糖、隐血、尿胆素、尿胆原、胆红素、尿蛋白、亚硝酸盐、镜检 | D95: 可提示有无泌尿系统疾患：如急、慢性肾炎，肾盂肾炎，膀胱炎，尿道炎，肾病综合征，狼疮性肾炎，血红蛋白尿，肾梗塞、肾小管重金属盐及药物导致急性肾小管坏死，肾或膀胱肿瘤以及有无尿糖等。 | E95: 10
A96: 16 | B96: 心电图 | C96: 十二导心电图 | D96: 用于心肌梗死、心律失常、心肌缺血等心脏疾病的检查。 | E96: 26
A97: 17 | B97: 数字X光减影（DR） | C97: 胸部正位片 | D97: 有无肺部疾病及心脏、主动脉、纵膈、横膈疾病等。 | E97: 60
A98: 18 | B98: 数字X光减影（DR） | C98: 腰椎正侧位 | D98: 有无腰椎骨质增生、椎管狭窄等 | E98: 110
A99: 19 | B99: 数字X光减影（DR） | C99: 颈椎正侧位 | D99: 有无颈椎骨质增生、椎管狭窄等 | E99: 110
A100: 20 | B100: 彩色超声 | C100: 肝胆脾胰彩超 | D100: 更清晰的检查肝脏、胆囊、胆管、脾脏、胰腺等是否异常病变发生。 | E100: 120
A101: 21 | B101: 彩色超声 | C101: 泌尿系彩超 | D101: 检查能较好的显示前列腺、双肾、输尿管、膀胱的形态、大小，对于有无增生、结石、肥大、钙化等疾病具有诊断意义。 | E101: 120
A102: 22 | B102: 图文报告费 | C102: 2次彩超报告，3次DR报告 | E102: 15
A103: 23 | B103: 静脉采血 | E103: 2.5
A104: 24 | B104: 材料费 | C104: 采血针、采血管 | E104: 6.5
A105: 费用总计：1012 .00 折后价：400.00
A106: 赠送中医特色疗法一次 （三选一） | C106: 外治疗法 | D106: 推拿或正骨 | E106: 138
C107: 中医艾灸 | D107: 中药艾灸条保养 | E107: 60
C108: 生物能量治疗 | D108: 针对亚健康、多种慢性疾病（含中药外治酵素浴） | E108: 398
A109: 东莞宏元中医医院 地址：南城区众利路（艺展中心对面） 预约电话：0769-38959555
A111: —66—

Sheet 附件10宏元自选项目
A1: 2018年东莞宏元中医医院自选体检项目及报价
A3: 注：自选项目价格每项折扣为7折
A4: 序号 | C4: 体检项目 | E4: 临床意义 | F4: 价格 | G4: 优惠价
A5: 1 | B5: 化 验 类 项 目 | C5: 性激素六项 | D5: FSH、LH、P、PRL、T、E2 | E5: 性激素分泌水平检测，闭经、性早熟、妊娠、不孕、不育、高泌乳素血症等指标 | F5: 345 | G5: =F5*0.7 -> 241.5
A6: 2 | C6: 糖化血红蛋白 | D6: Hb1A1C | E6: 反应2-3个月内平均血糖的水平，用于糖尿病疗效观察 | F6: 80 | G6: 56
A7: 3 | C7: 微量元素六项 | D7: Fe、Mg、Ca、Zn、Pb | E7: 判断人体微量元素平衡状态，评价营养状况，预防微量元素失衡所致疾病的发生 | F7: 58 | G7: 40.6
A8: 4 | C8: 糖尿病三项 | D8: INS、ICA、GAD-Ab | E8: 糖尿病诊断治疗监测 | F8: 148 | G8: 103.6
A9: 5 | C9: 幽门螺旋杆菌IgG抗体检测 | D9: IgG抗体 | E9: 为慢性胃炎的致病因素之一，与消化性溃疡，尤其是十二指肠溃疡有密切关系，长期感染也有可能引起胃癌的危险因素 | F9: 46 | G9: 32.2
A10: 6 | C10: 血液流变学检查 | D10: 全血粘度、还原性粘度、红细胞集聚指数，红细胞刚性指数，红细胞变形指数，红细胞压积 | E10: 监测是否存在高血压、高血脂、糖尿病、冠心病、心肌梗塞、血栓形成等危险因素。 | F10: 64 | G10: 44.8
A11: 7 | C11: 甲功5项 | D11: FT3、FT4、rT3、TGAb、TMAb | E11: 判断甲状腺功能。鉴别免疫性疾病 | F11: 280 | G11: 196
A12: 8 | C12: 电解质六项 | D12: 钾测定、钠测定、氯测定、钙测定、镁测定、铁测定 | E12: 电解质平衡，电解质失衡导致人体乏力、眩晕、恶心等 | F12: 30 | G12: 21
A13: 9 | C13: 凝血四项 | D13: 血浆凝血酶原时间测定(PT)、凝血酶原时间、血浆纤维蛋白原测定、活化部分凝血活酶时间测定(APTT) | E13: 了解凝血情况。 | F13: 92 | G13: 64.4
A14: 10 | C14: 高血压四项 | D14: AT-I、AT-II、PRA、ALD | E14: 高血压的鉴别诊断及疗效评价 | F14: 195 | G14: 136.5
A15: 11 | C15: 风湿九项 | D15: EMA-8、ACA | E15: 类风湿关节炎辅助诊断 | F15: 154.4 | G15: 108.08
A16: 12 | C16: 贫血三项 | D16: FOL、VB12、FER | E16: 贫血诊断分型和病情监测 | F16: 190 | G16: 133
A17: 13 | C17: 胰岛素测定 | E17: 评估低血糖、糖尿病分型、评估胰岛素β细胞活性，研究胰岛素抵抗 | F17: 63 | G17: 44.1
A18: 14 | C18: 血沉 | D18: ECR | E18: 恶性肿瘤、急性炎症、活动性肺结核等 | F18: 9 | G18: 6.3
A19: 15 | C19: C-反应蛋白 | E19: 心血管病变的独立危险因素，对血管病变存在和发生心血管意外预测和预防具有重要意义 | F19: 16 | G19: 11.2
A20: 16 | C20: 肝功能十二项 | D20: 丙氨酸氨基转移酶(ALT)、天门冬氨酸氨基转移酶(AST)、天冬/丙氨(AST/ALT)、谷氨酰转肽酶(GGT)、碱性磷酸酶(ALP)、总胆红素(TBIL)、直接胆红素(DBIL)、间接胆红素(IBIL)、总蛋白(TP)、白蛋白(ALB)、球蛋白(GLO)、白/球比值(A/G) | E20: 通过对肝脏酶、蛋白、胆红素的检测，可反映肝细胞的合成功能情况，肝细胞实质受损情况，肝内、外胆道阻塞情况等。 | F20: 133 | G20: 93.1
A21: 17 | C21: 肝功能九项 | D21: 丙氨酸氨基转移酶(ALT)、天门冬氨酸氨基转移酶(AST)、谷氨酰转肽酶(GGT)、碱性磷酸酶(ALP)、总胆红素(TBIl)、总胆汁酸、总蛋白(TP)、白蛋白（ALB） | E21: 了解肝脏功能情况，是否有肝细胞损害，胆道梗阻、急慢性肝炎、脂肪肝、肝硬化等病症 | F21: 78 | G21: 54.6
A22: 18 | C22: 肝功能五项 | D22: 丙氨酸氨基转移酶(ALT)、天门冬氨酸氨基转移酶(AST)、白蛋白(ALB)、总蛋白(TP)、总胆红素(TBIL) | E22: 了解肝脏功能情况，是否有肝细胞损害、肝脏疾病及胆道疾病等病症 | F22: 34 | G22: 23.8
A23: 19 | C23: 肝功能二项 | D23: 丙氨酸氨基转移酶(ALT)、天门冬氨酸氨基转移酶(AST) | E23: ALT与AST在肝细胞内的浓度较高，相结合可用于诊断各类肝脏性疾病。 | F23: 10 | G23: 7
A24: 20 | C24: 肝功能一项 | D24: 丙氨酸氨基转移酶(ALT) | E24: 可检测急、慢性病毒性肝炎、酒精性肝病、肝癌、肝硬化、脂肪肝等。 | F24: 5 | G24: 3.5
A25: —67—
A26: 21 | B26: 化 验 类 项 目 | C26: 肝功能 | D26: 天门冬氨酸氨基转移酶(AST) | E26: 可检测急、慢性病毒性肝炎、酒精性肝病、肝癌、肝硬化、脂肪肝、心肌梗死等。 | F26: 5 | G26: =F26*0.7 -> 3.5
A27: 22 | C27: 肝功能 | D27: 谷氨酰转肽酶(GGT) | E27: 可检测胆道阻塞性疾病、急慢性肝炎、肝硬化、酒精性肝炎、脂肪肝、胰腺炎、胰腺肿瘤等。 | F27: 5 | G27: 3.5
A28: 23 | C28: 胆碱脂酶 | D28: 胆碱脂酶 | E28: 用于有机磷中度，严重消耗性疾病，肝实质损伤等的检测 | F28: 15 | G28: 10.5
A29: 24 | C29: 肝功能 | D29: 碱性磷酸酶(ALP) | E29: 用于检测肝胆系统疾病、黄疸的鉴别诊断、骨骼疾病等。 | F29: 5 | G29: 3.5
A30: 25 | C30: 肝功能 | D30: 总胆红素(TBIL) | E30: 用于黄疸性肝炎及各类溶血性黄疸的诊断与鉴别诊断。 | F30: 5 | G30: 3.5
A31: 26 | C31: 肝功能 | D31: 白蛋白(ALB) | E31: 检测肠道吸收障碍、营养不良、慢性消耗性疾病、肾病综合征、肝硬化等。 | F31: 7 | G31: 4.9
A32: 27 | C32: 血脂六项 | D32: 载脂蛋A1(ApoAI)、载脂蛋白B(APO-B)、高密度脂蛋白（HDL）、低密度脂蛋白（LDL）、甘油三酯(TG)、总胆固醇(CHOL) | E32: 用于动脉粥样硬化、高血压、脑血管病、冠心病、糖尿病、肥胖与高脂血症、肾病综合症等预警及诊断。 | F32: 86 | G32: 60.2
A33: 28 | C33: 血脂四项 | D33: 甘油三酯(TG)、总胆固醇(CHOL)、高密度脂蛋白（HDL）、低密度脂蛋白（LDL） | E33: 用于评估受检者的脂肪代谢水平及血脂代谢紊乱评价、动脉粥样硬化性疾病危险性预测和营养学评价。 | F33: 36 | G33: 25.2
A34: 29 | C34: 血脂二项 | D34: 甘油三酯(TG)、总胆固醇(CHOL) | E34: 血脂浓度与心脑血管疾病关系密切，对诊断动脉硬化症，冠心病及肾病综合症有参考意义。 | F34: 10 | G34: 7
A35: 30 | C35: 血脂一项 | D35: 甘油三脂（TG） | E35: 血脂浓度与心脑血管疾病关系密切，对诊断动脉硬化症，冠心病及肾病综合症有参考意义。 | F35: 5 | G35: 3.5
A36: 31 | C36: 血脂一项 | D36: 总胆固醇(CHOL) | E36: 血脂浓度与心脑血管疾病关系密切，对诊断动脉硬化症，冠心病及肾病综合症有参考意义。 | F36: 5 | G36: 3.5
A37: 32 | C37: 血脂一项 | D37: 低密度脂蛋白（LDL） | E37: 血脂浓度与心脑血管疾病关系密切，对诊断动脉硬化症，冠心病及肾病综合症有参考意义。 | F37: 11 | G37: 7.7
A38: 33 | C38: 心肌酶谱四项 | D38: 天门冬氨酸氨基转移酶②(AST)、乳酸脱氢酶(LDH)、肌酸激酶(CK)、α-羟丁酸脱氢酶(α-HBDH) | E38: 用于心肌梗塞、心肌炎、皮肌炎等的辅助诊断 | F38: 30 | G38: 21
A39: 34 | C39: 心肌酶六谱 | D39: 天门冬氨酸氨基转移酶②(AST)、乳酸脱氢酶(LDH)、肌酸激酶(CK)、肌酸激酶同工酶(CK-MB)、丙氨酸氨基转移酶(ALT)、α-羟丁酸脱氢酶(α-HBDH) | E39: 用于心肌梗塞、心肌炎、皮肌炎等的辅助诊断 | F39: 93 | G39: 65.1
A40: 35 | C40: 肌钙蛋白T | D40: （TnT-ghs） | E40: 心肌损伤的特异指标 | F40: 69 | G40: 48.3
A41: 36 | C41: 丙肝 | E41: 阳性见于丙肝感染 | F41: 28 | G41: 19.6
A42: 37 | C42: 梅毒TRUST半定量 | D42: TRUST | E42: 辅助诊断梅毒 | F42: 50 | G42: 35
A43: 38 | C43: 人类免疫缺陷病毒抗体检测 | D43: HIV-Ab | E43: 辅助诊断艾滋病感染指标 | F43: 40 | G43: 28
A44: 39 | B44: 尿液检查 | C44: 尿常规 | D44: 颜色、比重、酸碱度、尿糖、隐血、尿胆素、尿胆原、胆红素、尿蛋白、亚硝酸盐、镜检 | E44: 可提示有无泌尿系统疾患：如急、慢性肾炎，肾盂肾炎，膀胱炎，尿道炎，肾病综合征，狼疮性肾炎，血红蛋白尿，肾梗塞、肾小管重金属盐及药物导致急性肾小管坏死，肾或膀胱肿瘤以及有无尿糖等 | F44: 10 | G44: 7
A45: —68—
A46: 40 | B46: 大便检查 | C46: 大便检查 | D46: 颜色、外观性状、红细胞、白细胞、粘液、虫卵、真菌+隐血 | E46: 主要检查项目是大便的性状、是否存在白细胞、以及是否存在潜血等情况，检查粪便中隐藏的红细胞或血红蛋白的一项实验。这对检出引起消化道出血的疾病：如急慢性胃炎、胃十二指肠溃疡、胃癌、肠癌等是非常有用的。 | F46: 19 | G46: =F46*0.7 -> 13.3
A47: 41 | B47: 男性专项 | C47: 精液检查 | D47: 精液 | E47: 检查精子的活跃度、存活率 | F47: 35 | G47: 24.5
A48: 42 | B48: 女性专项 | C48: 女性专项检查（已婚项目） | D48: 人乳头瘤病毒检测HPV | E48: 宫颈癌筛查，AS-CUS结果分流，术后回访 | F48: 345 | G48: 241.5
A49: 43 | C49: 女性专项检查（已婚项目） | D49: 妇科常规检查 | E49: 检查女性生殖器有无异常改变、有无宫颈及阴道异常病变。 | F49: 8 | G49: 5.6
A50: 44 | C50: 女性专项检查（已婚项目） | D50: 白带常规 | E50: 了解阴道分泌物的清洁度，阴道有无炎症、白细胞、霉菌、滴虫等。 | F50: 9 | G50: 6.3
A51: 45 | C51: 女性专项检查（已婚项目） | D51: 宫颈涂片 | E51: 又称宫颈细胞巴氏分级，主要是宫颈癌细胞学检查，能检查出部分癌前病变以及微生物的感染。 | F51: 200 | G51: 140
A52: 46 | C52: 女性专项检查（已婚项目） | D52: 细菌性阴道病检测(BV) | E52: 用于细菌性阴道疾病致病菌的筛查。 | F52: 15 | G52: 10.5
A53: 47 | C53: 女性专项检查（已婚项目） | D53: 宫颈液基细胞检测(LCT或TCT) | E53: 对宫颈癌前病变的筛查率在97%以上，还能了解宫颈炎性的改变及其他各类病毒感染引起的病变，如HPV感染等 | F53: 200 | G53: 140
A54: 48 | C54: 女性专项检查（已婚项目） | D54: 电子阴道镜 | E54: 直观、有效地发现宫颈糜烂、用于诊断癌症及其它妇科疾病和性疾病，建议中度以上宫颈糜烂患者常规进行阴道镜检查，该检查无任何创伤及副作用，对相关检查信息可以留存。 | F54: 105 | G54: 73.5
A55: 49 | B55: 彩 超 类 项 目 | C55: 彩色超声检查 | D55: 肝、胆、脾、胰彩超 | E55: 更清晰的诊断炎症、囊肿、肿瘤、结石、梗阻、血管瘤、肝硬化、脂肪肝等，提供高清晰度的动态彩色超声诊断图像 | F55: 120 | G55: 84
A56: 50 | C56: 彩色超声检查 | D56: 双肾彩超 | E56: 更清晰的检查肾癌、游走肾等是否异常病变发生 | F56: 120 | G56: 84
A57: 51 | C57: 彩色超声检查 | D57: 双肾、输尿管、膀胱彩超 | E57: 检查诊断炎症、囊肿、肿瘤、结石、肾癌、游走肾、膀胱癌、膀胱畸形、输尿管膀胱积水等，提供高清晰度的动态彩色超声诊断图像 | F57: 120 | G57: 84
A58: 52 | C58: 彩色超声检查 | D58: 前列腺彩超 | E58: 检查能较好的显示前列腺的形态、大小，对于前列腺增生、肥大、钙化等疾病具有诊断意义。提供高清晰度的动态彩色超声断层图像诊断。 | F58: 120 | G58: 84
A59: 53 | C59: 彩色超声检查 | D59: 子宫、附件彩超 | E59: 更清晰的观察子宫、卵巢、盆腔等生殖器是否有病变发生，如子宫肌瘤、囊肿等。 | F59: 120 | G59: 84
A60: 54 | C60: 彩色超声检查 | D60: 阴道彩超（子宫、附件彩超） | E60: 更清晰的观察子宫、卵巢、盆腔等生殖器是否有病变发生，如子宫肌瘤、囊肿等。 | F60: 130 | G60: 91
A61: 55 | B61: 放 射 科 项 目 | C61: 胸部正位怀孕或可能怀孕者禁检 | D61: 不含胶片 | E61: 检查心肺疾病，如心脏增大，各种肺结核，各种肺炎，肺癌，纵膈肿瘤等 | F61: 60 | G61: 42
A62: 56 | C62: 颈椎侧位 | D62: 不含胶片 | E62: 检查有无颈椎病、骨质增生、退行性变等。 | F62: 60 | G62: 42
A63: 57 | C63: 腰椎侧位 | D63: 不含胶片 | E63: 检查有无腰椎间盆突出、骨质增生、退行性变等。 | F63: 60 | G63: 42
A64: 58 | C64: 左侧膝关节正侧位 | D64: 不含胶片 | E64: 用于膝关节病变的检查。 | F64: 110 | G64: 77
A65: 59 | C65: 胸部侧位 | D65: 不含胶片 | E65: 检查心肺疾病，如心脏增大，各种肺结核，各种肺炎，肺癌，纵膈肿瘤等 | F65: 60 | G65: 42
A66: 60 | C66: 颈椎正侧位 | D66: 不含胶片 | E66: 检查有无颈椎病、骨质增生、退行性变等。 | F66: 110 | G66: 77
A67: 61 | C67: 右侧肘关节正侧位 | D67: 不含胶片 | E67: 用于肘关节病变的检查。 | F67: 110 | G67: 77
A68: 62 | C68: 胸部正侧位 | D68: 不含胶片 | E68: 检查心肺疾病，如心脏增大，各种肺结核，各种肺炎，肺癌，纵膈肿瘤等 | F68: 110 | G68: 77
A69: 63 | C69: 颈椎双斜位 | D69: 不含胶片 | E69: 检查有无颈椎病、骨质增生、退行性变等。 | F69: 110 | G69: 77
A70: 64 | C70: 颈椎正侧双斜位 | D70: 不含胶片 | E70: 检查有无颈椎病、骨质增生、退行性变等。 | F70: 220 | G70: 154
A71: —69—
A72: 65 | B72: 放 射 科 项 目 | C72: 腰椎正侧位 | D72: 不含胶片 | E72: 检查有无腰椎间盆突出、骨质增生、退行性变等。 | F72: 110 | G72: =F72*0.7 -> 77
A73: 66 | C73: 左侧肘关节正侧位 | D73: 不含胶片 | E73: 用于肘关节病变的检查。 | F73: 110 | G73: 77
A74: 67 | C74: 左侧腕关节正侧位 | D74: 不含胶片 | E74: 用于腕关节病变的检查。 | F74: 110 | G74: 77
A75: 68 | C75: 右侧膝关节正侧位 | D75: 不含胶片 | E75: 用于膝关节病变的检查。 | F75: 110 | G75: 77
A76: 69 | C76: 右侧腕关节正侧位 | D76: 不含胶片 | E76: 用于腕关节病变的检查。 | F76: 110 | G76: 77
A77: 70 | C77: 胸透 | D77: 不含胶片 | E77: 主要检查心肺疾患。 | F77: 110 | G77: 77
A78: 71 | C78: 节育环透视 | D78: 不含胶片 | E78: 用于检查节育环形态及位置。 | F78: 9 | G78: 6.3
A79: 72 | C79: 颈椎正位 | D79: 不含胶片 | E79: 检查有无颈椎病、骨质增生、退行性变等。 | F79: 60 | G79: 42
A80: 73 | C80: 颈椎侧斜位 | D80: 不含胶片 | E80: 检查有无颈椎病、骨质增生、退行性变等。 | F80: 110 | G80: 77
A81: 74 | C81: 腰椎正位 | D81: 不含胶片 | E81: 检查有无腰椎间盆突出、骨质增生、退行性变等。 | F81: 60 | G81: 42
A82: 75 | C82: 骨盆正位 | D82: 不含胶片 | E82: 用于骨盆病变 的检查。 | F82: 60 | G82: 42
A83: 76 | C83: 胸椎侧位 | D83: 不含胶片 | E83: 用于胸椎变的检查。 | F83: 60 | G83: 42
A84: 77 | C84: 胸椎正侧位 | D84: 不含胶片 | E84: 用于胸椎变的检查。 | F84: 110 | G84: 77
A85: 78 | C85: 左侧肩关节正位 | D85: 不含胶片 | E85: 用于肩关节病变的检查。 | F85: 60 | G85: 42
A86: 79 | C86: 右侧肩关节正位 | D86: 不含胶片 | E86: 用于肩关节病变的检查。 | F86: 60 | G86: 42
A87: 80 | C87: 左侧踝关节正侧位 | D87: 不含胶片 | E87: 用于踝关节病变的检查。 | F87: 60 | G87: 42
A88: 81 | C88: 右侧踝关节正侧位 | D88: 不含胶片 | E88: 用于踝关节病变的检查。 | F88: 60 | G88: 42
A89: 82 | C89: 左足背正斜位 | D89: 不含胶片 | E89: 用于足背病变的检查。 | F89: 110 | G89: 77
A90: 83 | C90: 右足背正斜位 | D90: 不含胶片 | E90: 用于足背病变的检查。 | F90: 110 | G90: 77
A91: 84 | C91: 骶尾椎侧位 | D91: 不含胶片 | E91: 用于骶尾椎病变的检查。 | F91: 60 | G91: 42
A92: 85 | C92: 双手正位 | D92: 不含胶片 | E92: 用于双手病变的检查。 | F92: 110 | G92: 77
A93: 86 | C93: 左侧髋关节正位 | D93: 不含胶片 | E93: 用于髋关节病变的检查。 | F93: 60 | G93: 42
A94: 87 | C94: 右侧髋关节正位 | D94: 不含胶片 | E94: 用于髋关节病变的检查。 | F94: 60 | G94: 42
A95: 88 | C95: 左侧股骨正侧位 | D95: 不含胶片 | E95: 用于股骨病变的检查。 | F95: 110 | G95: 77
A96: 89 | C96: 右侧股骨正侧位 | D96: 不含胶片 | E96: 用于股骨病变的检查。 | F96: 110 | G96: 77
A97: 90 | C97: 左侧胫腓骨正侧位 | D97: 不含胶片 | E97: 用于胫腓骨病变的检查。 | F97: 110 | G97: 77
A98: 91 | C98: 右侧胫腓骨正侧位 | D98: 不含胶片 | E98: 用于胫腓骨病变的检查。 | F98: 110 | G98: 77
A99: 92 | C99: 左侧膝关节侧位 | D99: 不含胶片 | E99: 用于膝关节病变的检查。 | F99: 60 | G99: 42
A100: 93 | C100: 右侧膝关节侧位 | D100: 不含胶片 | E100: 用于膝关节病变的检查。 | F100: 60 | G100: 42
A102: 注意事项：1、抽血需要空腹进行。 2、如果您有晕血现象请提前告知医生。 3、做泌尿系彩超需要憋尿进行检查，请抽完血后多喝水。
A118: —70—
